Council Name,Date,TransNo,Amount � (Excl VAT),Supplier name,Supplier Category,Expense Area,Expense Type,Expense Code,Unclaimed VAT
London Borough of Sutton,01/07/2022,50215542,525.00,Adelfi Homecare Ltd,SOCIAL SERVICES RESIDENTIAL,Peoples Services,Home Care Services,A56019,0
London Borough of Sutton,01/07/2022,20027656,"99,432.25",AECOM Ltd,LEGAL & PROFESSIONAL SERVICES,Development Growth and Regeneration,Professional Fees,A44066,0
London Borough of Sutton,01/07/2022,20027619,"1,899.10",Allstar Business Solutions,FUEL AND VEHICLE SUPPLIES,Environment Housing and Neighbourhoods,Vehicles -  Fuel,A30015,0
London Borough of Sutton,01/07/2022,20028363,735.42,Anglian Lepidopterist Supplies,SUNDRY SUPPLIER - ENV SERVICES,Environment Housing and Neighbourhoods,Equipment And Materials Purchase,A40000,0
London Borough of Sutton,01/07/2022,20027659,"3,005.00",Beeches Tree Care,AGRICULTURAL & ESTATE SERVICES,Environment Housing and Neighbourhoods,Highway Trees - Maintenance,A28005,0
London Borough of Sutton,01/07/2022,50219473,"3,707.69",Bright Futures Care Ltd,CHILDREN'S SERVICES - FOSTERING & ADOPTION SERVICES,Peoples Services,Independent School Fees,A56002,0
London Borough of Sutton,01/07/2022,20027658,"3,214.20",By The Bridge Ltd,CHILDREN'S SERVICES - FOSTERING & ADOPTION SERVICES,Peoples Services,Approved Lodgings,A61000,0
London Borough of Sutton,01/07/2022,50217582,"2,879.70",By The Bridge Ltd,CHILDREN'S SERVICES - FOSTERING & ADOPTION SERVICES,Peoples Services,Foster Parents Support,A44110,0
London Borough of Sutton,01/07/2022,50217583,"2,879.70",By The Bridge Ltd,CHILDREN'S SERVICES - FOSTERING & ADOPTION SERVICES,Peoples Services,Foster Parents Support,A44110,0
London Borough of Sutton,01/07/2022,50217672,"4,516.50",By The Bridge Ltd,CHILDREN'S SERVICES - FOSTERING & ADOPTION SERVICES,Peoples Services,Foster Parents Support,A44110,0
London Borough of Sutton,01/07/2022,20027599,"32,043.70",Caysh Housing Project,SOCIAL SERVICES RESIDENTIAL,Peoples Services,Approved Lodgings,A61000,0
London Borough of Sutton,01/07/2022,20027188,"1,335.60",Childcare and Learning (Cranbrook) Limited,CHILDREN'S SERVICES - DAY CARE,Peoples Services,C.C.A Daycare & Playschemes,A61005,0
London Borough of Sutton,01/07/2022,20027654,"1,209.00",REDACTED - PERSONAL DATA,GRANTS & EX GRATIA PAYMENTS,Environment Housing and Neighbourhoods,Temporary Protection - Homeless Persons,A62028,0
London Borough of Sutton,01/07/2022,20028218,"2,100.00",Delta Wise Limited,ACCOMMODATION BED & BREAKFAST,Environment Housing and Neighbourhoods,Bed & Breakfast,A56000,0
London Borough of Sutton,01/07/2022,20028219,490.00,Delta Wise Limited,ACCOMMODATION BED & BREAKFAST,Environment Housing and Neighbourhoods,Bed & Breakfast,A56000,0
London Borough of Sutton,01/07/2022,20028222,"2,520.00",Delta Wise Limited,ACCOMMODATION BED & BREAKFAST,Environment Housing and Neighbourhoods,Bed & Breakfast,A56000,0
London Borough of Sutton,01/07/2022,20028224,770.00,Delta Wise Limited,ACCOMMODATION BED & BREAKFAST,Environment Housing and Neighbourhoods,Bed & Breakfast,A56000,0
London Borough of Sutton,01/07/2022,20028225,"1,155.00",Delta Wise Limited,ACCOMMODATION BED & BREAKFAST,Environment Housing and Neighbourhoods,Bed & Breakfast,A56000,0
London Borough of Sutton,01/07/2022,20028227,"1,254.00",Delta Wise Limited,ACCOMMODATION BED & BREAKFAST,Environment Housing and Neighbourhoods,Bed & Breakfast,A56000,0
London Borough of Sutton,01/07/2022,50217559,"4,767.84",Dynamic Care Ltd,SOCIAL SERVICES RESIDENTIAL,Peoples Services,Approved Lodgings,A61000,0
London Borough of Sutton,01/07/2022,20027895,751.89,EDF Energy,UTILITIES,Resources,Electricity,A21000,0
London Borough of Sutton,01/07/2022,20028123,928.09,EDF Energy,UTILITIES,Environment Housing and Neighbourhoods,Electricity,A21000,0
London Borough of Sutton,01/07/2022,20028464,"7,747.47",EDF Energy,UTILITIES,Resources,Electricity,A21000,0
London Borough of Sutton,01/07/2022,50217594,"4,007.13",Flying Colours Foster Care Ltd,CHILDREN'S SERVICES - FOSTERING & ADOPTION SERVICES,Peoples Services,Foster Parents Support,A44110,0
London Borough of Sutton,01/07/2022,20027577,"4,464.29",Full Circle Support UK Limited,CHILDREN'S SERVICES - FOSTERING & ADOPTION SERVICES,Peoples Services,Approved Lodgings,A61000,0
London Borough of Sutton,01/07/2022,50217608,"4,767.86",Full Circle Support UK Limited,CHILDREN'S SERVICES - FOSTERING & ADOPTION SERVICES,Peoples Services,Approved Lodgings,A61000,0
London Borough of Sutton,01/07/2022,20027525,"3,518.00",REDACTED - PERSONAL DATA,GRANTS & EX GRATIA PAYMENTS,Environment Housing and Neighbourhoods,Temporary Protection - Homeless Persons,A62028,0
London Borough of Sutton,01/07/2022,20027626,"1,500.00",Housing Action Management,ACCOMMODATION BED & BREAKFAST,Environment Housing and Neighbourhoods,Bed & Breakfast,A56000,0
London Borough of Sutton,01/07/2022,20029136,"1,200.00",REDACTED - PERSONAL DATA,GRANTS & EX GRATIA PAYMENTS,Environment Housing and Neighbourhoods,Temporary Protection - Homeless Persons,A62028,0
London Borough of Sutton,01/07/2022,50221140,895.62,James Askew & Son Ltd,BOOKS PUBLICATIONS STATIONERY,Health and Wellbeing,Books,A43050,0
London Borough of Sutton,01/07/2022,50221142,838.47,James Askew & Son Ltd,BOOKS PUBLICATIONS STATIONERY,Health and Wellbeing,Books,A43050,0
London Borough of Sutton,01/07/2022,50215577,612.50,Kare 4 You Surrey Ltd,SOCIAL SERVICES-HOME CARE,Peoples Services,Home Care Services,A56019,0
London Borough of Sutton,01/07/2022,50215586,538.50,Kare 4 You Surrey Ltd,SOCIAL SERVICES-HOME CARE,Peoples Services,Home Care Services,A56019,0
London Borough of Sutton,01/07/2022,50215589,602.50,Kare 4 You Surrey Ltd,SOCIAL SERVICES-HOME CARE,Peoples Services,Home Care Services,A56019,0
London Borough of Sutton,01/07/2022,50215590,927.00,Kare 4 You Surrey Ltd,SOCIAL SERVICES-HOME CARE,Peoples Services,Home Care Services,A56019,0
London Borough of Sutton,01/07/2022,50215592,"1,518.50",Kare 4 You Surrey Ltd,SOCIAL SERVICES-HOME CARE,Peoples Services,Home Care Services,A56019,0
London Borough of Sutton,01/07/2022,50215594,"1,027.50",Kare 4 You Surrey Ltd,SOCIAL SERVICES-HOME CARE,Peoples Services,Home Care Services,A56019,0
London Borough of Sutton,01/07/2022,50215595,"4,732.00",Kare 4 You Surrey Ltd,SOCIAL SERVICES-HOME CARE,Peoples Services,Home Care Services,A56019,0
London Borough of Sutton,01/07/2022,50215597,816.25,Kare 4 You Surrey Ltd,SOCIAL SERVICES-HOME CARE,Peoples Services,Home Care Services,A56019,0
London Borough of Sutton,01/07/2022,50215598,527.50,Kare 4 You Surrey Ltd,SOCIAL SERVICES-HOME CARE,Peoples Services,Home Care Services,A56019,0
London Borough of Sutton,01/07/2022,50215599,"2,153.25",Kare 4 You Surrey Ltd,SOCIAL SERVICES-HOME CARE,Peoples Services,Home Care Services,A56019,0
London Borough of Sutton,01/07/2022,50215600,557.25,Kare 4 You Surrey Ltd,SOCIAL SERVICES-HOME CARE,Peoples Services,Home Care Services,A56019,0
London Borough of Sutton,01/07/2022,50215601,"1,269.00",Kare 4 You Surrey Ltd,SOCIAL SERVICES-HOME CARE,Peoples Services,Home Care Services,A56019,0
London Borough of Sutton,01/07/2022,50215603,"1,456.50",Kare 4 You Surrey Ltd,SOCIAL SERVICES-HOME CARE,Peoples Services,Home Care Services,A56019,0
London Borough of Sutton,01/07/2022,50215604,"1,548.25",Kare 4 You Surrey Ltd,SOCIAL SERVICES-HOME CARE,Peoples Services,Home Care Services,A56019,0
London Borough of Sutton,01/07/2022,50215608,"3,836.00",Kare 4 You Surrey Ltd,SOCIAL SERVICES-HOME CARE,Peoples Services,Home Care Services,A56019,0
London Borough of Sutton,01/07/2022,50215609,"1,566.00",Kare 4 You Surrey Ltd,SOCIAL SERVICES-HOME CARE,Peoples Services,Home Care Services,A56019,0
London Borough of Sutton,01/07/2022,50215610,527.50,Kare 4 You Surrey Ltd,SOCIAL SERVICES-HOME CARE,Peoples Services,Home Care Services,A56019,0
London Borough of Sutton,01/07/2022,50215611,"1,918.00",Kare 4 You Surrey Ltd,SOCIAL SERVICES-HOME CARE,Peoples Services,Home Care Services,A56019,0
London Borough of Sutton,01/07/2022,50215612,"1,278.20",Kare 4 You Surrey Ltd,SOCIAL SERVICES-HOME CARE,Peoples Services,Home Care Services,A56019,0
London Borough of Sutton,01/07/2022,50215620,"1,242.50",Kare 4 You Surrey Ltd,SOCIAL SERVICES-HOME CARE,Peoples Services,Home Care Services,A56019,0
London Borough of Sutton,01/07/2022,50215621,"1,506.00",Kare 4 You Surrey Ltd,SOCIAL SERVICES-HOME CARE,Peoples Services,Home Care Services,A56019,0
London Borough of Sutton,01/07/2022,50215623,"1,359.50",Kare 4 You Surrey Ltd,SOCIAL SERVICES-HOME CARE,Peoples Services,Home Care Services,A56019,0
London Borough of Sutton,01/07/2022,50215630,"1,346.25",Kare 4 You Surrey Ltd,SOCIAL SERVICES-HOME CARE,Peoples Services,Home Care Services,A56019,0
London Borough of Sutton,01/07/2022,50215641,"3,062.25",Kare 4 You Surrey Ltd,SOCIAL SERVICES-HOME CARE,Peoples Services,Home Care Services,A56019,0
London Borough of Sutton,01/07/2022,20027629,"1,750.00",REDACTED - PERSONAL DATA,SUNDRY SUPPLIER - EDUCATION,Peoples Services,Miscellaneous Expenses,A49000,0
London Borough of Sutton,01/07/2022,20027610,310.00,London Borough Of Merton,CENTRAL & LOCAL GOVERNMENT,Resources,Debt Collection Agency Fees,A44273,0
London Borough of Sutton,01/07/2022,20027723,"38,462.00",London Councils,SUBSCRIPTIONS & PUBLICATIONS,Resources,Payments to Other Local Authorities,A51005,0
London Borough of Sutton,01/07/2022,50219484,540.00,REDACTED - PERSONAL DATA,CHILDREN'S SERVICES - SEN SERVICES,Peoples Services,Special Educational Needs,A51015,0
London Borough of Sutton,01/07/2022,20027479,"14,260.00",Nickel Support Community Interest Company,CONFERENCES,Peoples Services,Home Care Services,A56019,0
London Borough of Sutton,01/07/2022,20027542,"6,171.43",Ownlife Ltd,SOCIAL SERVICES DAY CARE,Peoples Services,Approved Lodgings,A61000,0
London Borough of Sutton,01/07/2022,20027541,"1,860.44",Paypoint Network Ltd,OFFICE SERVICES,Resources,Transaction Charges,A44251,0
London Borough of Sutton,01/07/2022,50215678,"1,153.30",Premium Homecare Ltd,SOCIAL SERVICES RESIDENTIAL,Peoples Services,Home Care Services,A56019,0
London Borough of Sutton,01/07/2022,50215683,"1,818.70",Premium Homecare Ltd,SOCIAL SERVICES RESIDENTIAL,Peoples Services,Home Care Services,A56019,0
London Borough of Sutton,01/07/2022,50215687,910.90,Premium Homecare Ltd,SOCIAL SERVICES RESIDENTIAL,Peoples Services,Home Care Services,A56019,0
London Borough of Sutton,01/07/2022,50215688,"1,967.50",Premium Homecare Ltd,SOCIAL SERVICES RESIDENTIAL,Peoples Services,Home Care Services,A56019,0
London Borough of Sutton,01/07/2022,50215698,"1,747.40",Premium Homecare Ltd,SOCIAL SERVICES RESIDENTIAL,Peoples Services,Home Care Services,A56019,0
London Borough of Sutton,01/07/2022,50215699,"1,691.85",Premium Homecare Ltd,SOCIAL SERVICES RESIDENTIAL,Peoples Services,Home Care Services,A56019,0
London Borough of Sutton,01/07/2022,50215700,"2,164.40",Premium Homecare Ltd,SOCIAL SERVICES RESIDENTIAL,Peoples Services,Home Care Services,A56019,0
London Borough of Sutton,01/07/2022,50215701,"2,322.37",Premium Homecare Ltd,SOCIAL SERVICES RESIDENTIAL,Peoples Services,Home Care Services,A56019,0
London Borough of Sutton,01/07/2022,50215702,"1,427.00",Premium Homecare Ltd,SOCIAL SERVICES RESIDENTIAL,Peoples Services,Home Care Services,A56019,0
London Borough of Sutton,01/07/2022,50215703,"1,342.25",Premium Homecare Ltd,SOCIAL SERVICES RESIDENTIAL,Peoples Services,Home Care Services,A56019,0
London Borough of Sutton,01/07/2022,50215705,860.20,Premium Homecare Ltd,SOCIAL SERVICES RESIDENTIAL,Peoples Services,Home Care Services,A56019,0
London Borough of Sutton,01/07/2022,50218258,"3,410.80",Premium Homecare Ltd,SOCIAL SERVICES RESIDENTIAL,Peoples Services,Home Care Services,A56019,0
London Borough of Sutton,01/07/2022,50218259,"3,410.80",Premium Homecare Ltd,SOCIAL SERVICES RESIDENTIAL,Peoples Services,Home Care Services,A56019,0
London Borough of Sutton,01/07/2022,50218260,"1,186.80",Premium Homecare Ltd,SOCIAL SERVICES RESIDENTIAL,Peoples Services,Home Care Services,A56019,0
London Borough of Sutton,01/07/2022,50218269,"3,299.20",Premium Homecare Ltd,SOCIAL SERVICES RESIDENTIAL,Peoples Services,Home Care Services,A56019,0
London Borough of Sutton,01/07/2022,50220808,964.00,Premium Homecare Ltd,SOCIAL SERVICES RESIDENTIAL,Peoples Services,Home Care Services,A56019,0
London Borough of Sutton,01/07/2022,50220867,598.32,Premium Homecare Ltd,SOCIAL SERVICES RESIDENTIAL,Peoples Services,Home Care Services,A56019,0
London Borough of Sutton,01/07/2022,50220869,"3,520.20",Premium Homecare Ltd,SOCIAL SERVICES RESIDENTIAL,Peoples Services,Home Care Services,A56019,0
London Borough of Sutton,01/07/2022,50220869,71.20,Premium Homecare Ltd,SOCIAL SERVICES RESIDENTIAL,Peoples Services,Home Care Services,A56019,0
London Borough of Sutton,01/07/2022,20027875,"1,654.80",Present Communications Ltd,SUNDRY SUPPLIER - FINANCE,Resources,Hire of Rooms,A22010,0
London Borough of Sutton,01/07/2022,20028477,997.10,R & N Investment Properties Ltd,ACCOMMODATION BED & BREAKFAST,Environment Housing and Neighbourhoods,Temporary Protection - Homeless Persons,A62028,0
London Borough of Sutton,01/07/2022,20028478,997.10,R & N Investment Properties Ltd,ACCOMMODATION BED & BREAKFAST,Environment Housing and Neighbourhoods,Temporary Protection - Homeless Persons,A62028,0
London Borough of Sutton,01/07/2022,20028672,720.00,REDACTED - PERSONAL DATA,FOSTER PARENTS,Peoples Services,Specialist Adoption & Permanence (SGO),A56012,0
London Borough of Sutton,01/07/2022,20028546,"1,337.08",Scythe Cymru,SUNDRY SUPPLIER - ENV SERVICES,Environment Housing and Neighbourhoods,Equipment And Materials Purchase,A40000,0
London Borough of Sutton,01/07/2022,20027546,840.00,Shashees,ACCOMMODATION BED & BREAKFAST,Peoples Services,Approved Lodgings,A61000,0
London Borough of Sutton,01/07/2022,20027547,"4,548.00",Shashees,ACCOMMODATION BED & BREAKFAST,Environment Housing and Neighbourhoods,Bed & Breakfast,A56000,0
London Borough of Sutton,01/07/2022,50217545,"3,278.57",Silver Lining Fostering Ltd,CHILDREN'S SERVICES - FOSTERING & ADOPTION SERVICES,Peoples Services,Foster Parents Support,A44110,0
London Borough of Sutton,01/07/2022,50217591,"3,235.71",Silver Lining Fostering Ltd,CHILDREN'S SERVICES - FOSTERING & ADOPTION SERVICES,Peoples Services,Foster Parents Support,A44110,0
London Borough of Sutton,01/07/2022,50217645,"3,278.57",Silver Lining Fostering Ltd,CHILDREN'S SERVICES - FOSTERING & ADOPTION SERVICES,Peoples Services,Foster Parents Support,A44110,0
London Borough of Sutton,01/07/2022,50217662,"3,278.57",Silver Lining Fostering Ltd,CHILDREN'S SERVICES - FOSTERING & ADOPTION SERVICES,Peoples Services,Foster Parents Support,A44110,0
London Borough of Sutton,01/07/2022,20028524,"1,050.00",Smartspace Property Solution Ltd,AGRICULTURAL & ESTATE SERVICES,Environment Housing and Neighbourhoods,Temporary Protection - Homeless Persons,A62028,0
London Borough of Sutton,01/07/2022,20027679,"4,028.28",Transforming Young People Ltd,CHILDREN'S SERVICES - RESIDENTIAL,Peoples Services,Approved Lodgings,A61000,0
London Borough of Sutton,01/07/2022,20027681,"4,050.00",Transforming Young People Ltd,CHILDREN'S SERVICES - RESIDENTIAL,Peoples Services,Approved Lodgings,A61000,0
London Borough of Sutton,01/07/2022,20027682,"11,764.48",Transforming Young People Ltd,CHILDREN'S SERVICES - RESIDENTIAL,Peoples Services,Approved Lodgings,A61000,0
London Borough of Sutton,01/07/2022,50217586,"19,810.70",Transforming Young People Ltd,CHILDREN'S SERVICES - RESIDENTIAL,Peoples Services,Approved Lodgings,A61000,0
London Borough of Sutton,01/07/2022,50217593,"6,246.42",Transforming Young People Ltd,CHILDREN'S SERVICES - RESIDENTIAL,Peoples Services,Accommodation - Supported Living,A62001,0
London Borough of Sutton,01/07/2022,50217674,"22,660.00",Transforming Young People Ltd,CHILDREN'S SERVICES - RESIDENTIAL,Peoples Services,Residential Care-Children,A56115,0
London Borough of Sutton,01/07/2022,50215710,"1,528.28",Walsingham,SOCIAL SERVICES RESIDENTIAL,Peoples Services,Supported Living,A56088,0
London Borough of Sutton,01/07/2022,50215710,"5,072.79",Walsingham,SOCIAL SERVICES RESIDENTIAL,Peoples Services,Supported Living,A56088,0
London Borough of Sutton,01/07/2022,50215720,"2,036.57",Walsingham,SOCIAL SERVICES RESIDENTIAL,Peoples Services,Supported Living,A56088,0
London Borough of Sutton,01/07/2022,50215720,"4,486.63",Walsingham,SOCIAL SERVICES RESIDENTIAL,Peoples Services,Supported Living,A56088,0
London Borough of Sutton,01/07/2022,50215720,512.10,Walsingham,SOCIAL SERVICES RESIDENTIAL,Peoples Services,Supported Living,A56088,0
London Borough of Sutton,01/07/2022,50215721,"1,528.28",Walsingham,SOCIAL SERVICES RESIDENTIAL,Peoples Services,Supported Living,A56088,0
London Borough of Sutton,01/07/2022,50215721,"8,089.25",Walsingham,SOCIAL SERVICES RESIDENTIAL,Peoples Services,Supported Living,A56088,0
London Borough of Sutton,01/07/2022,50215722,"2,036.57",Walsingham,SOCIAL SERVICES RESIDENTIAL,Peoples Services,Supported Living,A56088,0
London Borough of Sutton,01/07/2022,50215722,198.17,Walsingham,SOCIAL SERVICES RESIDENTIAL,Peoples Services,Supported Living,A56088,0
London Borough of Sutton,01/07/2022,50215722,512.10,Walsingham,SOCIAL SERVICES RESIDENTIAL,Peoples Services,Supported Living,A56088,0
London Borough of Sutton,01/07/2022,20028955,"3,100.00",Wrythe Green Surgery,TCES RETAILERS (PHARMACYS),Health and Wellbeing,Provider Contract Payments,A44290,0
London Borough of Sutton,02/07/2022,20027652,"1,000.00",REDACTED - PERSONAL DATA,GRANTS & EX GRATIA PAYMENTS,Environment Housing and Neighbourhoods,Temporary Protection - Homeless Persons,A62028,0
London Borough of Sutton,02/07/2022,20027653,"1,350.00",REDACTED - PERSONAL DATA,PLS LANDLORDS,Environment Housing and Neighbourhoods,Temporary Protection - Homeless Persons,A62028,0
London Borough of Sutton,03/07/2022,50220813,526.49,Absolute Care Services Ltd,SOCIAL SERVICES DAY CARE,Peoples Services,Home Care Services,A56019,0
London Borough of Sutton,03/07/2022,50220813,75.21,Absolute Care Services Ltd,SOCIAL SERVICES DAY CARE,Peoples Services,Home Care Services,A56019,0
London Borough of Sutton,03/07/2022,50220813,105.82,Absolute Care Services Ltd,SOCIAL SERVICES DAY CARE,Peoples Services,Home Care Services,A56019,0
London Borough of Sutton,03/07/2022,50220815,409.11,Absolute Care Services Ltd,SOCIAL SERVICES DAY CARE,Peoples Services,Home Care Services,A56019,0
London Borough of Sutton,03/07/2022,50220815,12.99,Absolute Care Services Ltd,SOCIAL SERVICES DAY CARE,Peoples Services,Home Care Services,A56019,0
London Borough of Sutton,03/07/2022,50220815,100.50,Absolute Care Services Ltd,SOCIAL SERVICES DAY CARE,Peoples Services,Home Care Services,A56019,0
London Borough of Sutton,03/07/2022,50220821,118.85,Absolute Care Services Ltd,SOCIAL SERVICES DAY CARE,Peoples Services,Home Care Services,A56019,0
London Borough of Sutton,03/07/2022,50220821,153.58,Absolute Care Services Ltd,SOCIAL SERVICES DAY CARE,Peoples Services,Home Care Services,A56019,0
London Borough of Sutton,03/07/2022,50220821,322.53,Absolute Care Services Ltd,SOCIAL SERVICES DAY CARE,Peoples Services,Home Care Services,A56019,0
London Borough of Sutton,03/07/2022,50220926,551.18,Absolute Care Services Ltd,SOCIAL SERVICES DAY CARE,Peoples Services,Home Care Services,A56019,0
London Borough of Sutton,03/07/2022,50220929,612.36,Absolute Care Services Ltd,SOCIAL SERVICES DAY CARE,Peoples Services,Home Care Services,A56019,0
London Borough of Sutton,03/07/2022,50220950,551.18,Absolute Care Services Ltd,SOCIAL SERVICES DAY CARE,Peoples Services,Home Care Services,A56019,0
London Borough of Sutton,03/07/2022,50220950,34.98,Absolute Care Services Ltd,SOCIAL SERVICES DAY CARE,Peoples Services,Home Care Services,A56019,0
London Borough of Sutton,03/07/2022,50221011,801.68,Absolute Care Services Ltd,SOCIAL SERVICES DAY CARE,Peoples Services,Home Care Services,A56019,0
London Borough of Sutton,03/07/2022,50221011,46.69,Absolute Care Services Ltd,SOCIAL SERVICES DAY CARE,Peoples Services,Home Care Services,A56019,0
London Borough of Sutton,03/07/2022,50221058,784.31,Absolute Care Services Ltd,SOCIAL SERVICES DAY CARE,Peoples Services,Home Care Services,A56019,0
London Borough of Sutton,03/07/2022,50221058,103.41,Absolute Care Services Ltd,SOCIAL SERVICES DAY CARE,Peoples Services,Home Care Services,A56019,0
London Borough of Sutton,03/07/2022,50221069,64.32,Absolute Care Services Ltd,SOCIAL SERVICES DAY CARE,Peoples Services,Home Care Services,A56019,0
London Borough of Sutton,03/07/2022,50221069,562.80,Absolute Care Services Ltd,SOCIAL SERVICES DAY CARE,Peoples Services,Home Care Services,A56019,0
London Borough of Sutton,03/07/2022,50221097,46.14,Absolute Care Services Ltd,SOCIAL SERVICES DAY CARE,Peoples Services,Home Care Services,A56019,0
London Borough of Sutton,03/07/2022,50221097,484.50,Absolute Care Services Ltd,SOCIAL SERVICES DAY CARE,Peoples Services,Home Care Services,A56019,0
London Borough of Sutton,03/07/2022,50221104,16.08,Absolute Care Services Ltd,SOCIAL SERVICES DAY CARE,Peoples Services,Home Care Services,A56019,0
London Borough of Sutton,03/07/2022,50221104,506.52,Absolute Care Services Ltd,SOCIAL SERVICES DAY CARE,Peoples Services,Home Care Services,A56019,0
London Borough of Sutton,03/07/2022,50218215,827.97,Best at Home Domiciliary Care Services Ltd,SOCIAL SERVICES DAY CARE,Peoples Services,Home Care Services,A56019,0
London Borough of Sutton,03/07/2022,50218231,559.46,Best at Home Domiciliary Care Services Ltd,SOCIAL SERVICES DAY CARE,Peoples Services,Home Care Services,A56019,0
London Borough of Sutton,03/07/2022,50218232,"3,156.00",Best at Home Domiciliary Care Services Ltd,SOCIAL SERVICES DAY CARE,Peoples Services,Home Care Services,A56019,0
London Borough of Sutton,03/07/2022,50218236,981.94,Best at Home Domiciliary Care Services Ltd,SOCIAL SERVICES DAY CARE,Peoples Services,Home Care Services,A56019,0
London Borough of Sutton,03/07/2022,50218237,827.97,Best at Home Domiciliary Care Services Ltd,SOCIAL SERVICES DAY CARE,Peoples Services,Home Care Services,A56019,0
London Borough of Sutton,03/07/2022,50218247,827.97,Best at Home Domiciliary Care Services Ltd,SOCIAL SERVICES DAY CARE,Peoples Services,Home Care Services,A56019,0
London Borough of Sutton,03/07/2022,50218247,150.00,Best at Home Domiciliary Care Services Ltd,SOCIAL SERVICES DAY CARE,Peoples Services,Home Care Services,A56019,0
London Borough of Sutton,03/07/2022,50218253,827.97,Best at Home Domiciliary Care Services Ltd,SOCIAL SERVICES DAY CARE,Peoples Services,Home Care Services,A56019,0
London Borough of Sutton,03/07/2022,50218257,542.50,Best at Home Domiciliary Care Services Ltd,SOCIAL SERVICES DAY CARE,Peoples Services,Home Care Services,A56019,0
London Borough of Sutton,03/07/2022,50218322,580.39,Caremark (Sutton),SOCIAL SERVICES DAY CARE,Peoples Services,Home Care Services,A56019,0
London Borough of Sutton,03/07/2022,50218330,865.20,Caremark (Sutton),SOCIAL SERVICES DAY CARE,Peoples Services,Home Care Services,A56019,0
London Borough of Sutton,03/07/2022,50218358,803.40,Caremark (Sutton),SOCIAL SERVICES DAY CARE,Peoples Services,Home Care Services,A56019,0
London Borough of Sutton,03/07/2022,50218384,540.75,Caremark (Sutton),SOCIAL SERVICES DAY CARE,Peoples Services,Home Care Services,A56019,0
London Borough of Sutton,03/07/2022,50218405,251.92,Caremark (Sutton),SOCIAL SERVICES DAY CARE,Peoples Services,Home Care Services,A56019,0
London Borough of Sutton,03/07/2022,50218405,284.18,Caremark (Sutton),SOCIAL SERVICES DAY CARE,Peoples Services,Home Care Services,A56019,0
London Borough of Sutton,03/07/2022,50218409,801.93,Caremark (Sutton),SOCIAL SERVICES DAY CARE,Peoples Services,Home Care Services,A56019,0
London Borough of Sutton,03/07/2022,50218409,33.72,Caremark (Sutton),SOCIAL SERVICES DAY CARE,Peoples Services,Home Care Services,A56019,0
London Borough of Sutton,03/07/2022,50218417,"1,918.50",Caremark (Sutton),SOCIAL SERVICES DAY CARE,Peoples Services,Home Care Services,A56019,0
London Borough of Sutton,03/07/2022,50218430,965.62,Caremark (Sutton),SOCIAL SERVICES DAY CARE,Peoples Services,Home Care Services,A56019,0
London Borough of Sutton,03/07/2022,50218430,150.50,Caremark (Sutton),SOCIAL SERVICES DAY CARE,Peoples Services,Home Care Services,A56019,0
London Borough of Sutton,03/07/2022,50218441,500.43,Caremark (Sutton),SOCIAL SERVICES DAY CARE,Peoples Services,Home Care Services,A56019,0
London Borough of Sutton,03/07/2022,50225601,753.70,Caremark (Sutton),SOCIAL SERVICES DAY CARE,Peoples Services,Home Care Services,A56019,0
London Borough of Sutton,03/07/2022,50218268,597.00,Clovecare Ltd,SOCIAL SERVICES RESIDENTIAL,Peoples Services,Home Care Services,A56019,0
London Borough of Sutton,03/07/2022,50218273,887.29,Clovecare Ltd,SOCIAL SERVICES RESIDENTIAL,Peoples Services,Home Care Services,A56019,0
London Borough of Sutton,03/07/2022,50218273,47.84,Clovecare Ltd,SOCIAL SERVICES RESIDENTIAL,Peoples Services,Home Care Services,A56019,0
London Borough of Sutton,03/07/2022,50218279,715.00,Clovecare Ltd,SOCIAL SERVICES RESIDENTIAL,Peoples Services,Home Care Services,A56019,0
London Borough of Sutton,03/07/2022,50218342,504.00,Day and Nite Services,SOCIAL SERVICES DAY CARE,Peoples Services,Home Care Services,A56019,0
London Borough of Sutton,03/07/2022,50218434,560.00,Day and Nite Services,SOCIAL SERVICES DAY CARE,Peoples Services,Home Care Services,A56019,0
London Borough of Sutton,03/07/2022,50218317,552.83,Elite CarePlus Ltd,SOCIAL SERVICES DAY CARE,Peoples Services,Home Care Services,A56019,0
London Borough of Sutton,03/07/2022,50218386,737.10,Elite CarePlus Ltd,SOCIAL SERVICES DAY CARE,Peoples Services,Home Care Services,A56019,0
London Borough of Sutton,03/07/2022,50218388,719.55,Elite CarePlus Ltd,SOCIAL SERVICES DAY CARE,Peoples Services,Home Care Services,A56019,0
London Borough of Sutton,03/07/2022,50218400,675.68,Elite CarePlus Ltd,SOCIAL SERVICES DAY CARE,Peoples Services,Home Care Services,A56019,0
London Borough of Sutton,03/07/2022,50218447,552.83,Elite CarePlus Ltd,SOCIAL SERVICES DAY CARE,Peoples Services,Home Care Services,A56019,0
London Borough of Sutton,03/07/2022,50218451,552.83,Elite CarePlus Ltd,SOCIAL SERVICES DAY CARE,Peoples Services,Home Care Services,A56019,0
London Borough of Sutton,03/07/2022,50218925,551.15,Exodus Health Care Services Ltd,SOCIAL SERVICES RESIDENTIAL,Peoples Services,Home Care Services,A56019,0
London Borough of Sutton,03/07/2022,50218925,91.98,Exodus Health Care Services Ltd,SOCIAL SERVICES RESIDENTIAL,Peoples Services,Home Care Services,A56019,0
London Borough of Sutton,03/07/2022,50218927,612.50,Exodus Health Care Services Ltd,SOCIAL SERVICES RESIDENTIAL,Peoples Services,Home Care Services,A56019,0
London Borough of Sutton,03/07/2022,50218927,52.50,Exodus Health Care Services Ltd,SOCIAL SERVICES RESIDENTIAL,Peoples Services,Home Care Services,A56019,0
London Borough of Sutton,03/07/2022,50218928,551.25,Exodus Health Care Services Ltd,SOCIAL SERVICES RESIDENTIAL,Peoples Services,Home Care Services,A56019,0
London Borough of Sutton,03/07/2022,50218928,52.50,Exodus Health Care Services Ltd,SOCIAL SERVICES RESIDENTIAL,Peoples Services,Home Care Services,A56019,0
London Borough of Sutton,03/07/2022,50218930,551.25,Exodus Health Care Services Ltd,SOCIAL SERVICES RESIDENTIAL,Peoples Services,Home Care Services,A56019,0
London Borough of Sutton,03/07/2022,50218931,551.25,Exodus Health Care Services Ltd,SOCIAL SERVICES RESIDENTIAL,Peoples Services,Home Care Services,A56019,0
London Borough of Sutton,03/07/2022,50218936,612.50,Exodus Health Care Services Ltd,SOCIAL SERVICES RESIDENTIAL,Peoples Services,Home Care Services,A56019,0
London Borough of Sutton,03/07/2022,50218947,367.47,Exodus Health Care Services Ltd,SOCIAL SERVICES RESIDENTIAL,Peoples Services,Home Care Services,A56019,0
London Borough of Sutton,03/07/2022,50218947,336.91,Exodus Health Care Services Ltd,SOCIAL SERVICES RESIDENTIAL,Peoples Services,Home Care Services,A56019,0
London Borough of Sutton,03/07/2022,50218969,713.98,He Reigns Health Care Services Limited,SOCIAL SERVICES - OTHER,Peoples Services,Home Care Services,A56019,0
London Borough of Sutton,03/07/2022,50218990,615.98,He Reigns Health Care Services Limited,SOCIAL SERVICES - OTHER,Peoples Services,Home Care Services,A56019,0
London Borough of Sutton,03/07/2022,50218998,615.98,He Reigns Health Care Services Limited,SOCIAL SERVICES - OTHER,Peoples Services,Home Care Services,A56019,0
London Borough of Sutton,03/07/2022,50219003,615.98,He Reigns Health Care Services Limited,SOCIAL SERVICES - OTHER,Peoples Services,Home Care Services,A56019,0
London Borough of Sutton,03/07/2022,50219008,615.98,He Reigns Health Care Services Limited,SOCIAL SERVICES - OTHER,Peoples Services,Home Care Services,A56019,0
London Borough of Sutton,03/07/2022,50219011,615.98,He Reigns Health Care Services Limited,SOCIAL SERVICES - OTHER,Peoples Services,Home Care Services,A56019,0
London Borough of Sutton,03/07/2022,50219068,612.50,J.C. Michael Group,SOCIAL SERVICES DAY CARE,Peoples Services,Home Care Services,A56019,0
London Borough of Sutton,03/07/2022,20027649,"1,014.00",JME Investments Ltd,PLS LANDLORDS,Environment Housing and Neighbourhoods,Temporary Protection - Homeless Persons,A62028,0
London Borough of Sutton,03/07/2022,20027641,"1,680.00",REDACTED - PERSONAL DATA,GRANTS & EX GRATIA PAYMENTS,Environment Housing and Neighbourhoods,Bed & Breakfast,A56000,0
London Borough of Sutton,03/07/2022,20028337,"2,682.80",Mark Hatter Associates,SUNDRY SUPPLIER - EDUCATION,Peoples Services,Client Related Assessments,A56017,0
London Borough of Sutton,03/07/2022,20027639,"1,085.00",REDACTED - PERSONAL DATA,GRANTS & EX GRATIA PAYMENTS,Environment Housing and Neighbourhoods,Temporary Protection - Homeless Persons,A62028,0
London Borough of Sutton,03/07/2022,50215974,"1,584.00",Options Care Ltd,SOCIAL SERVICES DAY CARE,Peoples Services,Home Care Services,A56019,0
London Borough of Sutton,03/07/2022,50215974,125.97,Options Care Ltd,SOCIAL SERVICES DAY CARE,Peoples Services,Home Care Services,A56019,0
London Borough of Sutton,03/07/2022,50230168,"4,750.80",ROBIN HOOD,SOCIAL SERVICES RESIDENTIAL,Peoples Services,Supported Living,A56088,0
London Borough of Sutton,03/07/2022,50230169,534.80,ROBIN HOOD,SOCIAL SERVICES RESIDENTIAL,Peoples Services,Supported Living,A56088,0
London Borough of Sutton,03/07/2022,50215993,668.25,Sevacare UK Ltd,SOCIAL SERVICES RESIDENTIAL,Peoples Services,Home Care Services,A56019,0
London Borough of Sutton,03/07/2022,50215997,637.88,Sevacare UK Ltd,SOCIAL SERVICES RESIDENTIAL,Peoples Services,Home Care Services,A56019,0
London Borough of Sutton,03/07/2022,50218183,519.68,Simplified Staffing Ltd,SOCIAL SERVICES RESIDENTIAL,Peoples Services,Home Care Services,A56019,0
London Borough of Sutton,03/07/2022,20027650,"1,536.00",Sovereign Millennium Investments Ltd,PLS LANDLORDS,Environment Housing and Neighbourhoods,Temporary Protection - Homeless Persons,A62028,0
London Borough of Sutton,03/07/2022,50218295,491.04,Surecare Services (Croydon),SOCIAL SERVICES DAY CARE,Peoples Services,Home Care Services,A56019,0
London Borough of Sutton,03/07/2022,50218295,15.59,Surecare Services (Croydon),SOCIAL SERVICES DAY CARE,Peoples Services,Home Care Services,A56019,0
London Borough of Sutton,03/07/2022,50218309,567.78,Surecare Services (Croydon),SOCIAL SERVICES DAY CARE,Peoples Services,Home Care Services,A56019,0
London Borough of Sutton,03/07/2022,50219216,656.25,The Health Care Group (THCG) Ltd,SOCIAL SERVICES DAY CARE,Peoples Services,Home Care Services,A56019,0
London Borough of Sutton,03/07/2022,50219225,590.63,The Health Care Group (THCG) Ltd,SOCIAL SERVICES DAY CARE,Peoples Services,Home Care Services,A56019,0
London Borough of Sutton,03/07/2022,50219244,573.04,The Health Care Group (THCG) Ltd,SOCIAL SERVICES DAY CARE,Peoples Services,Home Care Services,A56019,0
London Borough of Sutton,03/07/2022,50219244,148.84,The Health Care Group (THCG) Ltd,SOCIAL SERVICES DAY CARE,Peoples Services,Home Care Services,A56019,0
London Borough of Sutton,03/07/2022,50219253,853.13,The Health Care Group (THCG) Ltd,SOCIAL SERVICES DAY CARE,Peoples Services,Home Care Services,A56019,0
London Borough of Sutton,03/07/2022,50219259,787.50,The Health Care Group (THCG) Ltd,SOCIAL SERVICES DAY CARE,Peoples Services,Home Care Services,A56019,0
London Borough of Sutton,03/07/2022,50219261,525.00,The Health Care Group (THCG) Ltd,SOCIAL SERVICES DAY CARE,Peoples Services,Home Care Services,A56019,0
London Borough of Sutton,03/07/2022,50219265,853.13,The Health Care Group (THCG) Ltd,SOCIAL SERVICES DAY CARE,Peoples Services,Home Care Services,A56019,0
London Borough of Sutton,03/07/2022,50219270,675.00,The Health Care Group (THCG) Ltd,SOCIAL SERVICES DAY CARE,Peoples Services,Home Care Services,A56019,0
London Borough of Sutton,03/07/2022,50216129,"1,123.50",Trinity Care Services Ltd,SOCIAL SERVICES DAY CARE,Peoples Services,Home Care Services,A56019,0
London Borough of Sutton,03/07/2022,50229080,577.80,Trinity Care Services Ltd,SOCIAL SERVICES DAY CARE,Peoples Services,Home Care Services,A56019,0
London Borough of Sutton,03/07/2022,50229088,585.83,Trinity Care Services Ltd,SOCIAL SERVICES DAY CARE,Peoples Services,Home Care Services,A56019,0
London Borough of Sutton,04/07/2022,20027693,"5,715.81",Absolute Care Services Ltd,SOCIAL SERVICES DAY CARE,Peoples Services,Homecare Core Services,A56020,0
London Borough of Sutton,04/07/2022,20027694,"5,926.51",Absolute Care Services Ltd,SOCIAL SERVICES DAY CARE,Peoples Services,Homecare Core Services,A56020,0
London Borough of Sutton,04/07/2022,20027695,"6,794.87",Absolute Care Services Ltd,SOCIAL SERVICES DAY CARE,Peoples Services,Homecare Core Services,A56020,0
London Borough of Sutton,04/07/2022,20028160,934.60,Alastair Fyfe Photography Limited,SUNDRY SUPPLIER - FINANCE,Resources,Other Supplies & Services,A44291,0
London Borough of Sutton,04/07/2022,50228852,"4,166.40",Care4Care Services Ltd,SOCIAL SERVICES DAY CARE,Peoples Services,Home Care Services,A56019,0
London Borough of Sutton,04/07/2022,20027766,"8,785.71",Caremore Group Ltd,CHILDREN'S SERVICES - FOSTERING & ADOPTION SERVICES,Peoples Services,Approved Lodgings,A61000,0
London Borough of Sutton,04/07/2022,50217675,"9,675.01",Caremore Group Ltd,CHILDREN'S SERVICES - FOSTERING & ADOPTION SERVICES,Peoples Services,Approved Lodgings,A61000,0
London Borough of Sutton,04/07/2022,20027633,"133,895.33",Cognus Ltd,LEGAL & PROFESSIONAL SERVICES,Peoples Services,Special Educational Needs,A51015,0
London Borough of Sutton,04/07/2022,20027634,"133,895.33",Cognus Ltd,LEGAL & PROFESSIONAL SERVICES,Peoples Services,Special Educational Needs,A51015,0
London Borough of Sutton,04/07/2022,20027635,"42,533.33",Cognus Ltd,LEGAL & PROFESSIONAL SERVICES,Peoples Services,Consultancy Services,A56007,0
London Borough of Sutton,04/07/2022,20027636,"14,404.17",Cognus Ltd,LEGAL & PROFESSIONAL SERVICES,Peoples Services,Consultancy Services,A56007,0
London Borough of Sutton,04/07/2022,20027637,"218,108.33",Cognus Ltd,LEGAL & PROFESSIONAL SERVICES,Peoples Services,Consultancy Services,A56007,0
London Borough of Sutton,04/07/2022,20027638,"150,275.00",Cognus Ltd,LEGAL & PROFESSIONAL SERVICES,Peoples Services,Consultancy Services,A56007,0
London Borough of Sutton,04/07/2022,20027640,"14,404.17",Cognus Ltd,LEGAL & PROFESSIONAL SERVICES,Peoples Services,Consultancy Services,A56007,0
London Borough of Sutton,04/07/2022,50218735,980.00,DWT Windows & Doors,CONSTRUCTION INDUSTRY,HRA,Payments to Contractors,C14000,0
London Borough of Sutton,04/07/2022,20027685,"2,632.00",Elite Guarding (UK) Ltd,GRANTS & EX GRATIA PAYMENTS,HRA,Payments to Contractors,C14000,0
London Borough of Sutton,04/07/2022,50215545,"2,087.22",Field Lane Foundation,CHARITIES & VOLUNTARY ORGNS,Peoples Services,Home Care Services,A56019,0
London Borough of Sutton,04/07/2022,20027699,"3,450.00",Global Resourcing Limited,TEMP STAFF & CONSULTANCY,Resources,Agency Staff - Other,A10505,0
London Borough of Sutton,04/07/2022,50215427,"5,118.71",IMW Ltd,CONSTRUCTION INDUSTRY,HRA,Payments to Contractors,C14000,0
London Borough of Sutton,04/07/2022,20027765,"1,181.35",Inform Cpi Ltd,OFFICE SERVICES,Resources,Professional Fees,A44066,0
London Borough of Sutton,04/07/2022,50215643,792.00,Lakeshore Care Ltd,SOCIAL SERVICES RESIDENTIAL,Peoples Services,Home Care Services,A56019,0
London Borough of Sutton,04/07/2022,50215643,55.00,Lakeshore Care Ltd,SOCIAL SERVICES RESIDENTIAL,Peoples Services,Home Care Services,A56019,0
London Borough of Sutton,04/07/2022,50220692,935.00,Lakeshore Care Ltd,SOCIAL SERVICES RESIDENTIAL,Peoples Services,Home Care Services,A56019,0
London Borough of Sutton,04/07/2022,50215663,525.00,Lavender Care Agency Ltd,SOCIAL SERVICES RESIDENTIAL,Peoples Services,Home Care Services,A56019,0
London Borough of Sutton,04/07/2022,50215676,430.00,Micbee Care & Employment Ltd,SOCIAL SERVICES RESIDENTIAL,Peoples Services,Home Care Services,A56019,0
London Borough of Sutton,04/07/2022,50215676,177.00,Micbee Care & Employment Ltd,SOCIAL SERVICES RESIDENTIAL,Peoples Services,Home Care Services,A56019,0
London Borough of Sutton,04/07/2022,50215694,756.00,Micbee Care & Employment Ltd,SOCIAL SERVICES RESIDENTIAL,Peoples Services,Home Care Services,A56019,0
London Borough of Sutton,04/07/2022,50215694,34.00,Micbee Care & Employment Ltd,SOCIAL SERVICES RESIDENTIAL,Peoples Services,Home Care Services,A56019,0
London Borough of Sutton,04/07/2022,50215695,686.00,Micbee Care & Employment Ltd,SOCIAL SERVICES RESIDENTIAL,Peoples Services,Home Care Services,A56019,0
London Borough of Sutton,04/07/2022,50215696,756.00,Micbee Care & Employment Ltd,SOCIAL SERVICES RESIDENTIAL,Peoples Services,Home Care Services,A56019,0
London Borough of Sutton,04/07/2022,20027700,"1,050.00",REDACTED - PERSONAL DATA,GRANTS & EX GRATIA PAYMENTS,Environment Housing and Neighbourhoods,Temporary Protection - Homeless Persons,A62028,0
London Borough of Sutton,04/07/2022,50215538,756.00,My Homecare Surrey,SOCIAL SERVICES RESIDENTIAL,Peoples Services,Home Care Services,A56019,0
London Borough of Sutton,04/07/2022,50215549,826.00,My Homecare Surrey,SOCIAL SERVICES RESIDENTIAL,Peoples Services,Home Care Services,A56019,0
London Borough of Sutton,04/07/2022,50215551,574.00,My Homecare Surrey,SOCIAL SERVICES RESIDENTIAL,Peoples Services,Home Care Services,A56019,0
London Borough of Sutton,04/07/2022,50215552,728.00,My Homecare Surrey,SOCIAL SERVICES RESIDENTIAL,Peoples Services,Home Care Services,A56019,0
London Borough of Sutton,04/07/2022,50215553,756.00,My Homecare Surrey,SOCIAL SERVICES RESIDENTIAL,Peoples Services,Home Care Services,A56019,0
London Borough of Sutton,04/07/2022,50215554,682.50,My Homecare Surrey,SOCIAL SERVICES RESIDENTIAL,Peoples Services,Home Care Services,A56019,0
London Borough of Sutton,04/07/2022,50215554,136.50,My Homecare Surrey,SOCIAL SERVICES RESIDENTIAL,Peoples Services,Home Care Services,A56019,0
London Borough of Sutton,04/07/2022,50215556,847.00,My Homecare Surrey,SOCIAL SERVICES RESIDENTIAL,Peoples Services,Home Care Services,A56019,0
London Borough of Sutton,04/07/2022,50215557,764.50,My Homecare Surrey,SOCIAL SERVICES RESIDENTIAL,Peoples Services,Home Care Services,A56019,0
London Borough of Sutton,04/07/2022,50215557,52.50,My Homecare Surrey,SOCIAL SERVICES RESIDENTIAL,Peoples Services,Home Care Services,A56019,0
London Borough of Sutton,04/07/2022,50215558,546.00,My Homecare Surrey,SOCIAL SERVICES RESIDENTIAL,Peoples Services,Home Care Services,A56019,0
London Borough of Sutton,04/07/2022,50215559,756.00,My Homecare Surrey,SOCIAL SERVICES RESIDENTIAL,Peoples Services,Home Care Services,A56019,0
London Borough of Sutton,04/07/2022,50215560,679.25,My Homecare Surrey,SOCIAL SERVICES RESIDENTIAL,Peoples Services,Home Care Services,A56019,0
London Borough of Sutton,04/07/2022,50215560,196.00,My Homecare Surrey,SOCIAL SERVICES RESIDENTIAL,Peoples Services,Home Care Services,A56019,0
London Borough of Sutton,04/07/2022,50215561,678.00,My Homecare Surrey,SOCIAL SERVICES RESIDENTIAL,Peoples Services,Home Care Services,A56019,0
London Borough of Sutton,04/07/2022,50215562,756.00,My Homecare Surrey,SOCIAL SERVICES RESIDENTIAL,Peoples Services,Home Care Services,A56019,0
London Borough of Sutton,04/07/2022,50215563,875.00,My Homecare Surrey,SOCIAL SERVICES RESIDENTIAL,Peoples Services,Home Care Services,A56019,0
London Borough of Sutton,04/07/2022,50215564,574.00,My Homecare Surrey,SOCIAL SERVICES RESIDENTIAL,Peoples Services,Home Care Services,A56019,0
London Borough of Sutton,04/07/2022,50215565,756.00,My Homecare Surrey,SOCIAL SERVICES RESIDENTIAL,Peoples Services,Home Care Services,A56019,0
London Borough of Sutton,04/07/2022,50215566,756.00,My Homecare Surrey,SOCIAL SERVICES RESIDENTIAL,Peoples Services,Home Care Services,A56019,0
London Borough of Sutton,04/07/2022,50215566,35.00,My Homecare Surrey,SOCIAL SERVICES RESIDENTIAL,Peoples Services,Home Care Services,A56019,0
London Borough of Sutton,04/07/2022,50215567,875.00,My Homecare Surrey,SOCIAL SERVICES RESIDENTIAL,Peoples Services,Home Care Services,A56019,0
London Borough of Sutton,04/07/2022,20027684,997.00,REDACTED - PERSONAL DATA,GRANTS & EX GRATIA PAYMENTS,Environment Housing and Neighbourhoods,Temporary Protection - Homeless Persons,A62028,0
London Borough of Sutton,04/07/2022,20027715,"2,640.17",Paypoint Network Ltd,OFFICE SERVICES,Resources,Transaction Charges,A44251,0
London Borough of Sutton,04/07/2022,20027721,"3,250.00",Pinnacle Chauffeur Transport Ltd,TAXI AND COACH HIRE,Resources,Hire of Transport - Non Staff,A32000,0
London Borough of Sutton,04/07/2022,50215540,"1,157.40",Royal Mencap Society,SOCIAL SERVICES DAY CARE,Peoples Services,Day Care Services,A56021,0
London Borough of Sutton,04/07/2022,50215712,"1,093.10",Royal Mencap Society,SOCIAL SERVICES DAY CARE,Peoples Services,Home Care Services,A56019,0
London Borough of Sutton,04/07/2022,50215713,978.80,Royal Mencap Society,SOCIAL SERVICES DAY CARE,Peoples Services,Supported Living,A56088,0
London Borough of Sutton,04/07/2022,50215717,"1,350.30",Royal Mencap Society,SOCIAL SERVICES DAY CARE,Peoples Services,Home Care Services,A56019,0
London Borough of Sutton,04/07/2022,20027783,"1,458,008.42",Sutton Housing Partnership,TEMP STAFF & CONSULTANCY,HRA,HRA - Special Services Total,A20053,0
London Borough of Sutton,04/07/2022,20027797,"-1,458,008.42",Sutton Housing Partnership,TEMP STAFF & CONSULTANCY,HRA,HRA - Special Services Total,A20053,0
London Borough of Sutton,04/07/2022,20027678,"1,200.00",Sutton Living Limited,OFFICE SUPPLIES,Environment Housing and Neighbourhoods,Agency Staff - Teachers,A10501,0
London Borough of Sutton,04/07/2022,20027611,"4,337.00",Theori Housing,ACCOMMODATION BED & BREAKFAST,Environment Housing and Neighbourhoods,Bed & Breakfast,A56000,0
London Borough of Sutton,05/07/2022,50215842,"5,236.07",Accomplish Group Ltd,SOCIAL SERVICES RESIDENTIAL,Peoples Services,Supported Living,A56088,0
London Borough of Sutton,05/07/2022,50215856,"3,080.00",Accomplish Group Ltd,SOCIAL SERVICES RESIDENTIAL,Peoples Services,Supported Living,A56088,0
London Borough of Sutton,05/07/2022,50218852,"4,671.40",Accomplish Group Ltd,SOCIAL SERVICES RESIDENTIAL,Peoples Services,Supported Living,A56088,0
London Borough of Sutton,05/07/2022,50219425,693.56,All Saints Benhilton C Of E,GRANTS & EX GRATIA PAYMENTS,Peoples Services,Top-up Funding,A51016,0
London Borough of Sutton,05/07/2022,50217554,"3,364.28",Ansacare Fostering Agency Ltd,CHILDREN'S SERVICES - FOSTERING & ADOPTION SERVICES,Peoples Services,Foster Parents Support,A44110,0
London Borough of Sutton,05/07/2022,50217621,"3,364.28",Ansacare Fostering Agency Ltd,CHILDREN'S SERVICES - FOSTERING & ADOPTION SERVICES,Peoples Services,Foster Parents Support,A44110,0
London Borough of Sutton,05/07/2022,50219426,"4,358.63",Avenue Primary Acadamy,GRANTS & EX GRATIA PAYMENTS,Peoples Services,Top-up Funding,A51016,0
London Borough of Sutton,05/07/2022,50219427,693.56,Avenue Primary Acadamy,GRANTS & EX GRATIA PAYMENTS,Peoples Services,Top-up Funding,A51016,0
London Borough of Sutton,05/07/2022,20027840,"17,500.00",Beddington Infants School,GRANTS & EX GRATIA PAYMENTS,Peoples Services,External Fees and Consultants,C20000,0
London Borough of Sutton,05/07/2022,50219429,"2,912.13",Beddington Park Primary (Academy),GRANTS & EX GRATIA PAYMENTS,Peoples Services,Top-up Funding,A51016,0
London Borough of Sutton,05/07/2022,20027854,"3,248.63",Beeches Tree Care,AGRICULTURAL & ESTATE SERVICES,Environment Housing and Neighbourhoods,Maintenance of trees,A28003,0
London Borough of Sutton,05/07/2022,20027806,"1,246.23",British Gas,UTILITIES,Health and Wellbeing,Electricity,A21000,0
London Borough of Sutton,05/07/2022,20027884,"579,839.23",Buxton Building Contractors Ltd,CONSTRUCTION INDUSTRY,HRA,Payments to Contractors,C14000,0
London Borough of Sutton,05/07/2022,20027972,650.00,REDACTED - PERSONAL DATA,SUNDRY SUPPLIER - EDUCATION,Peoples Services,Recruitment Expenses,A15026,0
London Borough of Sutton,05/07/2022,50215572,"1,653.50",Care4Care Services Ltd,SOCIAL SERVICES DAY CARE,Peoples Services,Home Care Services,A56019,0
London Borough of Sutton,05/07/2022,50215573,891.00,Care4Care Services Ltd,SOCIAL SERVICES DAY CARE,Peoples Services,Home Care Services,A56019,0
London Borough of Sutton,05/07/2022,50215579,891.00,Care4Care Services Ltd,SOCIAL SERVICES DAY CARE,Peoples Services,Home Care Services,A56019,0
London Borough of Sutton,05/07/2022,50215580,"3,266.70",Care4Care Services Ltd,SOCIAL SERVICES DAY CARE,Peoples Services,Home Care Services,A56019,0
London Borough of Sutton,05/07/2022,50215580,242.40,Care4Care Services Ltd,SOCIAL SERVICES DAY CARE,Peoples Services,Home Care Services,A56019,0
London Borough of Sutton,05/07/2022,50215606,"1,734.50",Care4Care Services Ltd,SOCIAL SERVICES DAY CARE,Peoples Services,Home Care Services,A56019,0
London Borough of Sutton,05/07/2022,50215638,"1,041.30",Care4Care Services Ltd,SOCIAL SERVICES DAY CARE,Peoples Services,Home Care Services,A56019,0
London Borough of Sutton,05/07/2022,50215660,"2,510.60",Care4Care Services Ltd,SOCIAL SERVICES DAY CARE,Peoples Services,Home Care Services,A56019,0
London Borough of Sutton,05/07/2022,50215661,891.00,Care4Care Services Ltd,SOCIAL SERVICES DAY CARE,Peoples Services,Home Care Services,A56019,0
London Borough of Sutton,05/07/2022,50215670,"1,306.00",Care4Care Services Ltd,SOCIAL SERVICES DAY CARE,Peoples Services,Home Care Services,A56019,0
London Borough of Sutton,05/07/2022,50215844,"1,846.00",Care4Care Services Ltd,SOCIAL SERVICES DAY CARE,Peoples Services,Home Care Services,A56019,0
London Borough of Sutton,05/07/2022,50219431,"1,900.88",Carshalton Boys Sports College (Academy),GRANTS & EX GRATIA PAYMENTS,Peoples Services,Top-up Funding,A51016,0
London Borough of Sutton,05/07/2022,50219432,"1,141.28",Cheam Common Infants School -ACADEMY,GRANTS & EX GRATIA PAYMENTS,Peoples Services,Top-up Funding,A51016,0
London Borough of Sutton,05/07/2022,50219433,673.90,Cheam Common Junior Academy,GRANTS & EX GRATIA PAYMENTS,Peoples Services,Top-up Funding,A51016,0
London Borough of Sutton,05/07/2022,50219428,"2,902.12",Barrow Hedges Primary School Academy,GRANTS & EX GRATIA PAYMENTS,Peoples Services,Top-up Funding,A51016,0
London Borough of Sutton,05/07/2022,50219764,635.04,Clear Thinking Care Limited,SOCIAL SERVICES RESIDENTIAL,Peoples Services,Supported Living,A56088,0
London Borough of Sutton,05/07/2022,50219765,635.04,Clear Thinking Care Limited,SOCIAL SERVICES RESIDENTIAL,Peoples Services,Supported Living,A56088,0
London Borough of Sutton,05/07/2022,50219766,635.04,Clear Thinking Care Limited,SOCIAL SERVICES RESIDENTIAL,Peoples Services,Supported Living,A56088,0
London Borough of Sutton,05/07/2022,50219767,635.04,Clear Thinking Care Limited,SOCIAL SERVICES RESIDENTIAL,Peoples Services,Supported Living,A56088,0
London Borough of Sutton,05/07/2022,50219768,635.04,Clear Thinking Care Limited,SOCIAL SERVICES RESIDENTIAL,Peoples Services,Supported Living,A56088,0
London Borough of Sutton,05/07/2022,50219769,635.04,Clear Thinking Care Limited,SOCIAL SERVICES RESIDENTIAL,Peoples Services,Supported Living,A56088,0
London Borough of Sutton,05/07/2022,50219770,635.04,Clear Thinking Care Limited,SOCIAL SERVICES RESIDENTIAL,Peoples Services,Supported Living,A56088,0
London Borough of Sutton,05/07/2022,50219771,635.04,Clear Thinking Care Limited,SOCIAL SERVICES RESIDENTIAL,Peoples Services,Supported Living,A56088,0
London Borough of Sutton,05/07/2022,50219772,635.04,Clear Thinking Care Limited,SOCIAL SERVICES RESIDENTIAL,Peoples Services,Supported Living,A56088,0
London Borough of Sutton,05/07/2022,50219773,635.04,Clear Thinking Care Limited,SOCIAL SERVICES RESIDENTIAL,Peoples Services,Supported Living,A56088,0
London Borough of Sutton,05/07/2022,20027826,"287,500.00",Community Action Sutton,GRANTS & EX GRATIA PAYMENTS,Resources,Provider Contract Payments,A44290,0
London Borough of Sutton,05/07/2022,20027846,960.00,Denhan Property Services,ACCOMMODATION BED & BREAKFAST,Environment Housing and Neighbourhoods,Bed & Breakfast,A56000,0
London Borough of Sutton,05/07/2022,20027847,"1,050.00",Denhan Property Services,ACCOMMODATION BED & BREAKFAST,Environment Housing and Neighbourhoods,Bed & Breakfast,A56000,0
London Borough of Sutton,05/07/2022,20027848,"1,567.50",Denhan Property Services,ACCOMMODATION BED & BREAKFAST,Environment Housing and Neighbourhoods,Bed & Breakfast,A56000,0
London Borough of Sutton,05/07/2022,20027841,"4,139.80",Dorchester Primary School,GRANTS & EX GRATIA PAYMENTS,Peoples Services,Purchase of IT Hardware,C16001,0
London Borough of Sutton,05/07/2022,50219435,"3,262.31",Dorchester Primary School,GRANTS & EX GRATIA PAYMENTS,Peoples Services,Top-up Funding,A51016,0
London Borough of Sutton,05/07/2022,50215718,"6,024.24",Frontier Support Services,SOCIAL SERVICES DAY CARE,Peoples Services,Supported Living,A56088,0
London Borough of Sutton,05/07/2022,50215719,"5,471.00",Frontier Support Services,SOCIAL SERVICES DAY CARE,Peoples Services,Supported Living,A56088,0
London Borough of Sutton,05/07/2022,50219279,"6,024.24",Frontier Support Services,SOCIAL SERVICES DAY CARE,Peoples Services,Supported Living,A56088,0
London Borough of Sutton,05/07/2022,50219287,"5,471.00",Frontier Support Services,SOCIAL SERVICES DAY CARE,Peoples Services,Supported Living,A56088,0
London Borough of Sutton,05/07/2022,50219436,"5,332.60",Green Wrythe Primary School,SCHOOL FUNDS,Peoples Services,Top-up Funding,A51016,0
London Borough of Sutton,05/07/2022,50219437,"2,239.10",Holy Trinity C Of E Junior School,GRANTS & EX GRATIA PAYMENTS,Peoples Services,Top-up Funding,A51016,0
London Borough of Sutton,05/07/2022,50219434,"2,168.44",Cheam Fields,GRANTS & EX GRATIA PAYMENTS,Peoples Services,Top-up Funding,A51016,0
London Borough of Sutton,05/07/2022,50219430,"3,401.25",Brookfield Primary (Academy),GRANTS & EX GRATIA PAYMENTS,Peoples Services,Top-up Funding,A51016,0
London Borough of Sutton,05/07/2022,20027858,"1,819.00",Liquona Ltd,SUNDRY SUPPLIER - EDUCATION,Peoples Services,Client Care/Assistance,A61011,0
London Borough of Sutton,05/07/2022,20028145,"7,416.00",London Councils,SUBSCRIPTIONS & PUBLICATIONS,Health and Wellbeing,Mobility Scheme for the Disabled,A61015,0
London Borough of Sutton,05/07/2022,20027799,939.34,REDACTED - PERSONAL DATA,PLS LANDLORDS,Environment Housing and Neighbourhoods,Temporary Protection - Homeless Persons,A62028,0
London Borough of Sutton,05/07/2022,50219480,612.50,REDACTED - PERSONAL DATA,CHILDREN'S SERVICES - SEN SERVICES,Peoples Services,Special Educational Needs,A51015,0
London Borough of Sutton,05/07/2022,50219438,590.40,Muschamp Primary School,GRANTS & EX GRATIA PAYMENTS,Peoples Services,Top-up Funding,A51016,0
London Borough of Sutton,05/07/2022,50219439,"1,438.50",Muschamp Primary School,GRANTS & EX GRATIA PAYMENTS,Peoples Services,Top-up Funding,A51016,0
London Borough of Sutton,05/07/2022,20028197,"3,338.90",Oxygen Finance Limited,LEGAL & PROFESSIONAL SERVICES,Resources,Professional Fees,A44066,0
London Borough of Sutton,05/07/2022,50219449,"26,565.69",Parkwood Hall Co-Operative Academy,ACADEMIC INSTNS - OTHER,Peoples Services,Top-up Funding,A51016,0
London Borough of Sutton,05/07/2022,50219450,"26,565.69",Parkwood Hall Co-Operative Academy,ACADEMIC INSTNS - OTHER,Peoples Services,Top-up Funding,A51016,0
London Borough of Sutton,05/07/2022,20027823,"12,000.00",Profurb Ltd,CONSTRUCTION INDUSTRY,HRA,Payments to Contractors,C14000,0
London Borough of Sutton,05/07/2022,20028282,"7,500.00",Riverside Community Association,GRANTS & EX GRATIA PAYMENTS,Environment Housing and Neighbourhoods,Provider Contract Payments,A44290,0
London Borough of Sutton,05/07/2022,20027889,"1,050.00",Royal Borough of Kingston upon Thames,CENTRAL & LOCAL GOVERNMENT,Resources,Equipment And Materials Purchase,A40000,0
London Borough of Sutton,05/07/2022,20027890,"2,781.49",Royal Borough of Kingston upon Thames,CENTRAL & LOCAL GOVERNMENT,Resources,Equipment And Materials Purchase,A40000,0
London Borough of Sutton,05/07/2022,20027657,"1,096.98",Smartspace Property Solution Ltd,AGRICULTURAL & ESTATE SERVICES,Environment Housing and Neighbourhoods,Temporary Protection - Homeless Persons,A62028,0
London Borough of Sutton,05/07/2022,50218174,714.90,Sutton Mencap  Charity Co.,SOCIAL SERVICES RESIDENTIAL,Peoples Services,Day Care Services,A56021,0
London Borough of Sutton,05/07/2022,50218175,953.20,Sutton Mencap  Charity Co.,SOCIAL SERVICES RESIDENTIAL,Peoples Services,Day Care Services,A56021,0
London Borough of Sutton,05/07/2022,50218178,953.20,Sutton Mencap  Charity Co.,SOCIAL SERVICES RESIDENTIAL,Peoples Services,Day Care Services,A56021,0
London Borough of Sutton,05/07/2022,50218782,714.90,Sutton Mencap  Charity Co.,SOCIAL SERVICES RESIDENTIAL,Peoples Services,Provider Contract Payments,A44290,0
London Borough of Sutton,05/07/2022,50218787,953.20,Sutton Mencap  Charity Co.,SOCIAL SERVICES RESIDENTIAL,Peoples Services,Provider Contract Payments,A44290,0
London Borough of Sutton,05/07/2022,50218792,714.90,Sutton Mencap  Charity Co.,SOCIAL SERVICES RESIDENTIAL,Peoples Services,Play Groups,A56111,0
London Borough of Sutton,05/07/2022,50218796,714.90,Sutton Mencap  Charity Co.,SOCIAL SERVICES RESIDENTIAL,Peoples Services,Play Groups,A56111,0
London Borough of Sutton,05/07/2022,50218798,714.90,Sutton Mencap  Charity Co.,SOCIAL SERVICES RESIDENTIAL,Peoples Services,Provider Contract Payments,A44290,0
London Borough of Sutton,05/07/2022,50218799,953.20,Sutton Mencap  Charity Co.,SOCIAL SERVICES RESIDENTIAL,Peoples Services,Provider Contract Payments,A44290,0
London Borough of Sutton,05/07/2022,50218804,714.90,Sutton Mencap  Charity Co.,SOCIAL SERVICES RESIDENTIAL,Peoples Services,Play Groups,A56111,0
London Borough of Sutton,05/07/2022,50218805,953.20,Sutton Mencap  Charity Co.,SOCIAL SERVICES RESIDENTIAL,Peoples Services,Play Groups,A56111,0
London Borough of Sutton,05/07/2022,50219440,966.67,St Elpheges RC Infants school,GRANTS & EX GRATIA PAYMENTS,Peoples Services,Top-up Funding,A51016,0
London Borough of Sutton,05/07/2022,50219441,725.00,St Elpheges RC Infants school,GRANTS & EX GRATIA PAYMENTS,Peoples Services,Top-up Funding,A51016,0
London Borough of Sutton,05/07/2022,50219442,"1,197.81",St Elpheges RC Infants school,GRANTS & EX GRATIA PAYMENTS,Peoples Services,Top-up Funding,A51016,0
London Borough of Sutton,06/07/2022,20027919,"172,626.16",ADAM HTT LTD,TAXI AND COACH HIRE,Peoples Services,Contract Cleaning,A27010,0
London Borough of Sutton,06/07/2022,20027885,"10,612.50",Age UK Sutton,SOCIAL SERVICES - OTHER,Resources,Payments to Voluntary Organisations,A54005,0
London Borough of Sutton,06/07/2022,20028427,"14,088.36",Breyer Group Plc,CONSTRUCTION INDUSTRY,HRA,Payments to Contractors,C14000,0
London Borough of Sutton,06/07/2022,20028428,"3,665.86",Breyer Group Plc,CONSTRUCTION INDUSTRY,HRA,Payments to Contractors,C14000,0
London Borough of Sutton,06/07/2022,20028437,"3,534.39",Breyer Group Plc,CONSTRUCTION INDUSTRY,HRA,Payments to Contractors,C14000,0
London Borough of Sutton,06/07/2022,20028438,"3,559.40",Breyer Group Plc,CONSTRUCTION INDUSTRY,HRA,Payments to Contractors,C14000,0
London Borough of Sutton,06/07/2022,50219445,759.40,Classroom Teachers Ltd,ACADEMIC INSTNS - OTHER,Peoples Services,Independent School Fees,A56002,0
London Borough of Sutton,06/07/2022,20027905,616.00,Fleet Tutors,TEMP STAFF & CONSULTANCY,Peoples Services,LAC - Education,A44280,0
London Borough of Sutton,06/07/2022,50215747,"1,440.00",Fleet Tutors,TEMP STAFF & CONSULTANCY,Peoples Services,Independent School Fees,A56002,0
London Borough of Sutton,06/07/2022,50215748,"2,844.00",Fleet Tutors,TEMP STAFF & CONSULTANCY,Peoples Services,Independent School Fees,A56002,0
London Borough of Sutton,06/07/2022,50215749,480.00,Fleet Tutors,TEMP STAFF & CONSULTANCY,Peoples Services,Independent School Fees,A56002,0
London Borough of Sutton,06/07/2022,50215750,"2,730.00",Fleet Tutors,TEMP STAFF & CONSULTANCY,Peoples Services,Independent School Fees,A56002,0
London Borough of Sutton,06/07/2022,50217632,"48,591.00",Houses Of Hope Care Group Ltd,CHILDREN'S SERVICE - OTHER,Peoples Services,Residential Care-Children,A56115,0
London Borough of Sutton,06/07/2022,50221146,825.01,James Askew & Son Ltd,BOOKS PUBLICATIONS STATIONERY,Health and Wellbeing,Books,A43050,0
London Borough of Sutton,06/07/2022,50221148,829.60,James Askew & Son Ltd,BOOKS PUBLICATIONS STATIONERY,Health and Wellbeing,Books,A43050,0
London Borough of Sutton,06/07/2022,50221151,840.08,James Askew & Son Ltd,BOOKS PUBLICATIONS STATIONERY,Health and Wellbeing,Books,A43050,0
London Borough of Sutton,06/07/2022,50221154,818.73,James Askew & Son Ltd,BOOKS PUBLICATIONS STATIONERY,Health and Wellbeing,Books,A43050,0
London Borough of Sutton,06/07/2022,50221157,663.51,James Askew & Son Ltd,BOOKS PUBLICATIONS STATIONERY,Health and Wellbeing,Books,A43050,0
London Borough of Sutton,06/07/2022,50221159,568.15,James Askew & Son Ltd,BOOKS PUBLICATIONS STATIONERY,Health and Wellbeing,Books,A43050,0
London Borough of Sutton,06/07/2022,50221160,566.54,James Askew & Son Ltd,BOOKS PUBLICATIONS STATIONERY,Health and Wellbeing,Books,A43050,0
London Borough of Sutton,06/07/2022,20028080,"6,638.19",REDACTED - PERSONAL DATA,SUNDRY SUPPLIER - HOUSING,Environment Housing and Neighbourhoods,PSL Payments To Landlords,A22031,0
London Borough of Sutton,06/07/2022,20028081,"5,793.96",REDACTED - PERSONAL DATA,SUNDRY SUPPLIER - HOUSING,Environment Housing and Neighbourhoods,PSL Payments To Landlords,A22031,0
London Borough of Sutton,06/07/2022,50215751,620.00,REDACTED - PERSONAL DATA,TEMP STAFF & CONSULTANCY,Peoples Services,Special Educational Needs,A51015,0
London Borough of Sutton,06/07/2022,20027961,"240,583.31",Matrix-SCM Ltd,TEMP STAFF & CONSULTANCY,Resources,Agency Staff - Other,A10505,0
London Borough of Sutton,06/07/2022,20027892,"1,030.00",REDACTED - PERSONAL DATA,GRANTS & EX GRATIA PAYMENTS,Environment Housing and Neighbourhoods,Temporary Protection - Homeless Persons,A62028,0
London Borough of Sutton,06/07/2022,20028079,580.00,West Barnes Properties,SUNDRY SUPPLIER - HOUSING,Environment Housing and Neighbourhoods,Rent Deposit Scheme,B32179,0
London Borough of Sutton,06/07/2022,20027955,"1,410.50",REDACTED - PERSONAL DATA,GRANTS & EX GRATIA PAYMENTS,Environment Housing and Neighbourhoods,Temporary Protection - Homeless Persons,A62028,0
London Borough of Sutton,06/07/2022,50215972,"14,574.96",Stick Care Ltd,SOCIAL SERVICES RESIDENTIAL,Peoples Services,Home Care Services,A56019,0
London Borough of Sutton,06/07/2022,50215848,730.55,Surrey & Borders Partnership NHS Trust,SOCIAL SERVICES RESIDENTIAL,Peoples Services,Day Care Services,A56021,0
London Borough of Sutton,06/07/2022,50215852,576.88,Surrey & Borders Partnership NHS Trust,SOCIAL SERVICES RESIDENTIAL,Peoples Services,Day Care Services,A56021,0
London Borough of Sutton,07/07/2022,20027965,895.00,Alljos Services Ltd,PREMISES - CLEANING & LAUNDRY,Environment Housing and Neighbourhoods,Grants Given For Capital Purposes,C20004,0
London Borough of Sutton,07/07/2022,20027977,"-1,960.00",Back on Track Housing Ltd,SOCIAL SERVICES - OTHER,Peoples Services,Approved Lodgings,A61000,0
London Borough of Sutton,07/07/2022,20028008,"18,576.67",Beddington Infants School,GRANTS & EX GRATIA PAYMENTS,Peoples Services,Payments to Contractors,C14000,0
London Borough of Sutton,07/07/2022,20027946,"4,917.54",Beeches Tree Care,AGRICULTURAL & ESTATE SERVICES,Environment Housing and Neighbourhoods,Highway Trees - Maintenance,A28005,0
London Borough of Sutton,07/07/2022,50218209,"3,156.00",Best at Home Domiciliary Care Services Ltd,SOCIAL SERVICES DAY CARE,Peoples Services,Home Care Services,A56019,0
London Borough of Sutton,07/07/2022,20028508,519.28,British Gas,UTILITIES,Resources,Electricity,A21000,0
London Borough of Sutton,07/07/2022,20028507,843.64,EDF Energy,UTILITIES,Environment Housing and Neighbourhoods,Electricity,A21000,0
London Borough of Sutton,07/07/2022,20028000,"2,112.49",L W Properties,SUNDRY SUPPLIER - HOUSING,Environment Housing and Neighbourhoods,PSL Payments To Landlords,A22031,0
London Borough of Sutton,07/07/2022,20028028,"11,439.00",London Councils,SUBSCRIPTIONS & PUBLICATIONS,Environment Housing and Neighbourhoods,Transport Committee for London,A51018,0
London Borough of Sutton,07/07/2022,20028131,590.00,student2UK,CHILDREN'S SERVICES - RESIDENTIAL,Peoples Services,Client Care/Assistance,A61011,0
London Borough of Sutton,07/07/2022,20028146,630.00,student2UK,CHILDREN'S SERVICES - RESIDENTIAL,Peoples Services,C.C.A Rent & Utilities,A61009,0
London Borough of Sutton,07/07/2022,20028149,590.00,student2UK,CHILDREN'S SERVICES - RESIDENTIAL,Peoples Services,C.C.A Rent & Utilities,A61009,0
London Borough of Sutton,07/07/2022,20028150,590.00,student2UK,CHILDREN'S SERVICES - RESIDENTIAL,Peoples Services,C.C.A Rent & Utilities,A61009,0
London Borough of Sutton,07/07/2022,20028001,"1,335.00",REDACTED - PERSONAL DATA,SUNDRY SUPPLIER - HOUSING,Environment Housing and Neighbourhoods,Miscellaneous Expenses,A49000,0
London Borough of Sutton,07/07/2022,20027969,987.28,REDACTED - PERSONAL DATA,SUNDRY SUPPLIER - HOUSING,Environment Housing and Neighbourhoods,PSL Payments To Landlords,A22031,0
London Borough of Sutton,07/07/2022,50216573,687.00,REDACTED - PERSONAL DATA,SOCIAL SERVICES RESIDENTIAL,Peoples Services,Approved Lodgings,A61000,0
London Borough of Sutton,07/07/2022,20027978,"1,960.00",RCS Private Hire Taxi,CARE LEAVERS,Peoples Services,Approved Lodgings,A61000,0
London Borough of Sutton,07/07/2022,50217292,536.60,REDACTED - PERSONAL DATA,UASC SUBS PAYMENTS,Peoples Services,Specialist Adoption & Permanence (SGO),A56012,0
London Borough of Sutton,07/07/2022,50217389,644.36,REDACTED - PERSONAL DATA,CHILDREN'S SERVICES - FOSTERING & ADOPTION SERVICES,Peoples Services,Adoptions Allowances,A56015,0
London Borough of Sutton,07/07/2022,50217390,545.60,REDACTED - PERSONAL DATA,CHILDREN'S SERVICES - FOSTERING & ADOPTION SERVICES,Peoples Services,Adoptions Allowances,A56015,0
London Borough of Sutton,07/07/2022,50217494,258.06,REDACTED - PERSONAL DATA,SOCIAL SERVICES - DIRECT PAYMENTS,Peoples Services,Fostering Allowances,A56008,0
London Borough of Sutton,07/07/2022,50217494,129.54,REDACTED - PERSONAL DATA,SOCIAL SERVICES - DIRECT PAYMENTS,Peoples Services,Fostering Allowances,A56008,0
London Borough of Sutton,07/07/2022,50217494,230.00,REDACTED - PERSONAL DATA,SOCIAL SERVICES - DIRECT PAYMENTS,Peoples Services,Fostering Allowances,A56008,0
London Borough of Sutton,07/07/2022,50217503,258.06,REDACTED - PERSONAL DATA,SOCIAL SERVICES - DIRECT PAYMENTS,Peoples Services,Fostering Allowances,A56008,0
London Borough of Sutton,07/07/2022,50217503,129.54,REDACTED - PERSONAL DATA,SOCIAL SERVICES - DIRECT PAYMENTS,Peoples Services,Fostering Allowances,A56008,0
London Borough of Sutton,07/07/2022,50217503,230.00,REDACTED - PERSONAL DATA,SOCIAL SERVICES - DIRECT PAYMENTS,Peoples Services,Fostering Allowances,A56008,0
London Borough of Sutton,07/07/2022,50217517,700.45,REDACTED - PERSONAL DATA,CHILDREN'S SERVICES - FOSTERING & ADOPTION SERVICES,Peoples Services,Fostering Allowances,A56008,0
London Borough of Sutton,07/07/2022,50217517,404.43,REDACTED - PERSONAL DATA,CHILDREN'S SERVICES - FOSTERING & ADOPTION SERVICES,Peoples Services,Fostering Allowances,A56008,0
London Borough of Sutton,07/07/2022,20027974,500.00,The Anna Freud Centre,SUNDRY SUPPLIER - EDUCATION,Peoples Services,Staff Development And Training,A15022,0
London Borough of Sutton,07/07/2022,50219193,"1,050.00",The Health Care Group (THCG) Ltd,SOCIAL SERVICES DAY CARE,Peoples Services,Home Care Services,A56019,0
London Borough of Sutton,07/07/2022,50219199,590.80,The Health Care Group (THCG) Ltd,SOCIAL SERVICES DAY CARE,Peoples Services,Home Care Services,A56019,0
London Borough of Sutton,07/07/2022,50219443,"4,802.30",Vibe Teacher Recruitment Ltd,TEMP STAFF & CONSULTANCY,Peoples Services,Independent School Fees,A56002,0
London Borough of Sutton,07/07/2022,50225762,"16,475.30",Vibe Teacher Recruitment Ltd,TEMP STAFF & CONSULTANCY,Peoples Services,Independent School Fees,A56002,0
London Borough of Sutton,07/07/2022,20028700,"2,000.00",Victor Films Ltd,OPERATIONAL EQUIPMENT/MATERIAL,Health and Wellbeing,Arts Programme,A44286,0
London Borough of Sutton,07/07/2022,20028557,"2,098.40",Wrixon Care Services,BOOKS PUBLICATIONS STATIONERY,Peoples Services,C.C.A Travel & Subsistance,A61010,0
London Borough of Sutton,08/07/2022,50217875,-750.40,Abbey Care Centre,SOCIAL SERVICES RESIDENTIAL,Peoples Services,Nursing Care - 3rd party top up payment,A56023,0
London Borough of Sutton,08/07/2022,50217875,"3,848.24",Abbey Care Centre,SOCIAL SERVICES RESIDENTIAL,Peoples Services,Nursing Care Short Term,A56026,0
London Borough of Sutton,08/07/2022,50217912,"3,848.24",Abbey Care Centre,SOCIAL SERVICES RESIDENTIAL,Peoples Services,Nursing Care - Ext Provider,A56025,0
London Borough of Sutton,08/07/2022,50217912,-750.40,Abbey Care Centre,SOCIAL SERVICES RESIDENTIAL,Peoples Services,Nursing Care - 3rd party top up payment,A56023,0
London Borough of Sutton,08/07/2022,50218074,-750.40,Abbey Care Centre,SOCIAL SERVICES RESIDENTIAL,Peoples Services,Nursing Care - 3rd party top up payment,A56023,0
London Borough of Sutton,08/07/2022,50218074,"3,848.24",Abbey Care Centre,SOCIAL SERVICES RESIDENTIAL,Peoples Services,Nursing Care Short Term,A56026,0
London Borough of Sutton,08/07/2022,50218074,"-1,492.80",Abbey Care Centre,SOCIAL SERVICES RESIDENTIAL,Peoples Services,Nursing Care - 3rd party top up payment,A56023,0
London Borough of Sutton,08/07/2022,50218172,-750.40,Abbey Care Centre,SOCIAL SERVICES RESIDENTIAL,Peoples Services,Nursing Care - 3rd party top up payment,A56023,0
London Borough of Sutton,08/07/2022,50218172,"3,848.24",Abbey Care Centre,SOCIAL SERVICES RESIDENTIAL,Peoples Services,Nursing Care Short Term,A56026,0
London Borough of Sutton,08/07/2022,50217708,"6,845.04",Achieve Together Limited,SOCIAL SERVICES RESIDENTIAL,Peoples Services,Residential Care - Ext Provider,A56114,0
London Borough of Sutton,08/07/2022,50217708,-432.50,Achieve Together Limited,SOCIAL SERVICES RESIDENTIAL,Peoples Services,Residential Care - Client Cont ( Net Paymt ),A56113,0
London Borough of Sutton,08/07/2022,50217785,"5,100.00",Achieve Together Limited,SOCIAL SERVICES RESIDENTIAL,Peoples Services,Residential Care - Ext Provider,A56114,0
London Borough of Sutton,08/07/2022,50217944,"5,810.56",Achieve Together Limited,SOCIAL SERVICES RESIDENTIAL,Peoples Services,Residential Care - Ext Provider,A56114,0
London Borough of Sutton,08/07/2022,50217972,"4,375.48",Achieve Together Limited,SOCIAL SERVICES RESIDENTIAL,Peoples Services,Residential Care - Ext Provider,A56114,0
London Borough of Sutton,08/07/2022,50217972,-488.80,Achieve Together Limited,SOCIAL SERVICES RESIDENTIAL,Peoples Services,Residential Care - Client Cont ( Net Paymt ),A56113,0
London Borough of Sutton,08/07/2022,50217999,"4,682.44",Achieve Together Limited,SOCIAL SERVICES RESIDENTIAL,Peoples Services,Residential Care - Ext Provider,A56114,0
London Borough of Sutton,08/07/2022,50217999,-492.80,Achieve Together Limited,SOCIAL SERVICES RESIDENTIAL,Peoples Services,Residential Care - Client Cont ( Net Paymt ),A56113,0
London Borough of Sutton,08/07/2022,50218173,"16,419.13",Achieve Together Limited,SOCIAL SERVICES RESIDENTIAL,Peoples Services,Residential Care - Ext Provider,A56114,0
London Borough of Sutton,08/07/2022,50218173,"28,508.45",Achieve Together Limited,SOCIAL SERVICES RESIDENTIAL,Peoples Services,Residential Care - Client Cont ( Net Paymt ),A56113,0
London Borough of Sutton,08/07/2022,50218173,"-35,590.63",Achieve Together Limited,SOCIAL SERVICES RESIDENTIAL,Peoples Services,Residential Care - Client Cont ( Net Paymt ),A56113,0
London Borough of Sutton,08/07/2022,50218173,"6,656.58",Achieve Together Limited,SOCIAL SERVICES RESIDENTIAL,Peoples Services,Residential Care - Client Cont ( Net Paymt ),A56113,0
London Borough of Sutton,08/07/2022,50217880,"5,620.60",Achieve Together Limited,SOCIAL SERVICES RESIDENTIAL,Peoples Services,Residential Care - Ext Provider,A56114,0
London Borough of Sutton,08/07/2022,50217880,-425.60,Achieve Together Limited,SOCIAL SERVICES RESIDENTIAL,Peoples Services,Residential Care - Client Cont ( Net Paymt ),A56113,0
London Borough of Sutton,08/07/2022,50218002,"11,047.88",Achieve Together Limited,SOCIAL SERVICES RESIDENTIAL,Peoples Services,Residential Care - Ext Provider,A56114,0
London Borough of Sutton,08/07/2022,50218093,"4,653.76",Achieve Together Limited,SOCIAL SERVICES RESIDENTIAL,Peoples Services,Residential Care - Ext Provider,A56114,0
London Borough of Sutton,08/07/2022,50217699,"3,012.36",Acorn Lodge,SOCIAL SERVICES RESIDENTIAL,Peoples Services,Residential Care - Ext Provider,A56114,0
London Borough of Sutton,08/07/2022,50217984,"3,232.48",Acorn Residential Home,SOCIAL SERVICES RESIDENTIAL,Peoples Services,Residential Care - Ext Provider,A56114,0
London Borough of Sutton,08/07/2022,50217715,"7,793.40",Aims Care Partnership,SOCIAL SERVICES RESIDENTIAL,Peoples Services,Residential Care - Ext Provider,A56114,0
London Borough of Sutton,08/07/2022,50217759,"8,716.00",Aitch Care Homes,SOCIAL SERVICES RESIDENTIAL,Peoples Services,Residential Care - Ext Provider,A56114,0
London Borough of Sutton,08/07/2022,50217703,"4,621.64",Allied Care (Mhs) Ltd,SOCIAL SERVICES - OTHER,Peoples Services,Residential Care - Ext Provider,A56114,0
London Borough of Sutton,08/07/2022,50217814,"5,397.60",Allswell Care Services Ltd,SOCIAL SERVICES RESIDENTIAL,Peoples Services,Residential Care - Ext Provider,A56114,0
London Borough of Sutton,08/07/2022,50217918,"6,609.52",Allswell Care Services Ltd,SOCIAL SERVICES RESIDENTIAL,Peoples Services,Residential Care - Ext Provider,A56114,0
London Borough of Sutton,08/07/2022,50218055,"5,397.60",Allswell Care Services Ltd,SOCIAL SERVICES RESIDENTIAL,Peoples Services,Residential Care - Ext Provider,A56114,0
London Borough of Sutton,08/07/2022,50217748,"1,840.00",ANA Treatment Centres Ltd,SOCIAL SERVICES RESIDENTIAL,Peoples Services,Interim Placements - Ext Provider,A56102,0
London Borough of Sutton,08/07/2022,50217748,-61.14,ANA Treatment Centres Ltd,SOCIAL SERVICES RESIDENTIAL,Peoples Services,Residential Care - Client Cont ( Net Paymt ),A56113,0
London Borough of Sutton,08/07/2022,50218101,"2,762.52",Anchor Trust,SOCIAL SERVICES RESIDENTIAL,Peoples Services,Residential Care - Ext Provider,A56114,0
London Borough of Sutton,08/07/2022,50217745,"-5,472.50",Ashurst Lodge Healthcare Ltd,CHILDREN'S SERVICES - RESIDENTIAL,Peoples Services,Nursing Care - 3rd party top up payment,A56023,0
London Borough of Sutton,08/07/2022,50217745,"10,945.00",Ashurst Lodge Healthcare Ltd,CHILDREN'S SERVICES - RESIDENTIAL,Peoples Services,Residential Care - Ext Provider,A56114,0
London Borough of Sutton,08/07/2022,50217700,"4,144.68",Aspen Place,SOCIAL SERVICES DAY CARE,Peoples Services,Nursing Care - Ext Provider,A56025,0
London Borough of Sutton,08/07/2022,50217722,"5,699.00",Aspens Charities,SOCIAL SERVICES RESIDENTIAL,Peoples Services,Residential Care - Ext Provider,A56114,0
London Borough of Sutton,08/07/2022,50217714,"6,024.56",Autism & Aspergers Care Services,SOCIAL SERVICES RESIDENTIAL,Peoples Services,Residential Care - Ext Provider,A56114,0
London Borough of Sutton,08/07/2022,50218025,"2,127.08",BNP Care Ltd,SOCIAL SERVICES RESIDENTIAL,Peoples Services,Residential Care - Ext Provider,A56114,0
London Borough of Sutton,08/07/2022,50218161,"3,942.88",BNP Care Ltd,SOCIAL SERVICES RESIDENTIAL,Peoples Services,Residential Care - Ext Provider,A56114,0
London Borough of Sutton,08/07/2022,50217789,"3,734.88",Bridge House Care Centre,SOCIAL SERVICES RESIDENTIAL,Peoples Services,Nursing Care Short Term,A56026,0
London Borough of Sutton,08/07/2022,50217789,-750.40,Bridge House Care Centre,SOCIAL SERVICES RESIDENTIAL,Peoples Services,Nursing Care - 3rd party top up payment,A56023,0
London Borough of Sutton,08/07/2022,50217790,"3,579.44",Bridge House Care Centre,SOCIAL SERVICES RESIDENTIAL,Peoples Services,Nursing Care - Ext Provider,A56025,0
London Borough of Sutton,08/07/2022,50217790,-632.64,Bridge House Care Centre,SOCIAL SERVICES RESIDENTIAL,Peoples Services,Nursing Care - 3rd party top up payment,A56023,0
London Borough of Sutton,08/07/2022,50217791,"3,848.24",Bridge House Care Centre,SOCIAL SERVICES RESIDENTIAL,Peoples Services,Nursing Care Short Term,A56026,0
London Borough of Sutton,08/07/2022,50217791,-750.40,Bridge House Care Centre,SOCIAL SERVICES RESIDENTIAL,Peoples Services,Nursing Care - 3rd party top up payment,A56023,0
London Borough of Sutton,08/07/2022,50217850,"3,848.24",Bridge House Care Centre,SOCIAL SERVICES RESIDENTIAL,Peoples Services,Nursing Care - Ext Provider,A56025,0
London Borough of Sutton,08/07/2022,50217850,-750.40,Bridge House Care Centre,SOCIAL SERVICES RESIDENTIAL,Peoples Services,Nursing Care - 3rd party top up payment,A56023,0
London Borough of Sutton,08/07/2022,50217871,"2,153.12",Bridge House Care Centre,SOCIAL SERVICES RESIDENTIAL,Peoples Services,Nursing Care - Ext Provider,A56025,0
London Borough of Sutton,08/07/2022,50217887,-750.40,Bridge House Care Centre,SOCIAL SERVICES RESIDENTIAL,Peoples Services,Nursing Care - 3rd party top up payment,A56023,0
London Borough of Sutton,08/07/2022,50217887,"-1,492.80",Bridge House Care Centre,SOCIAL SERVICES RESIDENTIAL,Peoples Services,Nursing Care - 3rd party top up payment,A56023,0
London Borough of Sutton,08/07/2022,50217887,"3,736.00",Bridge House Care Centre,SOCIAL SERVICES RESIDENTIAL,Peoples Services,Nursing Care - Ext Provider,A56025,0
London Borough of Sutton,08/07/2022,50217889,-750.40,Bridge House Care Centre,SOCIAL SERVICES RESIDENTIAL,Peoples Services,Nursing Care - 3rd party top up payment,A56023,0
London Borough of Sutton,08/07/2022,50217889,"3,736.00",Bridge House Care Centre,SOCIAL SERVICES RESIDENTIAL,Peoples Services,Nursing Care Short Term,A56026,0
London Borough of Sutton,08/07/2022,50217890,"3,821.24",Bridge House Care Centre,SOCIAL SERVICES RESIDENTIAL,Peoples Services,Nursing Care - Ext Provider,A56025,0
London Borough of Sutton,08/07/2022,50217890,-836.76,Bridge House Care Centre,SOCIAL SERVICES RESIDENTIAL,Peoples Services,Nursing Care - 3rd party top up payment,A56023,0
London Borough of Sutton,08/07/2022,50217922,"3,736.00",Bridge House Care Centre,SOCIAL SERVICES RESIDENTIAL,Peoples Services,Nursing Care - Ext Provider,A56025,0
London Borough of Sutton,08/07/2022,50217922,-750.40,Bridge House Care Centre,SOCIAL SERVICES RESIDENTIAL,Peoples Services,Nursing Care - 3rd party top up payment,A56023,0
London Borough of Sutton,08/07/2022,50217959,"3,719.80",Bridge House Care Centre,SOCIAL SERVICES RESIDENTIAL,Peoples Services,Nursing Care - Ext Provider,A56025,0
London Borough of Sutton,08/07/2022,50217959,-735.68,Bridge House Care Centre,SOCIAL SERVICES RESIDENTIAL,Peoples Services,Nursing Care - 3rd party top up payment,A56023,0
London Borough of Sutton,08/07/2022,50217960,"3,609.04",Bridge House Care Centre,SOCIAL SERVICES RESIDENTIAL,Peoples Services,Nursing Care - Ext Provider,A56025,0
London Borough of Sutton,08/07/2022,50217960,-662.24,Bridge House Care Centre,SOCIAL SERVICES RESIDENTIAL,Peoples Services,Nursing Care - 3rd party top up payment,A56023,0
London Borough of Sutton,08/07/2022,50218000,"3,734.88",Bridge House Care Centre,SOCIAL SERVICES RESIDENTIAL,Peoples Services,Nursing Care Short Term,A56026,0
London Borough of Sutton,08/07/2022,50218000,-750.40,Bridge House Care Centre,SOCIAL SERVICES RESIDENTIAL,Peoples Services,Nursing Care - 3rd party top up payment,A56023,0
London Borough of Sutton,08/07/2022,50218007,-750.40,Bridge House Care Centre,SOCIAL SERVICES RESIDENTIAL,Peoples Services,Nursing Care - 3rd party top up payment,A56023,0
London Borough of Sutton,08/07/2022,50218007,"3,848.24",Bridge House Care Centre,SOCIAL SERVICES RESIDENTIAL,Peoples Services,Nursing Care - Ext Provider,A56025,0
London Borough of Sutton,08/07/2022,50218032,"3,848.24",Bridge House Care Centre,SOCIAL SERVICES RESIDENTIAL,Peoples Services,Nursing Care - Ext Provider,A56025,0
London Borough of Sutton,08/07/2022,50218032,-750.40,Bridge House Care Centre,SOCIAL SERVICES RESIDENTIAL,Peoples Services,Nursing Care - 3rd party top up payment,A56023,0
London Borough of Sutton,08/07/2022,50218048,-750.40,Bridge House Care Centre,SOCIAL SERVICES RESIDENTIAL,Peoples Services,Nursing Care - 3rd party top up payment,A56023,0
London Borough of Sutton,08/07/2022,50218049,"3,734.88",Bridge House Care Centre,SOCIAL SERVICES RESIDENTIAL,Peoples Services,Nursing Care - Ext Provider,A56025,0
London Borough of Sutton,08/07/2022,50218080,"3,848.24",Bridge House Care Centre,SOCIAL SERVICES RESIDENTIAL,Peoples Services,Nursing Care - Ext Provider,A56025,0
London Borough of Sutton,08/07/2022,50218080,-750.40,Bridge House Care Centre,SOCIAL SERVICES RESIDENTIAL,Peoples Services,Nursing Care - 3rd party top up payment,A56023,0
London Borough of Sutton,08/07/2022,50218081,"3,720.16",Bridge House Care Centre,SOCIAL SERVICES RESIDENTIAL,Peoples Services,Nursing Care - Ext Provider,A56025,0
London Borough of Sutton,08/07/2022,50218081,-735.68,Bridge House Care Centre,SOCIAL SERVICES RESIDENTIAL,Peoples Services,Nursing Care - 3rd party top up payment,A56023,0
London Borough of Sutton,08/07/2022,50218109,"3,734.88",Bridge House Care Centre,SOCIAL SERVICES RESIDENTIAL,Peoples Services,Nursing Care - Ext Provider,A56025,0
London Borough of Sutton,08/07/2022,50218109,-750.40,Bridge House Care Centre,SOCIAL SERVICES RESIDENTIAL,Peoples Services,Nursing Care - 3rd party top up payment,A56023,0
London Borough of Sutton,08/07/2022,50218110,"3,665.20",Bridge House Care Centre,SOCIAL SERVICES RESIDENTIAL,Peoples Services,Nursing Care - Ext Provider,A56025,0
London Borough of Sutton,08/07/2022,50218110,-632.64,Bridge House Care Centre,SOCIAL SERVICES RESIDENTIAL,Peoples Services,Nursing Care - 3rd party top up payment,A56023,0
London Borough of Sutton,08/07/2022,50218111,"1,364.73",Bridge House Care Centre,SOCIAL SERVICES RESIDENTIAL,Peoples Services,Nursing Care - Ext Provider,A56025,0
London Borough of Sutton,08/07/2022,50218111,-298.84,Bridge House Care Centre,SOCIAL SERVICES RESIDENTIAL,Peoples Services,Nursing Care - 3rd party top up payment,A56023,0
London Borough of Sutton,08/07/2022,50217732,-766.48,British Home & Hospital For Incurables,SOCIAL SERVICES RESIDENTIAL,Peoples Services,Nursing Care - Client Cont ( Net paymt ),A56024,0
London Borough of Sutton,08/07/2022,50217732,"2,591.80",British Home & Hospital For Incurables,SOCIAL SERVICES RESIDENTIAL,Peoples Services,Nursing Care - Ext Provider,A56025,0
London Borough of Sutton,08/07/2022,50217736,"8,118.48",Butterfly's Care Homes Ltd,SOCIAL SERVICES RESIDENTIAL,Peoples Services,Residential Care - Ext Provider,A56114,0
London Borough of Sutton,08/07/2022,50217739,-938.08,Canterbury Oast Trust,SOCIAL SERVICES RESIDENTIAL,Peoples Services,Residential Care - Client Cont ( Net Paymt ),A56113,0
London Borough of Sutton,08/07/2022,50217739,204.72,Canterbury Oast Trust,SOCIAL SERVICES RESIDENTIAL,Peoples Services,One to One Care,A56108,0
London Borough of Sutton,08/07/2022,50217739,"4,060.72",Canterbury Oast Trust,SOCIAL SERVICES RESIDENTIAL,Peoples Services,Residential Care - Ext Provider,A56114,0
London Borough of Sutton,08/07/2022,50218075,"-3,000.00",Care Concern Group ,SOCIAL SERVICES RESIDENTIAL,Peoples Services,Nursing Care - 3rd party top up payment,A56023,0
London Borough of Sutton,08/07/2022,50218075,-750.40,Care Concern Group ,SOCIAL SERVICES RESIDENTIAL,Peoples Services,Nursing Care - 3rd party top up payment,A56023,0
London Borough of Sutton,08/07/2022,50218075,"6,750.40",Care Concern Group ,SOCIAL SERVICES RESIDENTIAL,Peoples Services,Nursing Care - Ext Provider,A56025,0
London Borough of Sutton,08/07/2022,50218076,"-2,500.00",Care Concern Group ,SOCIAL SERVICES RESIDENTIAL,Peoples Services,Nursing Care - 3rd party top up payment,A56023,0
London Borough of Sutton,08/07/2022,50218076,-836.76,Care Concern Group ,SOCIAL SERVICES RESIDENTIAL,Peoples Services,Nursing Care - 3rd party top up payment,A56023,0
London Borough of Sutton,08/07/2022,50218076,"5,836.76",Care Concern Group ,SOCIAL SERVICES RESIDENTIAL,Peoples Services,Nursing Care - Ext Provider,A56025,0
London Borough of Sutton,08/07/2022,50218103,"3,320.32",Care Concern Group ,SOCIAL SERVICES RESIDENTIAL,Peoples Services,Residential Care - Ext Provider,A56114,0
London Borough of Sutton,08/07/2022,50217906,"3,768.36",Care Direct UK Ltd,SOCIAL SERVICES RESIDENTIAL,Peoples Services,Residential Care - Ext Provider,A56114,0
London Borough of Sutton,08/07/2022,50217691,-468.50,Care UK Homecare Ltd,SOCIAL SERVICES RESIDENTIAL,Peoples Services,Residential Care - Client Cont ( Net Paymt ),A56113,0
London Borough of Sutton,08/07/2022,50217691,"4,772.96",Care UK Homecare Ltd,SOCIAL SERVICES RESIDENTIAL,Peoples Services,Residential Care - Ext Provider,A56114,0
London Borough of Sutton,08/07/2022,50217777,-933.20,Care UK Homecare Ltd,SOCIAL SERVICES RESIDENTIAL,Peoples Services,Nursing Care - 3rd party top up payment,A56023,0
London Borough of Sutton,08/07/2022,50217777,"4,669.20",Care UK Homecare Ltd,SOCIAL SERVICES RESIDENTIAL,Peoples Services,Nursing Care Short Term,A56026,0
London Borough of Sutton,08/07/2022,50217777,-750.40,Care UK Homecare Ltd,SOCIAL SERVICES RESIDENTIAL,Peoples Services,Nursing Care - 3rd party top up payment,A56023,0
London Borough of Sutton,08/07/2022,50217782,-662.24,Care UK Homecare Ltd,SOCIAL SERVICES RESIDENTIAL,Peoples Services,Nursing Care - 3rd party top up payment,A56023,0
London Borough of Sutton,08/07/2022,50217782,"3,696.24",Care UK Homecare Ltd,SOCIAL SERVICES RESIDENTIAL,Peoples Services,Nursing Care - Ext Provider,A56025,0
London Borough of Sutton,08/07/2022,50217992,"3,960.00",Care UK Homecare Ltd,SOCIAL SERVICES RESIDENTIAL,Peoples Services,Nursing Care Short Term,A56026,0
London Borough of Sutton,08/07/2022,50217992,-836.76,Care UK Homecare Ltd,SOCIAL SERVICES RESIDENTIAL,Peoples Services,Nursing Care - 3rd party top up payment,A56023,0
London Borough of Sutton,08/07/2022,50218039,"13,718.57",Care UK Homecare Ltd,SOCIAL SERVICES RESIDENTIAL,Peoples Services,Nursing Care - Ext Provider,A56025,0
London Borough of Sutton,08/07/2022,50218039,"-2,898.78",Care UK Homecare Ltd,SOCIAL SERVICES RESIDENTIAL,Peoples Services,Nursing Care - 3rd party top up payment,A56023,0
London Borough of Sutton,08/07/2022,50217776,"5,739.60",Caretech Community Services Ltd,SOCIAL SERVICES RESIDENTIAL,Peoples Services,Residential Care - Ext Provider,A56114,0
London Borough of Sutton,08/07/2022,50217945,"5,742.08",Caretech Community Services Ltd,SOCIAL SERVICES RESIDENTIAL,Peoples Services,Residential Care - Ext Provider,A56114,0
London Borough of Sutton,08/07/2022,50217945,-710.00,Caretech Community Services Ltd,SOCIAL SERVICES RESIDENTIAL,Peoples Services,Residential Care - Client Cont ( Net Paymt ),A56113,0
London Borough of Sutton,08/07/2022,50217946,"5,742.08",Caretech Community Services Ltd,SOCIAL SERVICES RESIDENTIAL,Peoples Services,Residential Care - Ext Provider,A56114,0
London Borough of Sutton,08/07/2022,50217946,-438.80,Caretech Community Services Ltd,SOCIAL SERVICES RESIDENTIAL,Peoples Services,Residential Care - Client Cont ( Net Paymt ),A56113,0
London Borough of Sutton,08/07/2022,50218129,"5,889.60",Caretech Community Services Ltd,SOCIAL SERVICES RESIDENTIAL,Peoples Services,Residential Care - Ext Provider,A56114,0
London Borough of Sutton,08/07/2022,50218129,-627.80,Caretech Community Services Ltd,SOCIAL SERVICES RESIDENTIAL,Peoples Services,Residential Care - Client Cont ( Net Paymt ),A56113,0
London Borough of Sutton,08/07/2022,50217908,"5,684.08",Carlene House,SOCIAL SERVICES RESIDENTIAL,Peoples Services,Residential Care - Ext Provider,A56114,0
London Borough of Sutton,08/07/2022,50217985,"5,684.08",Carlene House,SOCIAL SERVICES RESIDENTIAL,Peoples Services,Residential Care - Ext Provider,A56114,0
London Borough of Sutton,08/07/2022,50218064,"5,684.08",Carlene House,SOCIAL SERVICES RESIDENTIAL,Peoples Services,Residential Care - Ext Provider,A56114,0
London Borough of Sutton,08/07/2022,50218065,"5,684.08",Carlene House,SOCIAL SERVICES RESIDENTIAL,Peoples Services,Residential Care - Ext Provider,A56114,0
London Borough of Sutton,08/07/2022,50218066,"5,684.08",Carlene House,SOCIAL SERVICES RESIDENTIAL,Peoples Services,Residential Care - Ext Provider,A56114,0
London Borough of Sutton,08/07/2022,50218067,"5,684.08",Carlene House,SOCIAL SERVICES RESIDENTIAL,Peoples Services,Residential Care - Ext Provider,A56114,0
London Borough of Sutton,08/07/2022,50218126,"5,684.08",Carlene House,SOCIAL SERVICES RESIDENTIAL,Peoples Services,Residential Care - Ext Provider,A56114,0
London Borough of Sutton,08/07/2022,50217773,"3,821.24",Chegworth Nursing Home Bayswift Ltd,SOCIAL SERVICES RESIDENTIAL,Peoples Services,Nursing Care Short Term,A56026,0
London Borough of Sutton,08/07/2022,50217773,-836.76,Chegworth Nursing Home Bayswift Ltd,SOCIAL SERVICES RESIDENTIAL,Peoples Services,Nursing Care - 3rd party top up payment,A56023,0
London Borough of Sutton,08/07/2022,50217797,"3,665.20",Chegworth Nursing Home Bayswift Ltd,SOCIAL SERVICES RESIDENTIAL,Peoples Services,Nursing Care - Ext Provider,A56025,0
London Borough of Sutton,08/07/2022,50217797,-632.64,Chegworth Nursing Home Bayswift Ltd,SOCIAL SERVICES RESIDENTIAL,Peoples Services,Nursing Care - 3rd party top up payment,A56023,0
London Borough of Sutton,08/07/2022,50217798,"3,848.24",Chegworth Nursing Home Bayswift Ltd,SOCIAL SERVICES RESIDENTIAL,Peoples Services,Nursing Care - Ext Provider,A56025,0
London Borough of Sutton,08/07/2022,50217798,-750.40,Chegworth Nursing Home Bayswift Ltd,SOCIAL SERVICES RESIDENTIAL,Peoples Services,Nursing Care - 3rd party top up payment,A56023,0
London Borough of Sutton,08/07/2022,50217870,"4,150.40",Chegworth Nursing Home Bayswift Ltd,SOCIAL SERVICES RESIDENTIAL,Peoples Services,Nursing Care - Ext Provider,A56025,0
London Borough of Sutton,08/07/2022,50217881,"3,734.88",Chegworth Nursing Home Bayswift Ltd,SOCIAL SERVICES RESIDENTIAL,Peoples Services,Nursing Care Short Term,A56026,0
London Borough of Sutton,08/07/2022,50217881,-750.40,Chegworth Nursing Home Bayswift Ltd,SOCIAL SERVICES RESIDENTIAL,Peoples Services,Nursing Care - 3rd party top up payment,A56023,0
London Borough of Sutton,08/07/2022,50217891,-735.68,Chegworth Nursing Home Bayswift Ltd,SOCIAL SERVICES RESIDENTIAL,Peoples Services,Nursing Care - 3rd party top up payment,A56023,0
London Borough of Sutton,08/07/2022,50217891,"3,720.16",Chegworth Nursing Home Bayswift Ltd,SOCIAL SERVICES RESIDENTIAL,Peoples Services,Nursing Care - Ext Provider,A56025,0
London Borough of Sutton,08/07/2022,50217940,-632.64,Chegworth Nursing Home Bayswift Ltd,SOCIAL SERVICES RESIDENTIAL,Peoples Services,Nursing Care - 3rd party top up payment,A56023,0
London Borough of Sutton,08/07/2022,50217940,"3,919.08",Chegworth Nursing Home Bayswift Ltd,SOCIAL SERVICES RESIDENTIAL,Peoples Services,Nursing Care - Ext Provider,A56025,0
London Borough of Sutton,08/07/2022,50217942,"4,149.92",Chegworth Nursing Home Bayswift Ltd,SOCIAL SERVICES RESIDENTIAL,Peoples Services,Nursing Care - Ext Provider,A56025,0
London Borough of Sutton,08/07/2022,50217942,-750.40,Chegworth Nursing Home Bayswift Ltd,SOCIAL SERVICES RESIDENTIAL,Peoples Services,Nursing Care - 3rd party top up payment,A56023,0
London Borough of Sutton,08/07/2022,50217951,-662.24,Chegworth Nursing Home Bayswift Ltd,SOCIAL SERVICES RESIDENTIAL,Peoples Services,Nursing Care - 3rd party top up payment,A56023,0
London Borough of Sutton,08/07/2022,50217951,"4,955.56",Chegworth Nursing Home Bayswift Ltd,SOCIAL SERVICES RESIDENTIAL,Peoples Services,Nursing Care Short Term,A56026,0
London Borough of Sutton,08/07/2022,50217965,"3,753.20",Chegworth Nursing Home Bayswift Ltd,SOCIAL SERVICES RESIDENTIAL,Peoples Services,Nursing Care - Ext Provider,A56025,0
London Borough of Sutton,08/07/2022,50217965,-735.68,Chegworth Nursing Home Bayswift Ltd,SOCIAL SERVICES RESIDENTIAL,Peoples Services,Nursing Care - 3rd party top up payment,A56023,0
London Borough of Sutton,08/07/2022,50217993,"3,734.88",Chegworth Nursing Home Bayswift Ltd,SOCIAL SERVICES RESIDENTIAL,Peoples Services,Nursing Care Short Term,A56026,0
London Borough of Sutton,08/07/2022,50217993,-750.40,Chegworth Nursing Home Bayswift Ltd,SOCIAL SERVICES RESIDENTIAL,Peoples Services,Nursing Care - 3rd party top up payment,A56023,0
London Borough of Sutton,08/07/2022,50218105,"2,905.28",Chegworth Nursing Home Bayswift Ltd,SOCIAL SERVICES RESIDENTIAL,Peoples Services,Nursing Care Short Term,A56026,0
London Borough of Sutton,08/07/2022,50218152,"3,665.20",Chegworth Nursing Home Bayswift Ltd,SOCIAL SERVICES RESIDENTIAL,Peoples Services,Nursing Care - Ext Provider,A56025,0
London Borough of Sutton,08/07/2022,50218152,-632.64,Chegworth Nursing Home Bayswift Ltd,SOCIAL SERVICES RESIDENTIAL,Peoples Services,Nursing Care - 3rd party top up payment,A56023,0
London Borough of Sutton,08/07/2022,50217839,"2,895.32",Cherry Lodge,SOCIAL SERVICES RESIDENTIAL,Peoples Services,Residential Care - Ext Provider,A56114,0
London Borough of Sutton,08/07/2022,50217839,-460.04,Cherry Lodge,SOCIAL SERVICES RESIDENTIAL,Peoples Services,Residential Care - Client Cont ( Net Paymt ),A56113,0
London Borough of Sutton,08/07/2022,50217919,"3,486.32",Cherry Lodge,SOCIAL SERVICES RESIDENTIAL,Peoples Services,Residential Care - Ext Provider,A56114,0
London Borough of Sutton,08/07/2022,50218094,"6,923.72",CHHG Ltd ,SOCIAL SERVICES RESIDENTIAL,Peoples Services,Nursing Care - Ext Provider,A56025,0
London Borough of Sutton,08/07/2022,50218094,-750.40,CHHG Ltd ,SOCIAL SERVICES RESIDENTIAL,Peoples Services,Nursing Care - 3rd party top up payment,A56023,0
London Borough of Sutton,08/07/2022,50218164,-735.68,CHHG Ltd ,SOCIAL SERVICES RESIDENTIAL,Peoples Services,Nursing Care - 3rd party top up payment,A56023,0
London Borough of Sutton,08/07/2022,50218164,"3,927.68",CHHG Ltd ,SOCIAL SERVICES RESIDENTIAL,Peoples Services,Nursing Care - Ext Provider,A56025,0
London Borough of Sutton,08/07/2022,50219491,"5,428.72",Children's Trust,CHILDREN'S SERVICES - DAY CARE,Peoples Services,Independent School Fees,A56002,0
London Borough of Sutton,08/07/2022,50219492,"4,557.62",Children's Trust,CHILDREN'S SERVICES - DAY CARE,Peoples Services,Independent School Fees,A56002,0
London Borough of Sutton,08/07/2022,50219493,"5,522.96",Children's Trust,CHILDREN'S SERVICES - DAY CARE,Peoples Services,Independent School Fees,A56002,0
London Borough of Sutton,08/07/2022,50217835,"7,512.24",Choice Care Group (Surrey) Ltd,SOCIAL SERVICES RESIDENTIAL,Peoples Services,Residential Care - Ext Provider,A56114,0
London Borough of Sutton,08/07/2022,50217853,"8,682.92",Choice Care Group (Surrey) Ltd,SOCIAL SERVICES RESIDENTIAL,Peoples Services,Residential Care - Ext Provider,A56114,0
London Borough of Sutton,08/07/2022,50218104,"7,809.32",Choice Care Group (Surrey) Ltd,SOCIAL SERVICES RESIDENTIAL,Peoples Services,Residential Care - Ext Provider,A56114,0
London Borough of Sutton,08/07/2022,50218135,"7,793.40",Choice Care Group (Surrey) Ltd,SOCIAL SERVICES RESIDENTIAL,Peoples Services,Residential Care - Ext Provider,A56114,0
London Borough of Sutton,08/07/2022,50218135,-367.80,Choice Care Group (Surrey) Ltd,SOCIAL SERVICES RESIDENTIAL,Peoples Services,Residential Care - Client Cont ( Net Paymt ),A56113,0
London Borough of Sutton,08/07/2022,50217760,"5,716.12",Choice Support,GRANTS & EX GRATIA PAYMENTS,Peoples Services,Residential Care - Ext Provider,A56114,0
London Borough of Sutton,08/07/2022,20028034,997.10,REDACTED - PERSONAL DATA,GRANTS & EX GRATIA PAYMENTS,Environment Housing and Neighbourhoods,Temporary Protection - Homeless Persons,A62028,0
London Borough of Sutton,08/07/2022,50217794,"6,487.64",Claremont Care Svs Ltd,SOCIAL SERVICES RESIDENTIAL,Peoples Services,Nursing Care - Ext Provider,A56025,0
London Borough of Sutton,08/07/2022,50217794,-750.40,Claremont Care Svs Ltd,SOCIAL SERVICES RESIDENTIAL,Peoples Services,Nursing Care - 3rd party top up payment,A56023,0
London Borough of Sutton,08/07/2022,50217795,"14,613.88",Claremont Care Svs Ltd,SOCIAL SERVICES RESIDENTIAL,Peoples Services,Nursing Care - Ext Provider,A56025,0
London Borough of Sutton,08/07/2022,50217795,"-11,424.00",Claremont Care Svs Ltd,SOCIAL SERVICES RESIDENTIAL,Peoples Services,Nursing Care - 3rd party top up payment,A56023,0
London Borough of Sutton,08/07/2022,50217852,-735.68,Claremont Care Svs Ltd,SOCIAL SERVICES RESIDENTIAL,Peoples Services,Nursing Care - 3rd party top up payment,A56023,0
London Borough of Sutton,08/07/2022,50217852,"5,367.84",Claremont Care Svs Ltd,SOCIAL SERVICES RESIDENTIAL,Peoples Services,Nursing Care - Ext Provider,A56025,0
London Borough of Sutton,08/07/2022,50217930,"3,734.88",Claremont Care Svs Ltd,SOCIAL SERVICES RESIDENTIAL,Peoples Services,Nursing Care Short Term,A56026,0
London Borough of Sutton,08/07/2022,50217930,-750.40,Claremont Care Svs Ltd,SOCIAL SERVICES RESIDENTIAL,Peoples Services,Nursing Care - 3rd party top up payment,A56023,0
London Borough of Sutton,08/07/2022,50218052,"4,525.36",Claremont Care Svs Ltd,SOCIAL SERVICES RESIDENTIAL,Peoples Services,Nursing Care - Ext Provider,A56025,0
London Borough of Sutton,08/07/2022,50218052,-750.40,Claremont Care Svs Ltd,SOCIAL SERVICES RESIDENTIAL,Peoples Services,Nursing Care - 3rd party top up payment,A56023,0
London Borough of Sutton,08/07/2022,50218083,-974.00,Claremont Care Svs Ltd,SOCIAL SERVICES RESIDENTIAL,Peoples Services,Nursing Care - 3rd party top up payment,A56023,0
London Borough of Sutton,08/07/2022,50218083,"4,514.68",Claremont Care Svs Ltd,SOCIAL SERVICES RESIDENTIAL,Peoples Services,Nursing Care - Ext Provider,A56025,0
London Borough of Sutton,08/07/2022,50218083,-632.64,Claremont Care Svs Ltd,SOCIAL SERVICES RESIDENTIAL,Peoples Services,Nursing Care - 3rd party top up payment,A56023,0
London Borough of Sutton,08/07/2022,50218084,"3,848.24",Claremont Care Svs Ltd,SOCIAL SERVICES RESIDENTIAL,Peoples Services,Nursing Care - Ext Provider,A56025,0
London Borough of Sutton,08/07/2022,50218084,-750.40,Claremont Care Svs Ltd,SOCIAL SERVICES RESIDENTIAL,Peoples Services,Nursing Care - 3rd party top up payment,A56023,0
London Borough of Sutton,08/07/2022,50218113,"3,848.24",Claremont Care Svs Ltd,SOCIAL SERVICES RESIDENTIAL,Peoples Services,Nursing Care - Ext Provider,A56025,0
London Borough of Sutton,08/07/2022,50218113,-750.40,Claremont Care Svs Ltd,SOCIAL SERVICES RESIDENTIAL,Peoples Services,Nursing Care - 3rd party top up payment,A56023,0
London Borough of Sutton,08/07/2022,50217706,-735.68,Bondcare (London) Ltd,SOCIAL SERVICES RESIDENTIAL,Peoples Services,Nursing Care - 3rd party top up payment,A56023,0
London Borough of Sutton,08/07/2022,50217706,"3,720.16",Bondcare (London) Ltd,SOCIAL SERVICES RESIDENTIAL,Peoples Services,Nursing Care - Ext Provider,A56025,0
London Borough of Sutton,08/07/2022,50217989,"3,264.80",Cloyda Limited,SOCIAL SERVICES RESIDENTIAL,Peoples Services,Residential Care Respite,A56018,0
London Borough of Sutton,08/07/2022,50217717,"4,234.16",Coast Care Homes Ltd,SOCIAL SERVICES RESIDENTIAL,Peoples Services,Residential Care - Ext Provider,A56114,0
London Borough of Sutton,08/07/2022,50217724,"12,960.16",Cognithan Ltd,SOCIAL SERVICES RESIDENTIAL,Peoples Services,Residential Care - Ext Provider,A56114,0
London Borough of Sutton,08/07/2022,50217719,"7,107.84",Cream 11 Ltd,SOCIAL SERVICES RESIDENTIAL,Peoples Services,Residential Care - Ext Provider,A56114,0
London Borough of Sutton,08/07/2022,50217719,"5,560.52",Cream 11 Ltd,SOCIAL SERVICES RESIDENTIAL,Peoples Services,One to One Care,A56108,0
London Borough of Sutton,08/07/2022,50217803,"3,720.16",CRNH Ltd,SOCIAL SERVICES RESIDENTIAL,Peoples Services,Nursing Care - Ext Provider,A56025,0
London Borough of Sutton,08/07/2022,50217803,-735.68,CRNH Ltd,SOCIAL SERVICES RESIDENTIAL,Peoples Services,Nursing Care - 3rd party top up payment,A56023,0
London Borough of Sutton,08/07/2022,50217896,-735.68,CRNH Ltd,SOCIAL SERVICES RESIDENTIAL,Peoples Services,Nursing Care - 3rd party top up payment,A56023,0
London Borough of Sutton,08/07/2022,50217896,"3,720.16",CRNH Ltd,SOCIAL SERVICES RESIDENTIAL,Peoples Services,Nursing Care - Ext Provider,A56025,0
London Borough of Sutton,08/07/2022,50217931,"6,000.00",CRNH Ltd,SOCIAL SERVICES RESIDENTIAL,Peoples Services,Nursing Care Short Term,A56026,0
London Borough of Sutton,08/07/2022,50217931,-836.76,CRNH Ltd,SOCIAL SERVICES RESIDENTIAL,Peoples Services,Nursing Care - 3rd party top up payment,A56023,0
London Borough of Sutton,08/07/2022,50218017,"4,198.56",CRNH Ltd,SOCIAL SERVICES RESIDENTIAL,Peoples Services,Nursing Care - Ext Provider,A56025,0
London Borough of Sutton,08/07/2022,50218017,-662.24,CRNH Ltd,SOCIAL SERVICES RESIDENTIAL,Peoples Services,Nursing Care - 3rd party top up payment,A56023,0
London Borough of Sutton,08/07/2022,50218018,"3,848.24",CRNH Ltd,SOCIAL SERVICES RESIDENTIAL,Peoples Services,Nursing Care - Ext Provider,A56025,0
London Borough of Sutton,08/07/2022,50218018,-750.40,CRNH Ltd,SOCIAL SERVICES RESIDENTIAL,Peoples Services,Nursing Care - 3rd party top up payment,A56023,0
London Borough of Sutton,08/07/2022,50218038,"3,848.24",CRNH Ltd,SOCIAL SERVICES RESIDENTIAL,Peoples Services,Nursing Care Short Term,A56026,0
London Borough of Sutton,08/07/2022,50218038,-750.40,CRNH Ltd,SOCIAL SERVICES RESIDENTIAL,Peoples Services,Nursing Care - 3rd party top up payment,A56023,0
London Borough of Sutton,08/07/2022,50218115,"3,609.96",CRNH Ltd,SOCIAL SERVICES RESIDENTIAL,Peoples Services,Nursing Care - Ext Provider,A56025,0
London Borough of Sutton,08/07/2022,50218115,-632.64,CRNH Ltd,SOCIAL SERVICES RESIDENTIAL,Peoples Services,Nursing Care - 3rd party top up payment,A56023,0
London Borough of Sutton,08/07/2022,50218116,"3,664.08",CRNH Ltd,SOCIAL SERVICES RESIDENTIAL,Peoples Services,Nursing Care - Ext Provider,A56025,0
London Borough of Sutton,08/07/2022,50218116,-662.24,CRNH Ltd,SOCIAL SERVICES RESIDENTIAL,Peoples Services,Nursing Care - 3rd party top up payment,A56023,0
London Borough of Sutton,08/07/2022,50218146,-735.68,CRNH Ltd,SOCIAL SERVICES RESIDENTIAL,Peoples Services,Nursing Care - 3rd party top up payment,A56023,0
London Borough of Sutton,08/07/2022,50218146,"3,720.16",CRNH Ltd,SOCIAL SERVICES RESIDENTIAL,Peoples Services,Nursing Care Short Term,A56026,0
London Borough of Sutton,08/07/2022,50218155,"4,021.24",CRNH Ltd,SOCIAL SERVICES RESIDENTIAL,Peoples Services,Nursing Care - Ext Provider,A56025,0
London Borough of Sutton,08/07/2022,50218155,-750.40,CRNH Ltd,SOCIAL SERVICES RESIDENTIAL,Peoples Services,Nursing Care - 3rd party top up payment,A56023,0
London Borough of Sutton,08/07/2022,50217780,"3,734.88",Cross Care Services Ltd,SOCIAL SERVICES RESIDENTIAL,Peoples Services,Nursing Care - Ext Provider,A56025,0
London Borough of Sutton,08/07/2022,50217780,-750.40,Cross Care Services Ltd,SOCIAL SERVICES RESIDENTIAL,Peoples Services,Nursing Care - 3rd party top up payment,A56023,0
London Borough of Sutton,08/07/2022,50217841,"3,720.16",Cross Care Services Ltd,SOCIAL SERVICES RESIDENTIAL,Peoples Services,Nursing Care - Ext Provider,A56025,0
London Borough of Sutton,08/07/2022,50217841,-735.68,Cross Care Services Ltd,SOCIAL SERVICES RESIDENTIAL,Peoples Services,Nursing Care - 3rd party top up payment,A56023,0
London Borough of Sutton,08/07/2022,50217907,"3,633.76",Cross Care Services Ltd,SOCIAL SERVICES RESIDENTIAL,Peoples Services,Nursing Care - Ext Provider,A56025,0
London Borough of Sutton,08/07/2022,50217994,"3,720.16",Cross Care Services Ltd,SOCIAL SERVICES RESIDENTIAL,Peoples Services,Nursing Care - Ext Provider,A56025,0
London Borough of Sutton,08/07/2022,50217994,-735.68,Cross Care Services Ltd,SOCIAL SERVICES RESIDENTIAL,Peoples Services,Nursing Care - 3rd party top up payment,A56023,0
London Borough of Sutton,08/07/2022,50217995,"3,720.16",Cross Care Services Ltd,SOCIAL SERVICES RESIDENTIAL,Peoples Services,Nursing Care - Ext Provider,A56025,0
London Borough of Sutton,08/07/2022,50217995,-735.68,Cross Care Services Ltd,SOCIAL SERVICES RESIDENTIAL,Peoples Services,Nursing Care - 3rd party top up payment,A56023,0
London Borough of Sutton,08/07/2022,50217743,"8,118.44",CSS Ltd ,SOCIAL SERVICES RESIDENTIAL,Peoples Services,Residential Care - Ext Provider,A56114,0
London Borough of Sutton,08/07/2022,50217763,"5,810.56",Curado Limited,GRANTS & EX GRATIA PAYMENTS,Peoples Services,Interim Placements - Ext Provider,A56102,0
London Borough of Sutton,08/07/2022,50217744,-758.00,Cygnet Learning Disabilities Midlands Ltd,SOCIAL SERVICES RESIDENTIAL,Peoples Services,Residential Care - Client Cont ( Net Paymt ),A56113,0
London Borough of Sutton,08/07/2022,50217744,"6,827.40",Cygnet Learning Disabilities Midlands Ltd,SOCIAL SERVICES RESIDENTIAL,Peoples Services,Residential Care - Ext Provider,A56114,0
London Borough of Sutton,08/07/2022,50218096,"3,505.00",Denville Hall 2012,SOCIAL SERVICES RESIDENTIAL,Peoples Services,Residential Care - Ext Provider,A56114,0
London Borough of Sutton,08/07/2022,50217746,"3,175.04",Devaglade Trading Limited ,SOCIAL SERVICES RESIDENTIAL,Peoples Services,Residential Care - Ext Provider,A56114,0
London Borough of Sutton,08/07/2022,50217716,"3,187.44",Dunheved Lodge,SOCIAL SERVICES RESIDENTIAL,Peoples Services,Residential Care - Ext Provider,A56114,0
London Borough of Sutton,08/07/2022,50217716,"3,016.00",Dunheved Lodge,SOCIAL SERVICES RESIDENTIAL,Peoples Services,One to One Care,A56108,0
London Borough of Sutton,08/07/2022,50217781,"3,848.24",Eastcroft Nursing Home,SOCIAL SERVICES RESIDENTIAL,Peoples Services,Nursing Care - Ext Provider,A56025,0
London Borough of Sutton,08/07/2022,50217781,-750.40,Eastcroft Nursing Home,SOCIAL SERVICES RESIDENTIAL,Peoples Services,Nursing Care - 3rd party top up payment,A56023,0
London Borough of Sutton,08/07/2022,50217974,"3,734.88",Eastcroft Nursing Home,SOCIAL SERVICES RESIDENTIAL,Peoples Services,Nursing Care - Ext Provider,A56025,0
London Borough of Sutton,08/07/2022,50217974,-750.40,Eastcroft Nursing Home,SOCIAL SERVICES RESIDENTIAL,Peoples Services,Nursing Care - 3rd party top up payment,A56023,0
London Borough of Sutton,08/07/2022,50218023,"3,734.88",Eastcroft Nursing Home,SOCIAL SERVICES RESIDENTIAL,Peoples Services,Nursing Care - Ext Provider,A56025,0
London Borough of Sutton,08/07/2022,50218023,-750.40,Eastcroft Nursing Home,SOCIAL SERVICES RESIDENTIAL,Peoples Services,Nursing Care - 3rd party top up payment,A56023,0
London Borough of Sutton,08/07/2022,50218157,"3,736.00",Eastcroft Nursing Home,SOCIAL SERVICES RESIDENTIAL,Peoples Services,Nursing Care Short Term,A56026,0
London Borough of Sutton,08/07/2022,50218157,-750.40,Eastcroft Nursing Home,SOCIAL SERVICES RESIDENTIAL,Peoples Services,Nursing Care - 3rd party top up payment,A56023,0
London Borough of Sutton,08/07/2022,50217764,"9,101.84",Elysium Healthcare Ltd,CHILDREN'S SERVICES - FOSTERING & ADOPTION SERVICES,Peoples Services,Residential Care - Ext Provider,A56114,0
London Borough of Sutton,08/07/2022,50217740,"7,668.40",Elysium Supported Living Limited,SOCIAL SERVICES RESIDENTIAL,Peoples Services,Residential Care - Ext Provider,A56114,0
London Borough of Sutton,08/07/2022,50218813,630.00,Escoben Care Services Ltd,SOCIAL SERVICES RESIDENTIAL,Peoples Services,Home Care Services,A56019,0
London Borough of Sutton,08/07/2022,50218883,882.00,Escoben Care Services Ltd,SOCIAL SERVICES RESIDENTIAL,Peoples Services,Home Care Services,A56019,0
London Borough of Sutton,08/07/2022,50218886,798.00,Escoben Care Services Ltd,SOCIAL SERVICES RESIDENTIAL,Peoples Services,Home Care Services,A56019,0
London Borough of Sutton,08/07/2022,50217811,-750.40,Family Star Ltd,SOCIAL SERVICES RESIDENTIAL,Peoples Services,Nursing Care - 3rd party top up payment,A56023,0
London Borough of Sutton,08/07/2022,50217811,"3,734.88",Family Star Ltd,SOCIAL SERVICES RESIDENTIAL,Peoples Services,Nursing Care Short Term,A56026,0
London Borough of Sutton,08/07/2022,50217833,-750.40,Family Star Ltd,SOCIAL SERVICES RESIDENTIAL,Peoples Services,Nursing Care - 3rd party top up payment,A56023,0
London Borough of Sutton,08/07/2022,50217833,"4,172.80",Family Star Ltd,SOCIAL SERVICES RESIDENTIAL,Peoples Services,Nursing Care Short Term,A56026,0
London Borough of Sutton,08/07/2022,50217833,-312.80,Family Star Ltd,SOCIAL SERVICES RESIDENTIAL,Peoples Services,Nursing Care - 3rd party top up payment,A56023,0
London Borough of Sutton,08/07/2022,50217847,"3,736.00",Family Star Ltd,SOCIAL SERVICES RESIDENTIAL,Peoples Services,Nursing Care - Ext Provider,A56025,0
London Borough of Sutton,08/07/2022,50217847,-750.40,Family Star Ltd,SOCIAL SERVICES RESIDENTIAL,Peoples Services,Nursing Care - 3rd party top up payment,A56023,0
London Borough of Sutton,08/07/2022,50217848,"3,848.24",Family Star Ltd,SOCIAL SERVICES RESIDENTIAL,Peoples Services,Nursing Care - Ext Provider,A56025,0
London Borough of Sutton,08/07/2022,50217848,-750.40,Family Star Ltd,SOCIAL SERVICES RESIDENTIAL,Peoples Services,Nursing Care - 3rd party top up payment,A56023,0
London Borough of Sutton,08/07/2022,50217886,"3,734.88",Family Star Ltd,SOCIAL SERVICES RESIDENTIAL,Peoples Services,Nursing Care - Ext Provider,A56025,0
London Borough of Sutton,08/07/2022,50217886,-750.40,Family Star Ltd,SOCIAL SERVICES RESIDENTIAL,Peoples Services,Nursing Care - 3rd party top up payment,A56023,0
London Borough of Sutton,08/07/2022,50217998,"3,646.72",Family Star Ltd,SOCIAL SERVICES RESIDENTIAL,Peoples Services,Nursing Care - Ext Provider,A56025,0
London Borough of Sutton,08/07/2022,50217998,-662.24,Family Star Ltd,SOCIAL SERVICES RESIDENTIAL,Peoples Services,Nursing Care - 3rd party top up payment,A56023,0
London Borough of Sutton,08/07/2022,50218043,-836.76,Family Star Ltd,SOCIAL SERVICES RESIDENTIAL,Peoples Services,Nursing Care - 3rd party top up payment,A56023,0
London Borough of Sutton,08/07/2022,50218043,"3,934.60",Family Star Ltd,SOCIAL SERVICES RESIDENTIAL,Peoples Services,Nursing Care - Ext Provider,A56025,0
London Borough of Sutton,08/07/2022,50218057,-418.38,Family Star Ltd,SOCIAL SERVICES RESIDENTIAL,Peoples Services,Nursing Care - 3rd party top up payment,A56023,0
London Borough of Sutton,08/07/2022,50218057,"1,910.62",Family Star Ltd,SOCIAL SERVICES RESIDENTIAL,Peoples Services,Nursing Care Short Term,A56026,0
London Borough of Sutton,08/07/2022,50218108,"3,848.24",Family Star Ltd,SOCIAL SERVICES RESIDENTIAL,Peoples Services,Nursing Care - Ext Provider,A56025,0
London Borough of Sutton,08/07/2022,50218108,-750.40,Family Star Ltd,SOCIAL SERVICES RESIDENTIAL,Peoples Services,Nursing Care - 3rd party top up payment,A56023,0
London Borough of Sutton,08/07/2022,50217747,"3,652.88",Fircroft Homes,SOCIAL SERVICES RESIDENTIAL,Peoples Services,Residential Care - Ext Provider,A56114,0
London Borough of Sutton,08/07/2022,50217747,-643.80,Fircroft Homes,SOCIAL SERVICES RESIDENTIAL,Peoples Services,Residential Care - Client Cont ( Net Paymt ),A56113,0
London Borough of Sutton,08/07/2022,50217687,"5,647.16",Fitzroy,SOCIAL SERVICES RESIDENTIAL,Peoples Services,Residential Care - Ext Provider,A56114,0
London Borough of Sutton,08/07/2022,50217687,-425.60,Fitzroy,SOCIAL SERVICES RESIDENTIAL,Peoples Services,Residential Care - Client Cont ( Net Paymt ),A56113,0
London Borough of Sutton,08/07/2022,50218030,"7,470.72",Florence Avenue Care Home Ltd,SOCIAL SERVICES RESIDENTIAL,Peoples Services,Residential Care - Ext Provider,A56114,0
London Borough of Sutton,08/07/2022,50217707,"2,697.76",Foxley Lodge,SOCIAL SERVICES RESIDENTIAL,Peoples Services,Interim Placements - Ext Provider,A56102,0
London Borough of Sutton,08/07/2022,50217788,"1,830.62",Friends Of The Elderly,SOCIAL SERVICES RESIDENTIAL,Peoples Services,Interim Placements - Ext Provider,A56102,0
London Borough of Sutton,08/07/2022,50217808,"2,697.76",Friends Of The Elderly,SOCIAL SERVICES RESIDENTIAL,Peoples Services,Residential Care - Ext Provider,A56114,0
London Borough of Sutton,08/07/2022,50217872,"2,697.76",Friends Of The Elderly,SOCIAL SERVICES RESIDENTIAL,Peoples Services,Residential Care - Ext Provider,A56114,0
London Borough of Sutton,08/07/2022,50217935,"2,697.76",Friends Of The Elderly,SOCIAL SERVICES RESIDENTIAL,Peoples Services,Residential Care - Ext Provider,A56114,0
London Borough of Sutton,08/07/2022,50218004,"2,697.76",Friends Of The Elderly,SOCIAL SERVICES RESIDENTIAL,Peoples Services,Residential Care Respite,A56018,0
London Borough of Sutton,08/07/2022,50218044,"1,500.00",Friends Of The Elderly,SOCIAL SERVICES RESIDENTIAL,Peoples Services,Interim Placements - Ext Provider,A56102,0
London Borough of Sutton,08/07/2022,50218045,"2,697.76",Friends Of The Elderly,SOCIAL SERVICES RESIDENTIAL,Peoples Services,Interim Placements - Ext Provider,A56102,0
London Borough of Sutton,08/07/2022,50218046,"1,734.27",Friends Of The Elderly,SOCIAL SERVICES RESIDENTIAL,Peoples Services,Interim Placements - Ext Provider,A56102,0
London Borough of Sutton,08/07/2022,50218073,674.44,Friends Of The Elderly,SOCIAL SERVICES RESIDENTIAL,Peoples Services,Residential Care Respite,A56018,0
London Borough of Sutton,08/07/2022,50218141,"2,697.76",Friends Of The Elderly,SOCIAL SERVICES RESIDENTIAL,Peoples Services,Residential Care - Ext Provider,A56114,0
London Borough of Sutton,08/07/2022,50218142,"3,332.76",Friends Of The Elderly,SOCIAL SERVICES RESIDENTIAL,Peoples Services,Residential Care - Ext Provider,A56114,0
London Borough of Sutton,08/07/2022,50218150,"2,697.76",Friends Of The Elderly,SOCIAL SERVICES RESIDENTIAL,Peoples Services,Interim Placements - Ext Provider,A56102,0
London Borough of Sutton,08/07/2022,50218170,"4,503.20",Friends Of The Elderly,SOCIAL SERVICES RESIDENTIAL,Peoples Services,Residential Care - Ext Provider,A56114,0
London Borough of Sutton,08/07/2022,50218171,"2,697.76",Friends Of The Elderly,SOCIAL SERVICES RESIDENTIAL,Peoples Services,Residential Care - Ext Provider,A56114,0
London Borough of Sutton,08/07/2022,50218894,575.30,Friends Of The Elderly,SOCIAL SERVICES RESIDENTIAL,Peoples Services,Day Care Services,A56021,0
London Borough of Sutton,08/07/2022,50218895,"1,046.00",Friends Of The Elderly,SOCIAL SERVICES RESIDENTIAL,Peoples Services,Day Care Services,A56021,0
London Borough of Sutton,08/07/2022,50218897,561.30,Friends Of The Elderly,SOCIAL SERVICES RESIDENTIAL,Peoples Services,Day Care Services,A56021,0
London Borough of Sutton,08/07/2022,50218897,234.00,Friends Of The Elderly,SOCIAL SERVICES RESIDENTIAL,Peoples Services,Hire of Transport - Non Staff,A32000,0
London Borough of Sutton,08/07/2022,50218899,705.30,Friends Of The Elderly,SOCIAL SERVICES RESIDENTIAL,Peoples Services,Day Care Services,A56021,0
London Borough of Sutton,08/07/2022,50218899,331.50,Friends Of The Elderly,SOCIAL SERVICES RESIDENTIAL,Peoples Services,Hire of Transport - Non Staff,A32000,0
London Borough of Sutton,08/07/2022,50218901,175.50,Friends Of The Elderly,SOCIAL SERVICES RESIDENTIAL,Peoples Services,Hire of Transport - Non Staff,A32000,0
London Borough of Sutton,08/07/2022,50218901,402.90,Friends Of The Elderly,SOCIAL SERVICES RESIDENTIAL,Peoples Services,Day Care Services,A56021,0
London Borough of Sutton,08/07/2022,50218904,253.50,Friends Of The Elderly,SOCIAL SERVICES RESIDENTIAL,Peoples Services,Hire of Transport - Non Staff,A32000,0
London Borough of Sutton,08/07/2022,50218904,541.80,Friends Of The Elderly,SOCIAL SERVICES RESIDENTIAL,Peoples Services,Day Care Services,A56021,0
London Borough of Sutton,08/07/2022,50218910,253.50,Friends Of The Elderly,SOCIAL SERVICES RESIDENTIAL,Peoples Services,Hire of Transport - Non Staff,A32000,0
London Borough of Sutton,08/07/2022,50218910,614.10,Friends Of The Elderly,SOCIAL SERVICES RESIDENTIAL,Peoples Services,Day Care Services,A56021,0
London Borough of Sutton,08/07/2022,50218912,"1,046.00",Friends Of The Elderly,SOCIAL SERVICES RESIDENTIAL,Peoples Services,Day Care Services,A56021,0
London Borough of Sutton,08/07/2022,50218914,627.60,Friends Of The Elderly,SOCIAL SERVICES RESIDENTIAL,Peoples Services,Day Care Services,A56021,0
London Borough of Sutton,08/07/2022,50218915,"1,046.00",Friends Of The Elderly,SOCIAL SERVICES RESIDENTIAL,Peoples Services,Day Care Services,A56021,0
London Borough of Sutton,08/07/2022,50218916,253.50,Friends Of The Elderly,SOCIAL SERVICES RESIDENTIAL,Peoples Services,Hire of Transport - Non Staff,A32000,0
London Borough of Sutton,08/07/2022,50218916,321.80,Friends Of The Elderly,SOCIAL SERVICES RESIDENTIAL,Peoples Services,Day Care Services,A56021,0
London Borough of Sutton,08/07/2022,50218940,614.10,Friends Of The Elderly,SOCIAL SERVICES RESIDENTIAL,Peoples Services,Day Care Services,A56021,0
London Borough of Sutton,08/07/2022,50218940,253.50,Friends Of The Elderly,SOCIAL SERVICES RESIDENTIAL,Peoples Services,Hire of Transport - Non Staff,A32000,0
London Borough of Sutton,08/07/2022,50218950,679.90,Friends Of The Elderly,SOCIAL SERVICES RESIDENTIAL,Peoples Services,Day Care Services,A56021,0
London Borough of Sutton,08/07/2022,50218954,402.90,Friends Of The Elderly,SOCIAL SERVICES RESIDENTIAL,Peoples Services,Day Care Services,A56021,0
London Borough of Sutton,08/07/2022,50218954,175.50,Friends Of The Elderly,SOCIAL SERVICES RESIDENTIAL,Peoples Services,Hire of Transport - Non Staff,A32000,0
London Borough of Sutton,08/07/2022,50218955,679.90,Friends Of The Elderly,SOCIAL SERVICES RESIDENTIAL,Peoples Services,Day Care Services,A56021,0
London Borough of Sutton,08/07/2022,50217786,"2,697.76",Gable Lodge,SOCIAL SERVICES RESIDENTIAL,Peoples Services,Interim Placements - Ext Provider,A56102,0
London Borough of Sutton,08/07/2022,50217787,"-5,299.17",Gable Lodge,SOCIAL SERVICES RESIDENTIAL,Peoples Services,Residential Care - Ext Provider,A56114,0
London Borough of Sutton,08/07/2022,50217939,"2,697.76",Gable Lodge,SOCIAL SERVICES RESIDENTIAL,Peoples Services,Residential Care - Ext Provider,A56114,0
London Borough of Sutton,08/07/2022,50217958,"2,697.76",Gable Lodge,SOCIAL SERVICES RESIDENTIAL,Peoples Services,Residential Care - Ext Provider,A56114,0
London Borough of Sutton,08/07/2022,50218079,"2,697.76",Gable Lodge,SOCIAL SERVICES RESIDENTIAL,Peoples Services,Residential Care - Ext Provider,A56114,0
London Borough of Sutton,08/07/2022,50217915,"3,923.20",Galleon Care Homes Ltd,SOCIAL SERVICES RESIDENTIAL,Peoples Services,Nursing Care - Ext Provider,A56025,0
London Borough of Sutton,08/07/2022,50217915,-735.68,Galleon Care Homes Ltd,SOCIAL SERVICES RESIDENTIAL,Peoples Services,Nursing Care - 3rd party top up payment,A56023,0
London Borough of Sutton,08/07/2022,50217822,"2,697.76",Gate Lodge Care Home,SOCIAL SERVICES RESIDENTIAL,Peoples Services,Residential Care - Ext Provider,A56114,0
London Borough of Sutton,08/07/2022,50217823,"2,697.76",Gate Lodge Care Home,SOCIAL SERVICES RESIDENTIAL,Peoples Services,Residential Care - Ext Provider,A56114,0
London Borough of Sutton,08/07/2022,50217825,"2,697.76",Gate Lodge Care Home,SOCIAL SERVICES RESIDENTIAL,Peoples Services,Residential Care - Ext Provider,A56114,0
London Borough of Sutton,08/07/2022,50218070,"2,905.28",Gate Lodge Care Home,SOCIAL SERVICES RESIDENTIAL,Peoples Services,Residential Care - Ext Provider,A56114,0
London Borough of Sutton,08/07/2022,50218071,"2,697.76",Gate Lodge Care Home,SOCIAL SERVICES RESIDENTIAL,Peoples Services,Residential Care - Ext Provider,A56114,0
London Borough of Sutton,08/07/2022,50217762,"5,642.72",Glebe Care Ltd,SOCIAL SERVICES DAY CARE,Peoples Services,Nursing Care - Ext Provider,A56025,0
London Borough of Sutton,08/07/2022,50217762,-662.24,Glebe Care Ltd,SOCIAL SERVICES DAY CARE,Peoples Services,Nursing Care - 3rd party top up payment,A56023,0
London Borough of Sutton,08/07/2022,50217862,"4,671.88",Gracewell Healthcare 3 Ltd,SOCIAL SERVICES RESIDENTIAL,Peoples Services,Nursing Care - Ext Provider,A56025,0
London Borough of Sutton,08/07/2022,50217862,-509.20,Gracewell Healthcare 3 Ltd,SOCIAL SERVICES RESIDENTIAL,Peoples Services,Nursing Care - 3rd party top up payment,A56023,0
London Borough of Sutton,08/07/2022,50217902,-735.68,Gracewell Healthcare 3 Ltd,SOCIAL SERVICES RESIDENTIAL,Peoples Services,Nursing Care - 3rd party top up payment,A56023,0
London Borough of Sutton,08/07/2022,50217902,"5,275.92",Gracewell Healthcare 3 Ltd,SOCIAL SERVICES RESIDENTIAL,Peoples Services,Nursing Care - Ext Provider,A56025,0
London Borough of Sutton,08/07/2022,50217936,"3,138.88",Gracewell Healthcare 3 Ltd,SOCIAL SERVICES RESIDENTIAL,Peoples Services,Nursing Care - Ext Provider,A56025,0
London Borough of Sutton,08/07/2022,50217936,-687.34,Gracewell Healthcare 3 Ltd,SOCIAL SERVICES RESIDENTIAL,Peoples Services,Nursing Care - 3rd party top up payment,A56023,0
London Borough of Sutton,08/07/2022,50218005,"4,150.40",Gracewell Healthcare 3 Ltd,SOCIAL SERVICES RESIDENTIAL,Peoples Services,Residential Care - Ext Provider,A56114,0
London Borough of Sutton,08/07/2022,50217802,"2,801.52",Grange Cottage Ltd,MANAGEMENT & TRAINING SERVICES,Peoples Services,Interim Placements - Ext Provider,A56102,0
London Borough of Sutton,08/07/2022,50217819,"2,905.28",Grange Cottage Ltd,MANAGEMENT & TRAINING SERVICES,Peoples Services,Residential Care - Ext Provider,A56114,0
London Borough of Sutton,08/07/2022,50217827,"2,697.76",Grange Cottage Ltd,MANAGEMENT & TRAINING SERVICES,Peoples Services,Interim Placements - Ext Provider,A56102,0
London Borough of Sutton,08/07/2022,50217866,"2,697.76",Grange Cottage Ltd,MANAGEMENT & TRAINING SERVICES,Peoples Services,Residential Care - Ext Provider,A56114,0
London Borough of Sutton,08/07/2022,50217964,"2,984.48",Grange Cottage Ltd,MANAGEMENT & TRAINING SERVICES,Peoples Services,Interim Placements - Ext Provider,A56102,0
London Borough of Sutton,08/07/2022,50217979,"3,320.32",Grange Cottage Ltd,MANAGEMENT & TRAINING SERVICES,Peoples Services,Residential Care - Ext Provider,A56114,0
London Borough of Sutton,08/07/2022,50217980,"3,360.16",Grange Cottage Ltd,MANAGEMENT & TRAINING SERVICES,Peoples Services,Residential Care - Ext Provider,A56114,0
London Borough of Sutton,08/07/2022,50218015,"2,697.76",Grange Cottage Ltd,MANAGEMENT & TRAINING SERVICES,Peoples Services,Interim Placements - Ext Provider,A56102,0
London Borough of Sutton,08/07/2022,50218047,"2,697.76",Grange Cottage Ltd,MANAGEMENT & TRAINING SERVICES,Peoples Services,Residential Care - Ext Provider,A56114,0
London Borough of Sutton,08/07/2022,50218062,"3,112.80",Grange Cottage Ltd,MANAGEMENT & TRAINING SERVICES,Peoples Services,Residential Care - Ext Provider,A56114,0
London Borough of Sutton,08/07/2022,50218138,"2,697.76",Grange Cottage Ltd,MANAGEMENT & TRAINING SERVICES,Peoples Services,Residential Care - Ext Provider,A56114,0
London Borough of Sutton,08/07/2022,50218139,"2,697.76",Grange Cottage Ltd,MANAGEMENT & TRAINING SERVICES,Peoples Services,Residential Care - Ext Provider,A56114,0
London Borough of Sutton,08/07/2022,50218153,"2,697.76",Grange Cottage Ltd,MANAGEMENT & TRAINING SERVICES,Peoples Services,Interim Placements - Ext Provider,A56102,0
London Borough of Sutton,08/07/2022,50217981,"3,608.52",Grasmere Rest Home,SOCIAL SERVICES RESIDENTIAL,Peoples Services,Residential Care - Ext Provider,A56114,0
London Borough of Sutton,08/07/2022,50217982,"2,697.76",Grasmere Rest Home,SOCIAL SERVICES RESIDENTIAL,Peoples Services,Residential Care - Ext Provider,A56114,0
London Borough of Sutton,08/07/2022,50218033,"2,697.76",Grasmere Rest Home,SOCIAL SERVICES RESIDENTIAL,Peoples Services,Residential Care - Ext Provider,A56114,0
London Borough of Sutton,08/07/2022,50218034,"2,697.76",Grasmere Rest Home,SOCIAL SERVICES RESIDENTIAL,Peoples Services,Residential Care - Ext Provider,A56114,0
London Borough of Sutton,08/07/2022,50218035,"2,697.76",Grasmere Rest Home,SOCIAL SERVICES RESIDENTIAL,Peoples Services,Residential Care - Ext Provider,A56114,0
London Borough of Sutton,08/07/2022,50218098,"2,905.28",Grasmere Rest Home,SOCIAL SERVICES RESIDENTIAL,Peoples Services,Residential Care - Ext Provider,A56114,0
London Borough of Sutton,08/07/2022,50218140,"2,697.76",Grasmere Rest Home,SOCIAL SERVICES RESIDENTIAL,Peoples Services,Residential Care - Ext Provider,A56114,0
London Borough of Sutton,08/07/2022,50217770,"5,827.24",Sunrise Rehabilitation Centre & Trading Associates Ltd,SOCIAL SERVICES RESIDENTIAL,Peoples Services,Residential Care - Ext Provider,A56114,0
London Borough of Sutton,08/07/2022,50217879,"5,395.52",Hallmark Care Homes (Banstead) Ltd,SOCIAL SERVICES RESIDENTIAL,Peoples Services,Interim Placements - Ext Provider,A56102,0
London Borough of Sutton,08/07/2022,50218003,"5,810.56",Hallmark Care Homes (Banstead) Ltd,SOCIAL SERVICES RESIDENTIAL,Peoples Services,Residential Care - Ext Provider,A56114,0
London Borough of Sutton,08/07/2022,50217705,"4,768.00",Hankham Lodge,CHILDREN'S SERVICES - RESIDENTIAL,Peoples Services,Residential Care - Ext Provider,A56114,0
London Borough of Sutton,08/07/2022,50221109,467.68,Hats Group Ltd,TAXI AND COACH HIRE,Peoples Services,Hired Peoples Transport (Adults),A32002,0
London Borough of Sutton,08/07/2022,50218078,"5,046.88",Haydon Park Lodge,SOCIAL SERVICES RESIDENTIAL,Peoples Services,Residential Care - Ext Provider,A56114,0
London Borough of Sutton,08/07/2022,50218144,"5,306.28",Haydon Park Lodge,SOCIAL SERVICES RESIDENTIAL,Peoples Services,Residential Care - Ext Provider,A56114,0
London Borough of Sutton,08/07/2022,50217810,"3,734.88",HCOne Oval Ltd,SOCIAL SERVICES RESIDENTIAL,Peoples Services,Nursing Care - Ext Provider,A56025,0
London Borough of Sutton,08/07/2022,50217810,-750.40,HCOne Oval Ltd,SOCIAL SERVICES RESIDENTIAL,Peoples Services,Nursing Care - 3rd party top up payment,A56023,0
London Borough of Sutton,08/07/2022,50217920,-750.40,HCOne Oval Ltd,SOCIAL SERVICES RESIDENTIAL,Peoples Services,Nursing Care - 3rd party top up payment,A56023,0
London Borough of Sutton,08/07/2022,50217920,"3,736.00",HCOne Oval Ltd,SOCIAL SERVICES RESIDENTIAL,Peoples Services,Nursing Care Short Term,A56026,0
London Borough of Sutton,08/07/2022,50217961,"3,821.24",HCOne Oval Ltd,SOCIAL SERVICES RESIDENTIAL,Peoples Services,Nursing Care Short Term,A56026,0
London Borough of Sutton,08/07/2022,50217961,-836.76,HCOne Oval Ltd,SOCIAL SERVICES RESIDENTIAL,Peoples Services,Nursing Care - 3rd party top up payment,A56023,0
London Borough of Sutton,08/07/2022,50218128,"3,734.88",HCOne Oval Ltd,SOCIAL SERVICES RESIDENTIAL,Peoples Services,Nursing Care Short Term,A56026,0
London Borough of Sutton,08/07/2022,50218128,-750.40,HCOne Oval Ltd,SOCIAL SERVICES RESIDENTIAL,Peoples Services,Nursing Care - 3rd party top up payment,A56023,0
London Borough of Sutton,08/07/2022,50217690,"8,207.12",Heathcotes (Southern) Limited,SOCIAL SERVICES RESIDENTIAL,Peoples Services,Residential Care - Ext Provider,A56114,0
London Borough of Sutton,08/07/2022,50217690,-507.50,Heathcotes (Southern) Limited,SOCIAL SERVICES RESIDENTIAL,Peoples Services,Residential Care - Client Cont ( Net Paymt ),A56113,0
London Borough of Sutton,08/07/2022,50217737,"10,791.04",Heathcotes (Southern) Limited,SOCIAL SERVICES RESIDENTIAL,Peoples Services,Residential Care - Ext Provider,A56114,0
London Borough of Sutton,08/07/2022,50217749,"3,898.28",HF Trust Ltd,SOCIAL SERVICES RESIDENTIAL,Peoples Services,Residential Care - Ext Provider,A56114,0
London Borough of Sutton,08/07/2022,50217749,-360.80,HF Trust Ltd,SOCIAL SERVICES RESIDENTIAL,Peoples Services,Residential Care - Client Cont ( Net Paymt ),A56113,0
London Borough of Sutton,08/07/2022,50217949,"2,810.40",HF Trust Ltd,SOCIAL SERVICES RESIDENTIAL,Peoples Services,Residential Care - Ext Provider,A56114,0
London Borough of Sutton,08/07/2022,50217949,-425.60,HF Trust Ltd,SOCIAL SERVICES RESIDENTIAL,Peoples Services,Residential Care - Client Cont ( Net Paymt ),A56113,0
London Borough of Sutton,08/07/2022,50217702,"4,001.48",Hill House Nursing Home Ltd,SOCIAL SERVICES RESIDENTIAL,Peoples Services,Nursing Care - Ext Provider,A56025,0
London Borough of Sutton,08/07/2022,50217702,-836.76,Hill House Nursing Home Ltd,SOCIAL SERVICES RESIDENTIAL,Peoples Services,Nursing Care - 3rd party top up payment,A56023,0
London Borough of Sutton,08/07/2022,50217720,"4,097.32",Hill House Nursing Home Ltd,SOCIAL SERVICES RESIDENTIAL,Peoples Services,Nursing Care - Ext Provider,A56025,0
London Borough of Sutton,08/07/2022,50217720,-836.76,Hill House Nursing Home Ltd,SOCIAL SERVICES RESIDENTIAL,Peoples Services,Nursing Care - 3rd party top up payment,A56023,0
London Borough of Sutton,08/07/2022,50217799,-662.24,Hydefall Ltd,SOCIAL SERVICES RESIDENTIAL,Peoples Services,Nursing Care - 3rd party top up payment,A56023,0
London Borough of Sutton,08/07/2022,50217799,"3,609.04",Hydefall Ltd,SOCIAL SERVICES RESIDENTIAL,Peoples Services,Nursing Care - Ext Provider,A56025,0
London Borough of Sutton,08/07/2022,50217800,"-1,388.10",Hydefall Ltd,SOCIAL SERVICES RESIDENTIAL,Peoples Services,Nursing Care - Ext Provider,A56025,0
London Borough of Sutton,08/07/2022,50217800,428.80,Hydefall Ltd,SOCIAL SERVICES RESIDENTIAL,Peoples Services,Nursing Care - 3rd party top up payment,A56023,0
London Borough of Sutton,08/07/2022,50217801,"3,848.24",Hydefall Ltd,SOCIAL SERVICES RESIDENTIAL,Peoples Services,Nursing Care - Ext Provider,A56025,0
London Borough of Sutton,08/07/2022,50217801,-750.40,Hydefall Ltd,SOCIAL SERVICES RESIDENTIAL,Peoples Services,Nursing Care - 3rd party top up payment,A56023,0
London Borough of Sutton,08/07/2022,50217892,682.36,Hydefall Ltd,SOCIAL SERVICES RESIDENTIAL,Peoples Services,Nursing Care - Ext Provider,A56025,0
London Borough of Sutton,08/07/2022,50217892,-149.42,Hydefall Ltd,SOCIAL SERVICES RESIDENTIAL,Peoples Services,Nursing Care - 3rd party top up payment,A56023,0
London Borough of Sutton,08/07/2022,50217893,"3,848.24",Hydefall Ltd,SOCIAL SERVICES RESIDENTIAL,Peoples Services,Nursing Care Short Term,A56026,0
London Borough of Sutton,08/07/2022,50217893,-750.40,Hydefall Ltd,SOCIAL SERVICES RESIDENTIAL,Peoples Services,Nursing Care - 3rd party top up payment,A56023,0
London Borough of Sutton,08/07/2022,50217894,"3,848.24",Hydefall Ltd,SOCIAL SERVICES RESIDENTIAL,Peoples Services,Nursing Care - Ext Provider,A56025,0
London Borough of Sutton,08/07/2022,50217894,-750.40,Hydefall Ltd,SOCIAL SERVICES RESIDENTIAL,Peoples Services,Nursing Care - 3rd party top up payment,A56023,0
London Borough of Sutton,08/07/2022,50217954,-750.40,Hydefall Ltd,SOCIAL SERVICES RESIDENTIAL,Peoples Services,Nursing Care - 3rd party top up payment,A56023,0
London Borough of Sutton,08/07/2022,50217954,"3,848.24",Hydefall Ltd,SOCIAL SERVICES RESIDENTIAL,Peoples Services,Nursing Care Short Term,A56026,0
London Borough of Sutton,08/07/2022,50217963,"2,925.00",Hydefall Ltd,SOCIAL SERVICES RESIDENTIAL,Peoples Services,Nursing Care Short Term,A56026,0
London Borough of Sutton,08/07/2022,50217963,-627.57,Hydefall Ltd,SOCIAL SERVICES RESIDENTIAL,Peoples Services,Nursing Care - 3rd party top up payment,A56023,0
London Borough of Sutton,08/07/2022,50218008,"3,720.16",Hydefall Ltd,SOCIAL SERVICES RESIDENTIAL,Peoples Services,Nursing Care - Ext Provider,A56025,0
London Borough of Sutton,08/07/2022,50218008,-735.68,Hydefall Ltd,SOCIAL SERVICES RESIDENTIAL,Peoples Services,Nursing Care - 3rd party top up payment,A56023,0
London Borough of Sutton,08/07/2022,50218009,"3,753.20",Hydefall Ltd,SOCIAL SERVICES RESIDENTIAL,Peoples Services,Nursing Care - Ext Provider,A56025,0
London Borough of Sutton,08/07/2022,50218009,-735.68,Hydefall Ltd,SOCIAL SERVICES RESIDENTIAL,Peoples Services,Nursing Care - 3rd party top up payment,A56023,0
London Borough of Sutton,08/07/2022,50218012,"-1,783.24",Hydefall Ltd,SOCIAL SERVICES RESIDENTIAL,Peoples Services,Nursing Care - Ext Provider,A56025,0
London Borough of Sutton,08/07/2022,50218012,455.60,Hydefall Ltd,SOCIAL SERVICES RESIDENTIAL,Peoples Services,Nursing Care - 3rd party top up payment,A56023,0
London Borough of Sutton,08/07/2022,50218013,"4,900.80",Hydefall Ltd,SOCIAL SERVICES RESIDENTIAL,Peoples Services,Nursing Care - Ext Provider,A56025,0
London Borough of Sutton,08/07/2022,50218013,-750.40,Hydefall Ltd,SOCIAL SERVICES RESIDENTIAL,Peoples Services,Nursing Care - 3rd party top up payment,A56023,0
London Borough of Sutton,08/07/2022,50218014,"3,848.24",Hydefall Ltd,SOCIAL SERVICES RESIDENTIAL,Peoples Services,Nursing Care - Ext Provider,A56025,0
London Borough of Sutton,08/07/2022,50218014,-750.40,Hydefall Ltd,SOCIAL SERVICES RESIDENTIAL,Peoples Services,Nursing Care - 3rd party top up payment,A56023,0
London Borough of Sutton,08/07/2022,50218031,"5,105.00",Hydefall Ltd,SOCIAL SERVICES RESIDENTIAL,Peoples Services,Nursing Care - Ext Provider,A56025,0
London Borough of Sutton,08/07/2022,50218131,"3,720.16",Hydefall Ltd,SOCIAL SERVICES RESIDENTIAL,Peoples Services,Nursing Care - Ext Provider,A56025,0
London Borough of Sutton,08/07/2022,50218131,-735.68,Hydefall Ltd,SOCIAL SERVICES RESIDENTIAL,Peoples Services,Nursing Care - 3rd party top up payment,A56023,0
London Borough of Sutton,08/07/2022,50218132,"3,821.24",Hydefall Ltd,SOCIAL SERVICES RESIDENTIAL,Peoples Services,Nursing Care Short Term,A56026,0
London Borough of Sutton,08/07/2022,50218132,-836.76,Hydefall Ltd,SOCIAL SERVICES RESIDENTIAL,Peoples Services,Nursing Care - 3rd party top up payment,A56023,0
London Borough of Sutton,08/07/2022,50217824,"8,746.36",Independence Homes,SOCIAL SERVICES DAY CARE,Peoples Services,Residential Care - Ext Provider,A56114,0
London Borough of Sutton,08/07/2022,50217910,"13,142.29",Independence Homes,SOCIAL SERVICES DAY CARE,Peoples Services,Residential Care - Ext Provider,A56114,0
London Borough of Sutton,08/07/2022,50217914,"6,404.00",Independence Homes,SOCIAL SERVICES DAY CARE,Peoples Services,Residential Care - Ext Provider,A56114,0
London Borough of Sutton,08/07/2022,50219274,"4,885.20",Independence Homes,SOCIAL SERVICES DAY CARE,Peoples Services,Supported Living,A56088,0
London Borough of Sutton,08/07/2022,50219275,"8,138.57",Independence Homes,SOCIAL SERVICES DAY CARE,Peoples Services,Supported Living,A56088,0
London Borough of Sutton,08/07/2022,50219278,"3,699.30",Independence Homes,SOCIAL SERVICES DAY CARE,Peoples Services,Supported Living,A56088,0
London Borough of Sutton,08/07/2022,50219281,"4,660.20",Independence Homes,SOCIAL SERVICES DAY CARE,Peoples Services,Supported Living,A56088,0
London Borough of Sutton,08/07/2022,50219283,"7,353.90",Independence Homes,SOCIAL SERVICES DAY CARE,Peoples Services,Supported Living,A56088,0
London Borough of Sutton,08/07/2022,50219284,"6,292.80",Independence Homes,SOCIAL SERVICES DAY CARE,Peoples Services,Supported Living,A56088,0
London Borough of Sutton,08/07/2022,50219285,"6,705.00",Independence Homes,SOCIAL SERVICES DAY CARE,Peoples Services,Supported Living,A56088,0
London Borough of Sutton,08/07/2022,50219286,"6,018.30",Independence Homes,SOCIAL SERVICES DAY CARE,Peoples Services,Supported Living,A56088,0
London Borough of Sutton,08/07/2022,50217996,"4,442.16",Independent Lifestyle Options,SOCIAL SERVICES RESIDENTIAL,Peoples Services,Residential Care - Ext Provider,A56114,0
London Borough of Sutton,08/07/2022,50217728,"3,874.32",Janith Homes Ltd,SOCIAL SERVICES RESIDENTIAL,Peoples Services,Residential Care - Ext Provider,A56114,0
London Borough of Sutton,08/07/2022,50217728,-468.50,Janith Homes Ltd,SOCIAL SERVICES RESIDENTIAL,Peoples Services,Residential Care - Client Cont ( Net Paymt ),A56113,0
London Borough of Sutton,08/07/2022,50217820,"3,942.88",Jesmund Care Ltd,SOCIAL SERVICES RESIDENTIAL,Peoples Services,Nursing Care - Ext Provider,A56025,0
London Borough of Sutton,08/07/2022,50217845,"3,665.20",Jesmund Care Ltd,SOCIAL SERVICES RESIDENTIAL,Peoples Services,Nursing Care - Ext Provider,A56025,0
London Borough of Sutton,08/07/2022,50217845,-632.64,Jesmund Care Ltd,SOCIAL SERVICES RESIDENTIAL,Peoples Services,Nursing Care - 3rd party top up payment,A56023,0
London Borough of Sutton,08/07/2022,50217895,"3,734.88",Jesmund Care Ltd,SOCIAL SERVICES RESIDENTIAL,Peoples Services,Nursing Care - Ext Provider,A56025,0
London Borough of Sutton,08/07/2022,50217895,-750.40,Jesmund Care Ltd,SOCIAL SERVICES RESIDENTIAL,Peoples Services,Nursing Care - 3rd party top up payment,A56023,0
London Borough of Sutton,08/07/2022,50217966,-750.40,Jesmund Care Ltd,SOCIAL SERVICES RESIDENTIAL,Peoples Services,Nursing Care - 3rd party top up payment,A56023,0
London Borough of Sutton,08/07/2022,50217966,"3,735.28",Jesmund Care Ltd,SOCIAL SERVICES RESIDENTIAL,Peoples Services,Nursing Care - Ext Provider,A56025,0
London Borough of Sutton,08/07/2022,50218016,"3,848.24",Jesmund Care Ltd,SOCIAL SERVICES RESIDENTIAL,Peoples Services,Nursing Care Short Term,A56026,0
London Borough of Sutton,08/07/2022,50218016,-750.40,Jesmund Care Ltd,SOCIAL SERVICES RESIDENTIAL,Peoples Services,Nursing Care - 3rd party top up payment,A56023,0
London Borough of Sutton,08/07/2022,50218086,"3,079.72",Jesmund Care Ltd,SOCIAL SERVICES RESIDENTIAL,Peoples Services,Nursing Care - Ext Provider,A56025,0
London Borough of Sutton,08/07/2022,50218086,-850.40,Jesmund Care Ltd,SOCIAL SERVICES RESIDENTIAL,Peoples Services,Nursing Care - 3rd party top up payment,A56023,0
London Borough of Sutton,08/07/2022,50218087,"3,734.88",Jesmund Care Ltd,SOCIAL SERVICES RESIDENTIAL,Peoples Services,Nursing Care - Ext Provider,A56025,0
London Borough of Sutton,08/07/2022,50218087,-750.40,Jesmund Care Ltd,SOCIAL SERVICES RESIDENTIAL,Peoples Services,Nursing Care - 3rd party top up payment,A56023,0
London Borough of Sutton,08/07/2022,50218133,-735.68,Jesmund Care Ltd,SOCIAL SERVICES RESIDENTIAL,Peoples Services,Nursing Care - 3rd party top up payment,A56023,0
London Borough of Sutton,08/07/2022,50218133,"3,833.52",Jesmund Care Ltd,SOCIAL SERVICES RESIDENTIAL,Peoples Services,Nursing Care - Ext Provider,A56025,0
London Borough of Sutton,08/07/2022,50218154,"3,734.88",Jesmund Care Ltd,SOCIAL SERVICES RESIDENTIAL,Peoples Services,Nursing Care - Ext Provider,A56025,0
London Borough of Sutton,08/07/2022,50218154,-750.40,Jesmund Care Ltd,SOCIAL SERVICES RESIDENTIAL,Peoples Services,Nursing Care - 3rd party top up payment,A56023,0
London Borough of Sutton,08/07/2022,50217832,"3,720.16",Jesmund Care Ltd,SOCIAL SERVICES RESIDENTIAL,Peoples Services,Nursing Care - Ext Provider,A56025,0
London Borough of Sutton,08/07/2022,50217877,"3,734.88",Jesmund Care Ltd,SOCIAL SERVICES RESIDENTIAL,Peoples Services,Nursing Care - Ext Provider,A56025,0
London Borough of Sutton,08/07/2022,50217878,"3,734.88",Jesmund Care Ltd,SOCIAL SERVICES RESIDENTIAL,Peoples Services,Nursing Care - Ext Provider,A56025,0
London Borough of Sutton,08/07/2022,50217925,"3,734.88",Jesmund Care Ltd,SOCIAL SERVICES RESIDENTIAL,Peoples Services,Nursing Care - Ext Provider,A56025,0
London Borough of Sutton,08/07/2022,50218102,"6,425.32",Jesmund Care Ltd,SOCIAL SERVICES RESIDENTIAL,Peoples Services,Nursing Care - Ext Provider,A56025,0
London Borough of Sutton,08/07/2022,50217694,"2,282.86",Kenward Trust,GRANTS & EX GRATIA PAYMENTS,Peoples Services,Interim Placements - Ext Provider,A56102,0
London Borough of Sutton,08/07/2022,50217694,-442.29,Kenward Trust,GRANTS & EX GRATIA PAYMENTS,Peoples Services,Residential Care - Client Cont ( Net Paymt ),A56113,0
London Borough of Sutton,08/07/2022,50217765,"10,246.56",Keychange Charity,SOCIAL SERVICES RESIDENTIAL,Peoples Services,Residential Care - Ext Provider,A56114,0
London Borough of Sutton,08/07/2022,50217755,"3,320.32",Langley Court Rest Home Limited,SOCIAL SERVICES RESIDENTIAL,Peoples Services,Interim Placements - Ext Provider,A56102,0
London Borough of Sutton,08/07/2022,50217730,"4,105.92",L'Arche Bognor Regis,SOCIAL SERVICES RESIDENTIAL,Peoples Services,Residential Care - Ext Provider,A56114,0
London Borough of Sutton,08/07/2022,50217730,-425.60,L'Arche Bognor Regis,SOCIAL SERVICES RESIDENTIAL,Peoples Services,Residential Care - Client Cont ( Net Paymt ),A56113,0
London Borough of Sutton,08/07/2022,50217688,-425.60,Laurel Residential Homes Ltd,SOCIAL SERVICES RESIDENTIAL,Peoples Services,Residential Care - Client Cont ( Net Paymt ),A56113,0
London Borough of Sutton,08/07/2022,50217688,"2,827.80",Laurel Residential Homes Ltd,SOCIAL SERVICES RESIDENTIAL,Peoples Services,Residential Care - Ext Provider,A56114,0
London Borough of Sutton,08/07/2022,50217742,"3,648.20",Laurel Residential Homes Ltd,SOCIAL SERVICES RESIDENTIAL,Peoples Services,Residential Care - Ext Provider,A56114,0
London Borough of Sutton,08/07/2022,50217712,"9,328.80",Leonard Cheshire Disability,SOCIAL SERVICES RESIDENTIAL,Peoples Services,Residential Care - Ext Provider,A56114,0
London Borough of Sutton,08/07/2022,50217752,"6,406.36",Leonard Cheshire Disability,SOCIAL SERVICES RESIDENTIAL,Peoples Services,Residential Care - Ext Provider,A56114,0
London Borough of Sutton,08/07/2022,50217948,"5,061.52",Leonard Cheshire Disability,SOCIAL SERVICES RESIDENTIAL,Peoples Services,Residential Care - Ext Provider,A56114,0
London Borough of Sutton,08/07/2022,50218163,"6,034.32",Leonard Cheshire Disability,SOCIAL SERVICES RESIDENTIAL,Peoples Services,Residential Care - Ext Provider,A56114,0
London Borough of Sutton,08/07/2022,50217735,"2,963.40",Linden House,SOCIAL SERVICES DAY CARE,Peoples Services,Residential Care - Ext Provider,A56114,0
London Borough of Sutton,08/07/2022,50217812,"8,055.92",Living Ambitions Ltd,SOCIAL SERVICES DAY CARE,Peoples Services,Residential Care - Ext Provider,A56114,0
London Borough of Sutton,08/07/2022,50217813,"7,657.96",Living Ambitions Ltd,SOCIAL SERVICES DAY CARE,Peoples Services,Residential Care - Ext Provider,A56114,0
London Borough of Sutton,08/07/2022,50218024,"6,991.08",Living Ambitions Ltd,SOCIAL SERVICES DAY CARE,Peoples Services,Residential Care - Ext Provider,A56114,0
London Borough of Sutton,08/07/2022,50217783,"3,848.24",Lodore Nursing Home,SOCIAL SERVICES RESIDENTIAL,Peoples Services,Nursing Care Short Term,A56026,0
London Borough of Sutton,08/07/2022,50217783,-750.40,Lodore Nursing Home,SOCIAL SERVICES RESIDENTIAL,Peoples Services,Nursing Care - 3rd party top up payment,A56023,0
London Borough of Sutton,08/07/2022,50217843,"3,665.20",Lodore Nursing Home,SOCIAL SERVICES RESIDENTIAL,Peoples Services,Nursing Care - Ext Provider,A56025,0
London Borough of Sutton,08/07/2022,50217843,-632.64,Lodore Nursing Home,SOCIAL SERVICES RESIDENTIAL,Peoples Services,Nursing Care - 3rd party top up payment,A56023,0
London Borough of Sutton,08/07/2022,50217953,-545.48,Lodore Nursing Home,SOCIAL SERVICES RESIDENTIAL,Peoples Services,Nursing Care - 3rd party top up payment,A56023,0
London Borough of Sutton,08/07/2022,50217953,"4,286.12",Lodore Nursing Home,SOCIAL SERVICES RESIDENTIAL,Peoples Services,Nursing Care - Ext Provider,A56025,0
London Borough of Sutton,08/07/2022,50217953,-735.68,Lodore Nursing Home,SOCIAL SERVICES RESIDENTIAL,Peoples Services,Nursing Care - 3rd party top up payment,A56023,0
London Borough of Sutton,08/07/2022,50217957,"3,664.08",Lodore Nursing Home,SOCIAL SERVICES RESIDENTIAL,Peoples Services,Nursing Care - Ext Provider,A56025,0
London Borough of Sutton,08/07/2022,50217957,-662.24,Lodore Nursing Home,SOCIAL SERVICES RESIDENTIAL,Peoples Services,Nursing Care - 3rd party top up payment,A56023,0
London Borough of Sutton,08/07/2022,50217997,"3,848.24",Lodore Nursing Home,SOCIAL SERVICES RESIDENTIAL,Peoples Services,Nursing Care - Ext Provider,A56025,0
London Borough of Sutton,08/07/2022,50217997,-750.40,Lodore Nursing Home,SOCIAL SERVICES RESIDENTIAL,Peoples Services,Nursing Care - 3rd party top up payment,A56023,0
London Borough of Sutton,08/07/2022,50218040,"3,665.20",Lodore Nursing Home,SOCIAL SERVICES RESIDENTIAL,Peoples Services,Nursing Care - Ext Provider,A56025,0
London Borough of Sutton,08/07/2022,50218040,-632.64,Lodore Nursing Home,SOCIAL SERVICES RESIDENTIAL,Peoples Services,Nursing Care - 3rd party top up payment,A56023,0
London Borough of Sutton,08/07/2022,50218041,"3,542.00",Lodore Nursing Home,SOCIAL SERVICES RESIDENTIAL,Peoples Services,Nursing Care - Ext Provider,A56025,0
London Borough of Sutton,08/07/2022,50218041,-632.64,Lodore Nursing Home,SOCIAL SERVICES RESIDENTIAL,Peoples Services,Nursing Care - 3rd party top up payment,A56023,0
London Borough of Sutton,08/07/2022,50218042,"1,532.14",Lodore Nursing Home,SOCIAL SERVICES RESIDENTIAL,Peoples Services,Nursing Care Short Term,A56026,0
London Borough of Sutton,08/07/2022,50218042,-328.73,Lodore Nursing Home,SOCIAL SERVICES RESIDENTIAL,Peoples Services,Nursing Care - 3rd party top up payment,A56023,0
London Borough of Sutton,08/07/2022,50218106,"3,848.24",Lodore Nursing Home,SOCIAL SERVICES RESIDENTIAL,Peoples Services,Nursing Care - Ext Provider,A56025,0
London Borough of Sutton,08/07/2022,50218106,-750.40,Lodore Nursing Home,SOCIAL SERVICES RESIDENTIAL,Peoples Services,Nursing Care - 3rd party top up payment,A56023,0
London Borough of Sutton,08/07/2022,50218147,"3,587.60",Lodore Nursing Home,SOCIAL SERVICES RESIDENTIAL,Peoples Services,Nursing Care - Ext Provider,A56025,0
London Borough of Sutton,08/07/2022,50218147,-662.24,Lodore Nursing Home,SOCIAL SERVICES RESIDENTIAL,Peoples Services,Nursing Care - 3rd party top up payment,A56023,0
London Borough of Sutton,08/07/2022,50218148,"3,734.88",Lodore Nursing Home,SOCIAL SERVICES RESIDENTIAL,Peoples Services,Nursing Care - Ext Provider,A56025,0
London Borough of Sutton,08/07/2022,50218148,-750.40,Lodore Nursing Home,SOCIAL SERVICES RESIDENTIAL,Peoples Services,Nursing Care - 3rd party top up payment,A56023,0
London Borough of Sutton,08/07/2022,50217860,"-1,156.18",Lorven Housing Ltd,SOCIAL SERVICES RESIDENTIAL,Peoples Services,Interim Placements - Ext Provider,A56102,0
London Borough of Sutton,08/07/2022,50217990,-735.68,Lorven Housing Ltd,SOCIAL SERVICES RESIDENTIAL,Peoples Services,Nursing Care - 3rd party top up payment,A56023,0
London Borough of Sutton,08/07/2022,50217990,"3,720.16",Lorven Housing Ltd,SOCIAL SERVICES RESIDENTIAL,Peoples Services,Nursing Care - Ext Provider,A56025,0
London Borough of Sutton,08/07/2022,50218026,"2,800.00",Lorven Housing Ltd,SOCIAL SERVICES RESIDENTIAL,Peoples Services,Residential Care Respite,A56018,0
London Borough of Sutton,08/07/2022,50218027,"1,700.00",Lorven Housing Ltd,SOCIAL SERVICES RESIDENTIAL,Peoples Services,Interim Placements - Ext Provider,A56102,0
London Borough of Sutton,08/07/2022,50218028,700.00,Lorven Housing Ltd,SOCIAL SERVICES RESIDENTIAL,Peoples Services,Interim Placements - Ext Provider,A56102,0
London Borough of Sutton,08/07/2022,50218092,"2,900.00",Lorven Housing Ltd,SOCIAL SERVICES RESIDENTIAL,Peoples Services,Interim Placements - Ext Provider,A56102,0
London Borough of Sutton,08/07/2022,50217849,"9,110.84",Loving Care Ltd,SOCIAL SERVICES RESIDENTIAL,Peoples Services,Residential Care - Ext Provider,A56114,0
London Borough of Sutton,08/07/2022,50218156,"4,215.92",Macintyre,SOCIAL SERVICES RESIDENTIAL,Peoples Services,Residential Care - Ext Provider,A56114,0
London Borough of Sutton,08/07/2022,50218156,-618.80,Macintyre,SOCIAL SERVICES RESIDENTIAL,Peoples Services,Residential Care - Client Cont ( Net Paymt ),A56113,0
London Borough of Sutton,08/07/2022,50217771,"7,028.80",Maesteilo Care Homes Ltd,SOCIAL SERVICES RESIDENTIAL,Peoples Services,Residential Care - Ext Provider,A56114,0
London Borough of Sutton,08/07/2022,50217718,"3,735.36",Magic Life Ltd,SOCIAL SERVICES RESIDENTIAL,Peoples Services,Residential Care - Ext Provider,A56114,0
London Borough of Sutton,08/07/2022,50217983,"3,735.36",Methodist Homes ,SOCIAL SERVICES RESIDENTIAL,Peoples Services,Residential Care - Ext Provider,A56114,0
London Borough of Sutton,08/07/2022,50217988,"4,000.00",Methodist Homes ,SOCIAL SERVICES RESIDENTIAL,Peoples Services,Interim Placements - Ext Provider,A56102,0
London Borough of Sutton,08/07/2022,50218063,"2,697.76",Methodist Homes ,SOCIAL SERVICES RESIDENTIAL,Peoples Services,Residential Care - Ext Provider,A56114,0
London Borough of Sutton,08/07/2022,50217897,"3,449.04",Metropolitan Support Trust,SOCIAL SERVICES RESIDENTIAL,Peoples Services,Residential Care - Ext Provider,A56114,0
London Borough of Sutton,08/07/2022,50217897,-425.60,Metropolitan Support Trust,SOCIAL SERVICES RESIDENTIAL,Peoples Services,Residential Care - Client Cont ( Net Paymt ),A56113,0
London Borough of Sutton,08/07/2022,50217898,"3,320.24",Metropolitan Support Trust,SOCIAL SERVICES RESIDENTIAL,Peoples Services,Residential Care - Ext Provider,A56114,0
London Borough of Sutton,08/07/2022,50217898,-438.80,Metropolitan Support Trust,SOCIAL SERVICES RESIDENTIAL,Peoples Services,Residential Care - Client Cont ( Net Paymt ),A56113,0
London Borough of Sutton,08/07/2022,50217904,"3,320.24",Metropolitan Support Trust,SOCIAL SERVICES RESIDENTIAL,Peoples Services,Residential Care - Ext Provider,A56114,0
London Borough of Sutton,08/07/2022,50217929,"3,320.24",Metropolitan Support Trust,SOCIAL SERVICES RESIDENTIAL,Peoples Services,Residential Care - Ext Provider,A56114,0
London Borough of Sutton,08/07/2022,50217970,"3,320.24",Metropolitan Support Trust,SOCIAL SERVICES RESIDENTIAL,Peoples Services,Residential Care - Ext Provider,A56114,0
London Borough of Sutton,08/07/2022,50217970,-784.00,Metropolitan Support Trust,SOCIAL SERVICES RESIDENTIAL,Peoples Services,Residential Care - Client Cont ( Net Paymt ),A56113,0
London Borough of Sutton,08/07/2022,50218019,"3,320.24",Metropolitan Support Trust,SOCIAL SERVICES RESIDENTIAL,Peoples Services,Residential Care - Ext Provider,A56114,0
London Borough of Sutton,08/07/2022,50218019,-468.50,Metropolitan Support Trust,SOCIAL SERVICES RESIDENTIAL,Peoples Services,Residential Care - Client Cont ( Net Paymt ),A56113,0
London Borough of Sutton,08/07/2022,50218020,"3,320.24",Metropolitan Support Trust,SOCIAL SERVICES RESIDENTIAL,Peoples Services,Residential Care - Ext Provider,A56114,0
London Borough of Sutton,08/07/2022,50218020,-425.60,Metropolitan Support Trust,SOCIAL SERVICES RESIDENTIAL,Peoples Services,Residential Care - Client Cont ( Net Paymt ),A56113,0
London Borough of Sutton,08/07/2022,50218089,"3,320.24",Metropolitan Support Trust,SOCIAL SERVICES RESIDENTIAL,Peoples Services,Residential Care - Ext Provider,A56114,0
London Borough of Sutton,08/07/2022,50218089,-638.00,Metropolitan Support Trust,SOCIAL SERVICES RESIDENTIAL,Peoples Services,Residential Care - Client Cont ( Net Paymt ),A56113,0
London Borough of Sutton,08/07/2022,50218122,"3,320.24",Metropolitan Support Trust,SOCIAL SERVICES RESIDENTIAL,Peoples Services,Residential Care - Ext Provider,A56114,0
London Borough of Sutton,08/07/2022,50218166,"3,980.08",Metropolitan Support Trust,SOCIAL SERVICES RESIDENTIAL,Peoples Services,Residential Care - Ext Provider,A56114,0
London Borough of Sutton,08/07/2022,50217697,-632.64,Mission Care (Elmwood Nursing Home),SOCIAL SERVICES RESIDENTIAL,Peoples Services,Nursing Care - 3rd party top up payment,A56023,0
London Borough of Sutton,08/07/2022,50217697,"3,623.40",Mission Care (Elmwood Nursing Home),SOCIAL SERVICES RESIDENTIAL,Peoples Services,Nursing Care - Ext Provider,A56025,0
London Borough of Sutton,08/07/2022,50217757,"7,968.76",Mitchell's Care Homes Ltd ,SOCIAL SERVICES RESIDENTIAL,Peoples Services,Residential Care - Ext Provider,A56114,0
London Borough of Sutton,08/07/2022,50217769,-662.24,MMCG 2 Ltd,SOCIAL SERVICES RESIDENTIAL,Peoples Services,Nursing Care - 3rd party top up payment,A56023,0
London Borough of Sutton,08/07/2022,50217769,"3,587.60",MMCG 2 Ltd,SOCIAL SERVICES RESIDENTIAL,Peoples Services,Nursing Care - Ext Provider,A56025,0
London Borough of Sutton,08/07/2022,50218059,-735.68,MMCG 2 Ltd,SOCIAL SERVICES RESIDENTIAL,Peoples Services,Nursing Care - 3rd party top up payment,A56023,0
London Borough of Sutton,08/07/2022,50218059,"3,720.16",MMCG 2 Ltd,SOCIAL SERVICES RESIDENTIAL,Peoples Services,Nursing Care - Ext Provider,A56025,0
London Borough of Sutton,08/07/2022,50218162,"4,540.52",MMCG 2 Ltd,SOCIAL SERVICES RESIDENTIAL,Peoples Services,Nursing Care - Ext Provider,A56025,0
London Borough of Sutton,08/07/2022,50218162,-937.76,MMCG 2 Ltd,SOCIAL SERVICES RESIDENTIAL,Peoples Services,Nursing Care - 3rd party top up payment,A56023,0
London Borough of Sutton,08/07/2022,50218162,-662.24,MMCG 2 Ltd,SOCIAL SERVICES RESIDENTIAL,Peoples Services,Nursing Care - 3rd party top up payment,A56023,0
London Borough of Sutton,08/07/2022,50217686,"4,326.56",Modus Care Ltd,SOCIAL SERVICES RESIDENTIAL,Peoples Services,Residential Care - Ext Provider,A56114,0
London Borough of Sutton,08/07/2022,50217686,-438.80,Modus Care Ltd,SOCIAL SERVICES RESIDENTIAL,Peoples Services,Residential Care - Client Cont ( Net Paymt ),A56113,0
London Borough of Sutton,08/07/2022,50217710,"9,230.48",Modus Care Ltd,SOCIAL SERVICES RESIDENTIAL,Peoples Services,Residential Care - Ext Provider,A56114,0
London Borough of Sutton,08/07/2022,50217868,"2,697.76",Montclair,SOCIAL SERVICES RESIDENTIAL,Peoples Services,Residential Care - Ext Provider,A56114,0
London Borough of Sutton,08/07/2022,50217909,"2,697.76",Montclair,SOCIAL SERVICES RESIDENTIAL,Peoples Services,Residential Care - Ext Provider,A56114,0
London Borough of Sutton,08/07/2022,50221118,"5,920.00",Morton Gardens Ltd,SOCIAL SERVICES DAY CARE,Peoples Services,Supported Living,A56088,0
London Borough of Sutton,08/07/2022,50221119,"5,960.00",Morton Gardens Ltd,SOCIAL SERVICES DAY CARE,Peoples Services,Supported Living,A56088,0
London Borough of Sutton,08/07/2022,50217689,"2,302.36",REDACTED - PERSONAL DATA,SOCIAL SERVICES RESIDENTIAL,Peoples Services,Residential Care - Ext Provider,A56114,0
London Borough of Sutton,08/07/2022,50217689,-694.80,REDACTED - PERSONAL DATA,SOCIAL SERVICES RESIDENTIAL,Peoples Services,Residential Care - Client Cont ( Net Paymt ),A56113,0
London Borough of Sutton,08/07/2022,50217816,"2,697.76",REDACTED - PERSONAL DATA,SOCIAL SERVICES RESIDENTIAL,Peoples Services,Residential Care - Ext Provider,A56114,0
London Borough of Sutton,08/07/2022,50217817,"2,697.76",REDACTED - PERSONAL DATA,SOCIAL SERVICES RESIDENTIAL,Peoples Services,Residential Care - Ext Provider,A56114,0
London Borough of Sutton,08/07/2022,50217818,"2,697.76",REDACTED - PERSONAL DATA,SOCIAL SERVICES RESIDENTIAL,Peoples Services,Residential Care - Ext Provider,A56114,0
London Borough of Sutton,08/07/2022,50217864,"2,697.76",REDACTED - PERSONAL DATA,SOCIAL SERVICES RESIDENTIAL,Peoples Services,Residential Care - Ext Provider,A56114,0
London Borough of Sutton,08/07/2022,50217865,"2,697.76",REDACTED - PERSONAL DATA,SOCIAL SERVICES RESIDENTIAL,Peoples Services,Residential Care - Ext Provider,A56114,0
London Borough of Sutton,08/07/2022,50217888,"2,801.52",REDACTED - PERSONAL DATA,SOCIAL SERVICES RESIDENTIAL,Peoples Services,Interim Placements - Ext Provider,A56102,0
London Borough of Sutton,08/07/2022,50218088,"1,139.28",REDACTED - PERSONAL DATA,SOCIAL SERVICES RESIDENTIAL,Peoples Services,Interim Placements - Ext Provider,A56102,0
London Borough of Sutton,08/07/2022,50218114,"2,905.28",REDACTED - PERSONAL DATA,SOCIAL SERVICES RESIDENTIAL,Peoples Services,Interim Placements - Ext Provider,A56102,0
London Borough of Sutton,08/07/2022,50218123,"2,697.76",REDACTED - PERSONAL DATA,SOCIAL SERVICES RESIDENTIAL,Peoples Services,Residential Care - Ext Provider,A56114,0
London Borough of Sutton,08/07/2022,50218124,"2,697.76",REDACTED - PERSONAL DATA,SOCIAL SERVICES RESIDENTIAL,Peoples Services,Residential Care - Ext Provider,A56114,0
London Borough of Sutton,08/07/2022,50218168,"2,697.76",REDACTED - PERSONAL DATA,SOCIAL SERVICES RESIDENTIAL,Peoples Services,Residential Care - Ext Provider,A56114,0
London Borough of Sutton,08/07/2022,50217750,"5,569.12",REDACTED - PERSONAL DATA,SOCIAL SERVICES RESIDENTIAL,Peoples Services,Residential Care - Ext Provider,A56114,0
London Borough of Sutton,08/07/2022,50217750,-236.40,REDACTED - PERSONAL DATA,SOCIAL SERVICES RESIDENTIAL,Peoples Services,Residential Care - Client Cont ( Net Paymt ),A56113,0
London Borough of Sutton,08/07/2022,50217947,"4,576.12",REDACTED - PERSONAL DATA,SOCIAL SERVICES RESIDENTIAL,Peoples Services,Residential Care - Ext Provider,A56114,0
London Borough of Sutton,08/07/2022,50217947,-425.60,REDACTED - PERSONAL DATA,SOCIAL SERVICES RESIDENTIAL,Peoples Services,Residential Care - Client Cont ( Net Paymt ),A56113,0
London Borough of Sutton,08/07/2022,50218077,"5,638.08",REDACTED - PERSONAL DATA,SOCIAL SERVICES RESIDENTIAL,Peoples Services,Residential Care - Ext Provider,A56114,0
London Borough of Sutton,08/07/2022,50218077,-438.80,REDACTED - PERSONAL DATA,SOCIAL SERVICES RESIDENTIAL,Peoples Services,Residential Care - Client Cont ( Net Paymt ),A56113,0
London Borough of Sutton,08/07/2022,50217727,"5,354.76",NAS Services Ltd ,SOCIAL SERVICES RESIDENTIAL,Peoples Services,Residential Care - Ext Provider,A56114,0
London Borough of Sutton,08/07/2022,50217727,-425.60,NAS Services Ltd ,SOCIAL SERVICES RESIDENTIAL,Peoples Services,Residential Care - Client Cont ( Net Paymt ),A56113,0
London Borough of Sutton,08/07/2022,50218137,"4,648.44",Nash Care Homes Ltd,SOCIAL SERVICES RESIDENTIAL,Peoples Services,Residential Care - Ext Provider,A56114,0
London Borough of Sutton,08/07/2022,50217696,"7,146.08",Ncype,GRANTS & EX GRATIA PAYMENTS,Peoples Services,Interim Placements - Ext Provider,A56102,0
London Borough of Sutton,08/07/2022,50217975,"6,121.84",New Life Care Ltd,SOCIAL SERVICES RESIDENTIAL,Peoples Services,Residential Care - Ext Provider,A56114,0
London Borough of Sutton,08/07/2022,50217975,"-2,891.00",New Life Care Ltd,SOCIAL SERVICES RESIDENTIAL,Peoples Services,Nursing Care - 3rd party top up payment,A56023,0
London Borough of Sutton,08/07/2022,50218097,"5,916.40",New Life Care Ltd,SOCIAL SERVICES RESIDENTIAL,Peoples Services,Residential Care - Ext Provider,A56114,0
London Borough of Sutton,08/07/2022,50218121,"5,706.80",New Life Care Ltd,SOCIAL SERVICES RESIDENTIAL,Peoples Services,Interim Placements - Ext Provider,A56102,0
London Borough of Sutton,08/07/2022,50217986,-750.40,Newslease Ltd,SOCIAL SERVICES RESIDENTIAL,Peoples Services,Nursing Care - 3rd party top up payment,A56023,0
London Borough of Sutton,08/07/2022,50217986,"3,734.88",Newslease Ltd,SOCIAL SERVICES RESIDENTIAL,Peoples Services,Nursing Care Short Term,A56026,0
London Borough of Sutton,08/07/2022,50218130,-750.40,Newslease Ltd,SOCIAL SERVICES RESIDENTIAL,Peoples Services,Nursing Care - 3rd party top up payment,A56023,0
London Borough of Sutton,08/07/2022,50218130,"4,122.20",Newslease Ltd,SOCIAL SERVICES RESIDENTIAL,Peoples Services,Nursing Care Short Term,A56026,0
London Borough of Sutton,08/07/2022,20028048,736.00,Nickel Support Community Interest Company,CONFERENCES,Peoples Services,Play Groups,A56111,0
London Borough of Sutton,08/07/2022,50217796,"9,061.44",Norwood Schools Ltd,CHILDREN'S SERVICES - RESIDENTIAL,Peoples Services,Residential Care - Ext Provider,A56114,0
London Borough of Sutton,08/07/2022,50217796,-438.80,Norwood Schools Ltd,CHILDREN'S SERVICES - RESIDENTIAL,Peoples Services,Residential Care - Client Cont ( Net Paymt ),A56113,0
London Borough of Sutton,08/07/2022,50217854,"4,132.12",Norwood Schools Ltd,CHILDREN'S SERVICES - RESIDENTIAL,Peoples Services,Residential Care - Ext Provider,A56114,0
London Borough of Sutton,08/07/2022,50217854,-425.60,Norwood Schools Ltd,CHILDREN'S SERVICES - RESIDENTIAL,Peoples Services,Residential Care - Client Cont ( Net Paymt ),A56113,0
London Borough of Sutton,08/07/2022,50217774,"8,195.67",NRS Heathcare Ltd ,SOCIAL SERVICES RESIDENTIAL,Peoples Services,Nursing Care - Ext Provider,A56025,0
London Borough of Sutton,08/07/2022,50217774,-750.40,NRS Heathcare Ltd ,SOCIAL SERVICES RESIDENTIAL,Peoples Services,Nursing Care - 3rd party top up payment,A56023,0
London Borough of Sutton,08/07/2022,50217873,"2,697.76",NRS Heathcare Ltd ,SOCIAL SERVICES RESIDENTIAL,Peoples Services,Residential Care - Ext Provider,A56114,0
London Borough of Sutton,08/07/2022,50217882,-735.68,NRS Heathcare Ltd ,SOCIAL SERVICES RESIDENTIAL,Peoples Services,Nursing Care - 3rd party top up payment,A56023,0
London Borough of Sutton,08/07/2022,50217882,"4,952.80",NRS Heathcare Ltd ,SOCIAL SERVICES RESIDENTIAL,Peoples Services,Nursing Care - Ext Provider,A56025,0
London Borough of Sutton,08/07/2022,50217916,"5,716.16",NRS Heathcare Ltd ,SOCIAL SERVICES RESIDENTIAL,Peoples Services,Nursing Care - Ext Provider,A56025,0
London Borough of Sutton,08/07/2022,50217916,-656.84,NRS Heathcare Ltd ,SOCIAL SERVICES RESIDENTIAL,Peoples Services,Nursing Care - 3rd party top up payment,A56023,0
London Borough of Sutton,08/07/2022,50217916,-735.68,NRS Heathcare Ltd ,SOCIAL SERVICES RESIDENTIAL,Peoples Services,Nursing Care - 3rd party top up payment,A56023,0
London Borough of Sutton,08/07/2022,50217952,-750.40,NRS Heathcare Ltd ,SOCIAL SERVICES RESIDENTIAL,Peoples Services,Nursing Care - 3rd party top up payment,A56023,0
London Borough of Sutton,08/07/2022,50217952,"14,736.40",NRS Heathcare Ltd ,SOCIAL SERVICES RESIDENTIAL,Peoples Services,Nursing Care Short Term,A56026,0
London Borough of Sutton,08/07/2022,50217976,"3,736.00",NRS Heathcare Ltd ,SOCIAL SERVICES RESIDENTIAL,Peoples Services,Nursing Care Short Term,A56026,0
London Borough of Sutton,08/07/2022,50217976,-750.40,NRS Heathcare Ltd ,SOCIAL SERVICES RESIDENTIAL,Peoples Services,Nursing Care - 3rd party top up payment,A56023,0
London Borough of Sutton,08/07/2022,50217711,"3,400.00",Oakfield Care (Ashtead) Ltd,SOCIAL SERVICES RESIDENTIAL,Peoples Services,Nursing Care - Ext Provider,A56025,0
London Borough of Sutton,08/07/2022,50217926,"3,623.64",Orchard Vale Trust,SOCIAL SERVICES RESIDENTIAL,Peoples Services,Residential Care - Ext Provider,A56114,0
London Borough of Sutton,08/07/2022,50217926,-438.80,Orchard Vale Trust,SOCIAL SERVICES RESIDENTIAL,Peoples Services,Residential Care - Client Cont ( Net Paymt ),A56113,0
London Borough of Sutton,08/07/2022,50218022,"3,623.64",Orchard Vale Trust,SOCIAL SERVICES RESIDENTIAL,Peoples Services,Residential Care - Ext Provider,A56114,0
London Borough of Sutton,08/07/2022,50218022,-425.60,Orchard Vale Trust,SOCIAL SERVICES RESIDENTIAL,Peoples Services,Residential Care - Client Cont ( Net Paymt ),A56113,0
London Borough of Sutton,08/07/2022,50217857,"5,375.16",Oregon Care Ltd,SOCIAL SERVICES RESIDENTIAL,Peoples Services,Residential Care - Ext Provider,A56114,0
London Borough of Sutton,08/07/2022,50217857,"5,438.57",Oregon Care Ltd,SOCIAL SERVICES RESIDENTIAL,Peoples Services,Residential Care - Client Cont ( Net Paymt ),A56113,0
London Borough of Sutton,08/07/2022,50217857,"-5,604.75",Oregon Care Ltd,SOCIAL SERVICES RESIDENTIAL,Peoples Services,Residential Care - Client Cont ( Net Paymt ),A56113,0
London Borough of Sutton,08/07/2022,50217857,"1,003.88",Oregon Care Ltd,SOCIAL SERVICES RESIDENTIAL,Peoples Services,Residential Care - Client Cont ( Net Paymt ),A56113,0
London Borough of Sutton,08/07/2022,50217753,"2,306.20",Orione Care,SOCIAL SERVICES RESIDENTIAL,Peoples Services,Residential Care - Ext Provider,A56114,0
London Borough of Sutton,08/07/2022,50217753,-425.60,Orione Care,SOCIAL SERVICES RESIDENTIAL,Peoples Services,Residential Care - Client Cont ( Net Paymt ),A56113,0
London Borough of Sutton,08/07/2022,50217869,"2,669.16",Park Lodge,SOCIAL SERVICES RESIDENTIAL,Peoples Services,Residential Care - Ext Provider,A56114,0
London Borough of Sutton,08/07/2022,50218054,"2,845.60",Park Lodge,SOCIAL SERVICES RESIDENTIAL,Peoples Services,Residential Care - Ext Provider,A56114,0
London Borough of Sutton,08/07/2022,50218060,"3,400.00",Park Lodge,SOCIAL SERVICES RESIDENTIAL,Peoples Services,Residential Care - Ext Provider,A56114,0
London Borough of Sutton,08/07/2022,50218060,200.00,Park Lodge,SOCIAL SERVICES RESIDENTIAL,Peoples Services,One to One Care,A56108,0
London Borough of Sutton,08/07/2022,50217805,"3,653.72",Parkside Nursing Home Ltd,SOCIAL SERVICES RESIDENTIAL,Peoples Services,Nursing Care - Ext Provider,A56025,0
London Borough of Sutton,08/07/2022,50217805,-662.24,Parkside Nursing Home Ltd,SOCIAL SERVICES RESIDENTIAL,Peoples Services,Nursing Care - 3rd party top up payment,A56023,0
London Borough of Sutton,08/07/2022,50217844,"-6,908.87",Parkside Nursing Home Ltd,SOCIAL SERVICES RESIDENTIAL,Peoples Services,Nursing Care - Ext Provider,A56025,0
London Borough of Sutton,08/07/2022,50217844,"1,366.27",Parkside Nursing Home Ltd,SOCIAL SERVICES RESIDENTIAL,Peoples Services,Nursing Care - 3rd party top up payment,A56023,0
London Borough of Sutton,08/07/2022,50217885,"3,720.16",Parkside Nursing Home Ltd,SOCIAL SERVICES RESIDENTIAL,Peoples Services,Nursing Care - Ext Provider,A56025,0
London Borough of Sutton,08/07/2022,50217885,-735.68,Parkside Nursing Home Ltd,SOCIAL SERVICES RESIDENTIAL,Peoples Services,Nursing Care - 3rd party top up payment,A56023,0
London Borough of Sutton,08/07/2022,50217911,"20,948.29",Parkside Nursing Home Ltd,SOCIAL SERVICES RESIDENTIAL,Peoples Services,Nursing Care - Ext Provider,A56025,0
London Borough of Sutton,08/07/2022,50217932,-750.40,Parkside Nursing Home Ltd,SOCIAL SERVICES RESIDENTIAL,Peoples Services,Nursing Care - 3rd party top up payment,A56023,0
London Borough of Sutton,08/07/2022,50217937,"-22,277.89",Parkside Nursing Home Ltd,SOCIAL SERVICES RESIDENTIAL,Peoples Services,Nursing Care - Ext Provider,A56025,0
London Borough of Sutton,08/07/2022,50218100,"13,881.15",Parkside Nursing Home Ltd,SOCIAL SERVICES RESIDENTIAL,Peoples Services,Nursing Care - Ext Provider,A56025,0
London Borough of Sutton,08/07/2022,50218100,"-10,032.49",Parkside Nursing Home Ltd,SOCIAL SERVICES RESIDENTIAL,Peoples Services,Nursing Care Short Term,A56026,0
London Borough of Sutton,08/07/2022,50218100,-750.40,Parkside Nursing Home Ltd,SOCIAL SERVICES RESIDENTIAL,Peoples Services,Nursing Care - 3rd party top up payment,A56023,0
London Borough of Sutton,08/07/2022,50218107,"3,734.88",Parkside Nursing Home Ltd,SOCIAL SERVICES RESIDENTIAL,Peoples Services,Nursing Care - Ext Provider,A56025,0
London Borough of Sutton,08/07/2022,50218107,-750.40,Parkside Nursing Home Ltd,SOCIAL SERVICES RESIDENTIAL,Peoples Services,Nursing Care - 3rd party top up payment,A56023,0
London Borough of Sutton,08/07/2022,50218149,"3,734.88",Parkside Nursing Home Ltd,SOCIAL SERVICES RESIDENTIAL,Peoples Services,Nursing Care - Ext Provider,A56025,0
London Borough of Sutton,08/07/2022,50218149,-750.40,Parkside Nursing Home Ltd,SOCIAL SERVICES RESIDENTIAL,Peoples Services,Nursing Care - 3rd party top up payment,A56023,0
London Borough of Sutton,08/07/2022,50217731,"8,707.52",Peak 15 Ltd,SOCIAL SERVICES RESIDENTIAL,Peoples Services,Residential Care - Ext Provider,A56114,0
London Borough of Sutton,08/07/2022,50217731,-869.08,Peak 15 Ltd,SOCIAL SERVICES RESIDENTIAL,Peoples Services,Residential Care - Client Cont ( Net Paymt ),A56113,0
London Borough of Sutton,08/07/2022,50218061,"7,817.68",Peak 15 Ltd,SOCIAL SERVICES RESIDENTIAL,Peoples Services,Residential Care - Ext Provider,A56114,0
London Borough of Sutton,08/07/2022,20028066,745.00,Glasir Properties,PLS LANDLORDS,Environment Housing and Neighbourhoods,Miscellaneous Expenses,A49000,0
London Borough of Sutton,08/07/2022,50217756,"7,500.00",Porthaven Care Homes Ltd,SOCIAL SERVICES RESIDENTIAL,Peoples Services,Residential Care - Ext Provider,A56114,0
London Borough of Sutton,08/07/2022,50217917,"2,780.76",Primley House Housing Association Limited,SOCIAL SERVICES RESIDENTIAL,Peoples Services,Residential Care - Ext Provider,A56114,0
London Borough of Sutton,08/07/2022,20028472,"2,850.00",Profurb Ltd,CONSTRUCTION INDUSTRY,HRA,Payments to Contractors,C14000,0
London Borough of Sutton,08/07/2022,50217729,"6,918.32",Queen Elizabeth's Foundation,SOCIAL SERVICES RESIDENTIAL,Peoples Services,Residential Care - Ext Provider,A56114,0
London Borough of Sutton,08/07/2022,50217943,-836.76,RADAH CARE LIMITED,SOCIAL SERVICES RESIDENTIAL,Peoples Services,Nursing Care - 3rd party top up payment,A56023,0
London Borough of Sutton,08/07/2022,50217943,"4,436.76",RADAH CARE LIMITED,SOCIAL SERVICES RESIDENTIAL,Peoples Services,Nursing Care - Ext Provider,A56025,0
London Borough of Sutton,08/07/2022,50218036,-836.76,RADAH CARE LIMITED,SOCIAL SERVICES RESIDENTIAL,Peoples Services,Nursing Care - 3rd party top up payment,A56023,0
London Borough of Sutton,08/07/2022,50218036,"4,436.76",RADAH CARE LIMITED,SOCIAL SERVICES RESIDENTIAL,Peoples Services,Nursing Care - Ext Provider,A56025,0
London Borough of Sutton,08/07/2022,50217859,"4,768.00",Rafael Home,SOCIAL SERVICES RESIDENTIAL,Peoples Services,Residential Care - Ext Provider,A56114,0
London Borough of Sutton,08/07/2022,50217859,800.00,Rafael Home,SOCIAL SERVICES RESIDENTIAL,Peoples Services,One to One Care,A56108,0
London Borough of Sutton,08/07/2022,50217900,"4,768.00",Rafael Home,SOCIAL SERVICES RESIDENTIAL,Peoples Services,Residential Care - Ext Provider,A56114,0
London Borough of Sutton,08/07/2022,50217900,800.00,Rafael Home,SOCIAL SERVICES RESIDENTIAL,Peoples Services,One to One Care,A56108,0
London Borough of Sutton,08/07/2022,50218056,"4,045.16",Rafael Home,SOCIAL SERVICES RESIDENTIAL,Peoples Services,Residential Care - Ext Provider,A56114,0
London Borough of Sutton,08/07/2022,50218056,214.00,Rafael Home,SOCIAL SERVICES RESIDENTIAL,Peoples Services,One to One Care,A56108,0
London Borough of Sutton,08/07/2022,50218090,"4,768.00",Rafael Home,SOCIAL SERVICES RESIDENTIAL,Peoples Services,Residential Care - Ext Provider,A56114,0
London Borough of Sutton,08/07/2022,50218090,800.00,Rafael Home,SOCIAL SERVICES RESIDENTIAL,Peoples Services,One to One Care,A56108,0
London Borough of Sutton,08/07/2022,50218134,"4,768.00",Rafael Home,SOCIAL SERVICES RESIDENTIAL,Peoples Services,Residential Care - Ext Provider,A56114,0
London Borough of Sutton,08/07/2022,50218134,800.00,Rafael Home,SOCIAL SERVICES RESIDENTIAL,Peoples Services,One to One Care,A56108,0
London Borough of Sutton,08/07/2022,50220691,"1,400.00",Remark! Ltd,SOCIAL SERVICES - OTHER,Peoples Services,Home Care Services,A56019,0
London Borough of Sutton,08/07/2022,50217766,"4,993.32",Royal Masonic Benevolent Institution,SOCIAL SERVICES RESIDENTIAL,Peoples Services,Nursing Care - Ext Provider,A56025,0
London Borough of Sutton,08/07/2022,50217766,-986.18,Royal Masonic Benevolent Institution,SOCIAL SERVICES RESIDENTIAL,Peoples Services,Nursing Care - 3rd party top up payment,A56023,0
London Borough of Sutton,08/07/2022,50217698,"5,619.88",Royal Mencap Society,SOCIAL SERVICES DAY CARE,Peoples Services,Residential Care - Ext Provider,A56114,0
London Borough of Sutton,08/07/2022,50217698,-437.60,Royal Mencap Society,SOCIAL SERVICES DAY CARE,Peoples Services,Residential Care - Client Cont ( Net Paymt ),A56113,0
London Borough of Sutton,08/07/2022,50217726,"7,235.72",Royal Mencap Society,SOCIAL SERVICES DAY CARE,Peoples Services,Residential Care - Ext Provider,A56114,0
London Borough of Sutton,08/07/2022,50217738,"4,150.40",RRC Gb Ltd ,SOCIAL SERVICES RESIDENTIAL,Peoples Services,Residential Care - Ext Provider,A56114,0
London Borough of Sutton,08/07/2022,50217836,"2,697.76",Rutland House Care Home Ltd,SOCIAL SERVICES RESIDENTIAL,Peoples Services,Interim Placements - Ext Provider,A56102,0
London Borough of Sutton,08/07/2022,50217950,"-2,986.81",Rutland House Care Home Ltd,SOCIAL SERVICES RESIDENTIAL,Peoples Services,Interim Placements - Ext Provider,A56102,0
London Borough of Sutton,08/07/2022,50218169,"2,697.76",Rutland House Care Home Ltd,SOCIAL SERVICES RESIDENTIAL,Peoples Services,Residential Care - Ext Provider,A56114,0
London Borough of Sutton,08/07/2022,50217721,"2,697.76",Sanctuary Care Ltd,SOCIAL SERVICES RESIDENTIAL,Peoples Services,Residential Care - Ext Provider,A56114,0
London Borough of Sutton,08/07/2022,50217829,"7,986.50",Sanctuary Care Ltd,SOCIAL SERVICES RESIDENTIAL,Peoples Services,Residential Care - Ext Provider,A56114,0
London Borough of Sutton,08/07/2022,50218127,"3,631.60",Sanctuary Care Ltd,SOCIAL SERVICES RESIDENTIAL,Peoples Services,Residential Care - Ext Provider,A56114,0
London Borough of Sutton,08/07/2022,50217978,"3,848.24",Sanderstead Care Centre Ltd,SOCIAL SERVICES RESIDENTIAL,Peoples Services,Nursing Care - Ext Provider,A56025,0
London Borough of Sutton,08/07/2022,50217978,-750.40,Sanderstead Care Centre Ltd,SOCIAL SERVICES RESIDENTIAL,Peoples Services,Nursing Care - 3rd party top up payment,A56023,0
London Borough of Sutton,08/07/2022,50217858,"6,562.76",Seeability,SOCIAL SERVICES RESIDENTIAL,Peoples Services,Residential Care - Ext Provider,A56114,0
London Borough of Sutton,08/07/2022,50217858,-601.56,Seeability,SOCIAL SERVICES RESIDENTIAL,Peoples Services,Residential Care - Client Cont ( Net Paymt ),A56113,0
London Borough of Sutton,08/07/2022,50217775,"3,588.72",Southdown,SOCIAL SERVICES RESIDENTIAL,Peoples Services,Nursing Care - Ext Provider,A56025,0
London Borough of Sutton,08/07/2022,50217775,-632.64,Southdown,SOCIAL SERVICES RESIDENTIAL,Peoples Services,Nursing Care - 3rd party top up payment,A56023,0
London Borough of Sutton,08/07/2022,50217778,"3,734.88",Southdown,SOCIAL SERVICES RESIDENTIAL,Peoples Services,Nursing Care - Ext Provider,A56025,0
London Borough of Sutton,08/07/2022,50217778,-750.40,Southdown,SOCIAL SERVICES RESIDENTIAL,Peoples Services,Nursing Care - 3rd party top up payment,A56023,0
London Borough of Sutton,08/07/2022,50217779,"3,848.24",Southdown,SOCIAL SERVICES RESIDENTIAL,Peoples Services,Nursing Care - Ext Provider,A56025,0
London Borough of Sutton,08/07/2022,50217779,-750.40,Southdown,SOCIAL SERVICES RESIDENTIAL,Peoples Services,Nursing Care - 3rd party top up payment,A56023,0
London Borough of Sutton,08/07/2022,50217837,"3,821.24",Southdown,SOCIAL SERVICES RESIDENTIAL,Peoples Services,Nursing Care - Ext Provider,A56025,0
London Borough of Sutton,08/07/2022,50217837,-750.40,Southdown,SOCIAL SERVICES RESIDENTIAL,Peoples Services,Nursing Care - 3rd party top up payment,A56023,0
London Borough of Sutton,08/07/2022,50217838,-632.64,Southdown,SOCIAL SERVICES RESIDENTIAL,Peoples Services,Nursing Care - 3rd party top up payment,A56023,0
London Borough of Sutton,08/07/2022,50217838,"4,022.84",Southdown,SOCIAL SERVICES RESIDENTIAL,Peoples Services,Nursing Care - Ext Provider,A56025,0
London Borough of Sutton,08/07/2022,50217840,"3,848.24",Southdown,SOCIAL SERVICES RESIDENTIAL,Peoples Services,Nursing Care - Ext Provider,A56025,0
London Borough of Sutton,08/07/2022,50217840,-750.40,Southdown,SOCIAL SERVICES RESIDENTIAL,Peoples Services,Nursing Care - 3rd party top up payment,A56023,0
London Borough of Sutton,08/07/2022,50217883,-632.64,Southdown,SOCIAL SERVICES RESIDENTIAL,Peoples Services,Nursing Care - 3rd party top up payment,A56023,0
London Borough of Sutton,08/07/2022,50217883,"3,588.72",Southdown,SOCIAL SERVICES RESIDENTIAL,Peoples Services,Nursing Care - Ext Provider,A56025,0
London Borough of Sutton,08/07/2022,50217938,"3,664.08",Southdown,SOCIAL SERVICES RESIDENTIAL,Peoples Services,Nursing Care - Ext Provider,A56025,0
London Borough of Sutton,08/07/2022,50217938,-662.24,Southdown,SOCIAL SERVICES RESIDENTIAL,Peoples Services,Nursing Care - 3rd party top up payment,A56023,0
London Borough of Sutton,08/07/2022,50218037,"3,720.16",Southdown,SOCIAL SERVICES RESIDENTIAL,Peoples Services,Nursing Care - Ext Provider,A56025,0
London Borough of Sutton,08/07/2022,50218037,-735.68,Southdown,SOCIAL SERVICES RESIDENTIAL,Peoples Services,Nursing Care - 3rd party top up payment,A56023,0
London Borough of Sutton,08/07/2022,50218145,-750.40,Southdown,SOCIAL SERVICES RESIDENTIAL,Peoples Services,Nursing Care - 3rd party top up payment,A56023,0
London Borough of Sutton,08/07/2022,50218145,"3,848.24",Southdown,SOCIAL SERVICES RESIDENTIAL,Peoples Services,Nursing Care Short Term,A56026,0
London Borough of Sutton,08/07/2022,50217754,"4,221.52",St Michael's Fte Woodburne Avenue,SOCIAL SERVICES RESIDENTIAL,Peoples Services,Residential Care - Ext Provider,A56114,0
London Borough of Sutton,08/07/2022,50217725,"5,159.80",St Teresa's Home CIO,SOCIAL SERVICES RESIDENTIAL,Peoples Services,Nursing Care - Ext Provider,A56025,0
London Borough of Sutton,08/07/2022,50217725,-750.40,St Teresa's Home CIO,SOCIAL SERVICES RESIDENTIAL,Peoples Services,Nursing Care - 3rd party top up payment,A56023,0
London Borough of Sutton,08/07/2022,50217723,"3,035.71",Streetscene Addiction Recovery,SOCIAL SERVICES RESIDENTIAL,Peoples Services,Interim Placements - Ext Provider,A56102,0
London Borough of Sutton,08/07/2022,50217723,-225.11,Streetscene Addiction Recovery,SOCIAL SERVICES RESIDENTIAL,Peoples Services,Residential Care - Client Cont ( Net Paymt ),A56113,0
London Borough of Sutton,08/07/2022,50217971,"3,520.71",Streetscene Addiction Recovery,SOCIAL SERVICES RESIDENTIAL,Peoples Services,Interim Placements - Ext Provider,A56102,0
London Borough of Sutton,08/07/2022,50217971,-60.32,Streetscene Addiction Recovery,SOCIAL SERVICES RESIDENTIAL,Peoples Services,Residential Care - Client Cont ( Net Paymt ),A56113,0
London Borough of Sutton,08/07/2022,50217969,"2,000.00",Sunrise Rehabilition Centre and Trading Associates,SOCIAL SERVICES RESIDENTIAL,Peoples Services,Residential Care - Ext Provider,A56114,0
London Borough of Sutton,08/07/2022,50218011,"10,376.00",Sunrise Rehabilition Centre and Trading Associates,SOCIAL SERVICES RESIDENTIAL,Peoples Services,Interim Placements - Ext Provider,A56102,0
London Borough of Sutton,08/07/2022,50218095,"3,527.84",Sunrise Rehabilition Centre and Trading Associates,SOCIAL SERVICES RESIDENTIAL,Peoples Services,Residential Care - Ext Provider,A56114,0
London Borough of Sutton,08/07/2022,50217693,"4,700.76",Sunrise UK Operations Ltd,SOCIAL SERVICES RESIDENTIAL,Peoples Services,Residential Care - Ext Provider,A56114,0
London Borough of Sutton,08/07/2022,50217861,"-1,898.80",Supreme Homes Ltd,SOCIAL SERVICES RESIDENTIAL,Peoples Services,Nursing Care - 3rd party top up payment,A56023,0
London Borough of Sutton,08/07/2022,50217861,"3,863.16",Supreme Homes Ltd,SOCIAL SERVICES RESIDENTIAL,Peoples Services,Residential Care - Ext Provider,A56114,0
London Borough of Sutton,08/07/2022,50218151,"2,548.52",Supreme Homes Ltd,SOCIAL SERVICES RESIDENTIAL,Peoples Services,Residential Care - Ext Provider,A56114,0
London Borough of Sutton,08/07/2022,50217804,"7,872.64",Surrey & Borders Partnership NHS Trust,SOCIAL SERVICES RESIDENTIAL,Peoples Services,Residential Care - Ext Provider,A56114,0
London Borough of Sutton,08/07/2022,50217804,-496.80,Surrey & Borders Partnership NHS Trust,SOCIAL SERVICES RESIDENTIAL,Peoples Services,Residential Care - Client Cont ( Net Paymt ),A56113,0
London Borough of Sutton,08/07/2022,50218117,"7,398.84",Surrey & Borders Partnership NHS Trust,SOCIAL SERVICES RESIDENTIAL,Peoples Services,Residential Care - Ext Provider,A56114,0
London Borough of Sutton,08/07/2022,50218117,-638.00,Surrey & Borders Partnership NHS Trust,SOCIAL SERVICES RESIDENTIAL,Peoples Services,Residential Care - Client Cont ( Net Paymt ),A56113,0
London Borough of Sutton,08/07/2022,50218118,"7,460.80",Surrey & Borders Partnership NHS Trust,SOCIAL SERVICES RESIDENTIAL,Peoples Services,Residential Care - Ext Provider,A56114,0
London Borough of Sutton,08/07/2022,50218118,-438.80,Surrey & Borders Partnership NHS Trust,SOCIAL SERVICES RESIDENTIAL,Peoples Services,Residential Care - Client Cont ( Net Paymt ),A56113,0
London Borough of Sutton,08/07/2022,50217828,"4,523.92",Susash London Ltd,SOCIAL SERVICES RESIDENTIAL,Peoples Services,Residential Care - Ext Provider,A56114,0
London Borough of Sutton,08/07/2022,50218159,"4,952.28",Susash London Ltd,SOCIAL SERVICES RESIDENTIAL,Peoples Services,Nursing Care - Ext Provider,A56025,0
London Borough of Sutton,08/07/2022,50218160,"3,472.00",Susash London Ltd,SOCIAL SERVICES RESIDENTIAL,Peoples Services,Nursing Care - Ext Provider,A56025,0
London Borough of Sutton,08/07/2022,50218125,"3,341.08",Sutton Cheam Elderly People Hsg Assoc,SOCIAL SERVICES RESIDENTIAL,Peoples Services,Residential Care - Ext Provider,A56114,0
London Borough of Sutton,08/07/2022,50218158,"3,140.00",Sutton Cheam Elderly People Hsg Assoc,SOCIAL SERVICES RESIDENTIAL,Peoples Services,Residential Care Respite,A56018,0
London Borough of Sutton,08/07/2022,50217784,"6,487.08",Sutton Court Nursing Homes Ltd,SOCIAL SERVICES RESIDENTIAL,Peoples Services,Residential Care - Ext Provider,A56114,0
London Borough of Sutton,08/07/2022,50217792,"3,665.20",Sutton Nursing Homes Ltd,SOCIAL SERVICES RESIDENTIAL,Peoples Services,Nursing Care - Ext Provider,A56025,0
London Borough of Sutton,08/07/2022,50217792,-632.64,Sutton Nursing Homes Ltd,SOCIAL SERVICES RESIDENTIAL,Peoples Services,Nursing Care - 3rd party top up payment,A56023,0
London Borough of Sutton,08/07/2022,50217793,"3,848.24",Sutton Nursing Homes Ltd,SOCIAL SERVICES RESIDENTIAL,Peoples Services,Nursing Care - Ext Provider,A56025,0
London Borough of Sutton,08/07/2022,50217793,-750.40,Sutton Nursing Homes Ltd,SOCIAL SERVICES RESIDENTIAL,Peoples Services,Nursing Care - 3rd party top up payment,A56023,0
London Borough of Sutton,08/07/2022,50217842,"3,848.24",Sutton Nursing Homes Ltd,SOCIAL SERVICES RESIDENTIAL,Peoples Services,Nursing Care Short Term,A56026,0
London Borough of Sutton,08/07/2022,50217842,-750.40,Sutton Nursing Homes Ltd,SOCIAL SERVICES RESIDENTIAL,Peoples Services,Nursing Care - 3rd party top up payment,A56023,0
London Borough of Sutton,08/07/2022,50217851,"3,664.08",Sutton Nursing Homes Ltd,SOCIAL SERVICES RESIDENTIAL,Peoples Services,Nursing Care - Ext Provider,A56025,0
London Borough of Sutton,08/07/2022,50217851,-662.24,Sutton Nursing Homes Ltd,SOCIAL SERVICES RESIDENTIAL,Peoples Services,Nursing Care - 3rd party top up payment,A56023,0
London Borough of Sutton,08/07/2022,50217884,"3,848.24",Sutton Nursing Homes Ltd,SOCIAL SERVICES RESIDENTIAL,Peoples Services,Nursing Care Short Term,A56026,0
London Borough of Sutton,08/07/2022,50217884,-750.40,Sutton Nursing Homes Ltd,SOCIAL SERVICES RESIDENTIAL,Peoples Services,Nursing Care - 3rd party top up payment,A56023,0
London Borough of Sutton,08/07/2022,50217933,"3,720.16",Sutton Nursing Homes Ltd,SOCIAL SERVICES RESIDENTIAL,Peoples Services,Nursing Care - Ext Provider,A56025,0
London Borough of Sutton,08/07/2022,50217933,-735.68,Sutton Nursing Homes Ltd,SOCIAL SERVICES RESIDENTIAL,Peoples Services,Nursing Care - 3rd party top up payment,A56023,0
London Borough of Sutton,08/07/2022,50217955,"3,734.88",Sutton Nursing Homes Ltd,SOCIAL SERVICES RESIDENTIAL,Peoples Services,Nursing Care Short Term,A56026,0
London Borough of Sutton,08/07/2022,50217955,-750.40,Sutton Nursing Homes Ltd,SOCIAL SERVICES RESIDENTIAL,Peoples Services,Nursing Care - 3rd party top up payment,A56023,0
London Borough of Sutton,08/07/2022,50217956,"1,971.43",Sutton Nursing Homes Ltd,SOCIAL SERVICES RESIDENTIAL,Peoples Services,Nursing Care Short Term,A56026,0
London Borough of Sutton,08/07/2022,50217956,-358.61,Sutton Nursing Homes Ltd,SOCIAL SERVICES RESIDENTIAL,Peoples Services,Nursing Care - 3rd party top up payment,A56023,0
London Borough of Sutton,08/07/2022,50217962,"3,664.08",Sutton Nursing Homes Ltd,SOCIAL SERVICES RESIDENTIAL,Peoples Services,Nursing Care - Ext Provider,A56025,0
London Borough of Sutton,08/07/2022,50217962,-662.24,Sutton Nursing Homes Ltd,SOCIAL SERVICES RESIDENTIAL,Peoples Services,Nursing Care - 3rd party top up payment,A56023,0
London Borough of Sutton,08/07/2022,50218050,"3,720.16",Sutton Nursing Homes Ltd,SOCIAL SERVICES RESIDENTIAL,Peoples Services,Nursing Care - Ext Provider,A56025,0
London Borough of Sutton,08/07/2022,50218050,-735.68,Sutton Nursing Homes Ltd,SOCIAL SERVICES RESIDENTIAL,Peoples Services,Nursing Care - 3rd party top up payment,A56023,0
London Borough of Sutton,08/07/2022,50218051,"3,848.24",Sutton Nursing Homes Ltd,SOCIAL SERVICES RESIDENTIAL,Peoples Services,Nursing Care - Ext Provider,A56025,0
London Borough of Sutton,08/07/2022,50218051,-750.40,Sutton Nursing Homes Ltd,SOCIAL SERVICES RESIDENTIAL,Peoples Services,Nursing Care - 3rd party top up payment,A56023,0
London Borough of Sutton,08/07/2022,50218082,"3,720.16",Sutton Nursing Homes Ltd,SOCIAL SERVICES RESIDENTIAL,Peoples Services,Nursing Care - Ext Provider,A56025,0
London Borough of Sutton,08/07/2022,50218082,-735.68,Sutton Nursing Homes Ltd,SOCIAL SERVICES RESIDENTIAL,Peoples Services,Nursing Care - 3rd party top up payment,A56023,0
London Borough of Sutton,08/07/2022,50218112,"3,734.88",Sutton Nursing Homes Ltd,SOCIAL SERVICES RESIDENTIAL,Peoples Services,Nursing Care - Ext Provider,A56025,0
London Borough of Sutton,08/07/2022,50218112,-750.40,Sutton Nursing Homes Ltd,SOCIAL SERVICES RESIDENTIAL,Peoples Services,Nursing Care - 3rd party top up payment,A56023,0
London Borough of Sutton,08/07/2022,50217751,"3,612.00",Sweet Homes Ltd,SOCIAL SERVICES RESIDENTIAL,Peoples Services,Nursing Care - Ext Provider,A56025,0
London Borough of Sutton,08/07/2022,50217751,-735.68,Sweet Homes Ltd,SOCIAL SERVICES RESIDENTIAL,Peoples Services,Nursing Care - 3rd party top up payment,A56023,0
London Borough of Sutton,08/07/2022,50217834,"6,000.00",The Abbeyfield Society,SOCIAL SERVICES RESIDENTIAL,Peoples Services,Interim Placements - Ext Provider,A56102,0
London Borough of Sutton,08/07/2022,50217685,"6,050.24",The Avenues Trust Ltd,SOCIAL SERVICES RESIDENTIAL,Peoples Services,Residential Care - Ext Provider,A56114,0
London Borough of Sutton,08/07/2022,50217685,-425.60,The Avenues Trust Ltd,SOCIAL SERVICES RESIDENTIAL,Peoples Services,Residential Care - Client Cont ( Net Paymt ),A56113,0
London Borough of Sutton,08/07/2022,50217704,"5,240.60",The Dignity Group Ltd,SOCIAL SERVICES RESIDENTIAL,Peoples Services,Residential Care - Ext Provider,A56114,0
London Borough of Sutton,08/07/2022,50217826,"2,833.60",The Garwood Foundation,CHILDREN'S SERVICES - DAY CARE,Peoples Services,Residential Care - Ext Provider,A56114,0
London Borough of Sutton,08/07/2022,50217821,"-1,842.19",The Larcombe Housing Association,SOCIAL SERVICES RESIDENTIAL,Peoples Services,Residential Care - Ext Provider,A56114,0
London Borough of Sutton,08/07/2022,50217867,"2,697.76",The Larcombe Housing Association,SOCIAL SERVICES RESIDENTIAL,Peoples Services,Residential Care - Ext Provider,A56114,0
London Borough of Sutton,08/07/2022,50217913,"2,240.00",The Larcombe Housing Association,SOCIAL SERVICES RESIDENTIAL,Peoples Services,Residential Care Respite,A56018,0
London Borough of Sutton,08/07/2022,50218068,"2,697.76",The Larcombe Housing Association,SOCIAL SERVICES RESIDENTIAL,Peoples Services,Residential Care - Ext Provider,A56114,0
London Borough of Sutton,08/07/2022,50218069,"2,697.76",The Larcombe Housing Association,SOCIAL SERVICES RESIDENTIAL,Peoples Services,Residential Care - Ext Provider,A56114,0
London Borough of Sutton,08/07/2022,50217874,"5,125.76",The Meath,SOCIAL SERVICES RESIDENTIAL,Peoples Services,Residential Care - Ext Provider,A56114,0
London Borough of Sutton,08/07/2022,50218053,"4,213.08",The Meath,SOCIAL SERVICES RESIDENTIAL,Peoples Services,Residential Care - Ext Provider,A56114,0
London Borough of Sutton,08/07/2022,50218053,-553.60,The Meath,SOCIAL SERVICES RESIDENTIAL,Peoples Services,Residential Care - Client Cont ( Net Paymt ),A56113,0
London Borough of Sutton,08/07/2022,50218120,"2,444.68",The Mount Camphill Community Ltd,SOCIAL SERVICES RESIDENTIAL,Peoples Services,Interim Placements - Ext Provider,A56102,0
London Borough of Sutton,08/07/2022,50218143,"2,697.76",The Orders of St John Care Trust (Whitefriars),SOCIAL SERVICES RESIDENTIAL,Peoples Services,Residential Care - Ext Provider,A56114,0
London Borough of Sutton,08/07/2022,50217713,"2,975.84",The Rose Homes for the Elderly,SOCIAL SERVICES RESIDENTIAL,Peoples Services,Residential Care - Ext Provider,A56114,0
London Borough of Sutton,08/07/2022,50217761,"8,515.44",THF Care Estates Ltd,SOCIAL SERVICES RESIDENTIAL,Peoples Services,Residential Care - Ext Provider,A56114,0
London Borough of Sutton,08/07/2022,50219452,"2,000.00",Thomas Wall Nursery School,GRANTS & EX GRATIA PAYMENTS,Peoples Services,Top Up Additional Support,A60015,0
London Borough of Sutton,08/07/2022,50217973,"5,364.88",Tinkers Hatch Ltd,SOCIAL SERVICES RESIDENTIAL,Peoples Services,Residential Care - Ext Provider,A56114,0
London Borough of Sutton,08/07/2022,50217973,-389.60,Tinkers Hatch Ltd,SOCIAL SERVICES RESIDENTIAL,Peoples Services,Residential Care - Client Cont ( Net Paymt ),A56113,0
London Borough of Sutton,08/07/2022,50217692,"7,653.76",Totem Care Ltd,SOCIAL SERVICES RESIDENTIAL,Peoples Services,Residential Care - Ext Provider,A56114,0
London Borough of Sutton,08/07/2022,50217692,"3,256.00",Totem Care Ltd,SOCIAL SERVICES RESIDENTIAL,Peoples Services,One to One Care,A56108,0
London Borough of Sutton,08/07/2022,50217692,-438.80,Totem Care Ltd,SOCIAL SERVICES RESIDENTIAL,Peoples Services,Residential Care - Client Cont ( Net Paymt ),A56113,0
London Borough of Sutton,08/07/2022,50217809,"3,992.28",United Response,SOCIAL SERVICES RESIDENTIAL,Peoples Services,Residential Care - Ext Provider,A56114,0
London Borough of Sutton,08/07/2022,50217809,-425.60,United Response,SOCIAL SERVICES RESIDENTIAL,Peoples Services,Residential Care - Client Cont ( Net Paymt ),A56113,0
London Borough of Sutton,08/07/2022,50217695,"5,795.52",Voyage Ltd,SOCIAL SERVICES RESIDENTIAL,Peoples Services,Residential Care - Ext Provider,A56114,0
London Borough of Sutton,08/07/2022,50217695,-410.80,Voyage Ltd,SOCIAL SERVICES RESIDENTIAL,Peoples Services,Residential Care - Client Cont ( Net Paymt ),A56113,0
London Borough of Sutton,08/07/2022,50217709,"5,955.84",Voyage Ltd,SOCIAL SERVICES RESIDENTIAL,Peoples Services,Residential Care - Ext Provider,A56114,0
London Borough of Sutton,08/07/2022,50217709,-467.80,Voyage Ltd,SOCIAL SERVICES RESIDENTIAL,Peoples Services,Residential Care - Client Cont ( Net Paymt ),A56113,0
London Borough of Sutton,08/07/2022,50217733,"6,176.96",Voyage Ltd,SOCIAL SERVICES RESIDENTIAL,Peoples Services,Residential Care - Ext Provider,A56114,0
London Borough of Sutton,08/07/2022,50217734,"5,987.96",Voyage Ltd,SOCIAL SERVICES RESIDENTIAL,Peoples Services,Residential Care - Ext Provider,A56114,0
London Borough of Sutton,08/07/2022,50217734,-670.55,Voyage Ltd,SOCIAL SERVICES RESIDENTIAL,Peoples Services,Residential Care - Client Cont ( Net Paymt ),A56113,0
London Borough of Sutton,08/07/2022,50217807,"6,476.68",Voyage Ltd,SOCIAL SERVICES RESIDENTIAL,Peoples Services,Residential Care - Ext Provider,A56114,0
London Borough of Sutton,08/07/2022,50217807,-430.80,Voyage Ltd,SOCIAL SERVICES RESIDENTIAL,Peoples Services,Residential Care - Client Cont ( Net Paymt ),A56113,0
London Borough of Sutton,08/07/2022,50217987,"6,020.16",Voyage Ltd,SOCIAL SERVICES RESIDENTIAL,Peoples Services,Residential Care - Ext Provider,A56114,0
London Borough of Sutton,08/07/2022,50217806,"6,342.28",Walsingham,SOCIAL SERVICES RESIDENTIAL,Peoples Services,Residential Care - Ext Provider,A56114,0
London Borough of Sutton,08/07/2022,50217806,-636.80,Walsingham,SOCIAL SERVICES RESIDENTIAL,Peoples Services,Residential Care - Client Cont ( Net Paymt ),A56113,0
London Borough of Sutton,08/07/2022,50217899,"6,305.16",Walsingham,SOCIAL SERVICES RESIDENTIAL,Peoples Services,Residential Care - Ext Provider,A56114,0
London Borough of Sutton,08/07/2022,50217899,-608.88,Walsingham,SOCIAL SERVICES RESIDENTIAL,Peoples Services,Residential Care - Client Cont ( Net Paymt ),A56113,0
London Borough of Sutton,08/07/2022,50217903,"7,203.84",Walsingham,SOCIAL SERVICES RESIDENTIAL,Peoples Services,Residential Care - Ext Provider,A56114,0
London Borough of Sutton,08/07/2022,50218006,"5,268.44",Walsingham,SOCIAL SERVICES RESIDENTIAL,Peoples Services,Residential Care - Ext Provider,A56114,0
London Borough of Sutton,08/07/2022,50218006,-613.96,Walsingham,SOCIAL SERVICES RESIDENTIAL,Peoples Services,Residential Care - Client Cont ( Net Paymt ),A56113,0
London Borough of Sutton,08/07/2022,50218006,953.44,Walsingham,SOCIAL SERVICES RESIDENTIAL,Peoples Services,One to One Care,A56108,0
London Borough of Sutton,08/07/2022,50218021,"6,318.40",Walsingham,SOCIAL SERVICES RESIDENTIAL,Peoples Services,Residential Care - Ext Provider,A56114,0
London Borough of Sutton,08/07/2022,50218021,-608.80,Walsingham,SOCIAL SERVICES RESIDENTIAL,Peoples Services,Residential Care - Client Cont ( Net Paymt ),A56113,0
London Borough of Sutton,08/07/2022,50218165,"6,672.56",Walsingham,SOCIAL SERVICES RESIDENTIAL,Peoples Services,Residential Care - Ext Provider,A56114,0
London Borough of Sutton,08/07/2022,50217815,"-4,386.00",Westhill Care Home,SOCIAL SERVICES RESIDENTIAL,Peoples Services,Nursing Care - 3rd party top up payment,A56023,0
London Borough of Sutton,08/07/2022,50217815,"8,923.36",Westhill Care Home,SOCIAL SERVICES RESIDENTIAL,Peoples Services,Residential Care - Ext Provider,A56114,0
London Borough of Sutton,08/07/2022,50217863,"8,647.56",Westhill Care Home,SOCIAL SERVICES RESIDENTIAL,Peoples Services,Residential Care - Ext Provider,A56114,0
London Borough of Sutton,08/07/2022,50217905,"4,772.96",Westhill Care Home,SOCIAL SERVICES RESIDENTIAL,Peoples Services,Residential Care - Ext Provider,A56114,0
London Borough of Sutton,08/07/2022,50217928,"8,093.28",Westhill Care Home,SOCIAL SERVICES RESIDENTIAL,Peoples Services,Residential Care - Ext Provider,A56114,0
London Borough of Sutton,08/07/2022,50218136,"7,263.20",Westhill Care Home,SOCIAL SERVICES RESIDENTIAL,Peoples Services,Residential Care - Ext Provider,A56114,0
London Borough of Sutton,08/07/2022,50218167,"7,263.20",Westhill Care Home,SOCIAL SERVICES RESIDENTIAL,Peoples Services,Residential Care - Ext Provider,A56114,0
London Borough of Sutton,08/07/2022,50217701,"6,521.20",Westhope Care Ltd,SOCIAL SERVICES RESIDENTIAL,Peoples Services,Residential Care - Ext Provider,A56114,0
London Borough of Sutton,08/07/2022,50217758,"9,630.12",William Blake House,SOCIAL SERVICES RESIDENTIAL,Peoples Services,Residential Care - Ext Provider,A56114,0
London Borough of Sutton,08/07/2022,50217855,"3,848.24",Willow Lodge Nursing Home,SOCIAL SERVICES RESIDENTIAL,Peoples Services,Nursing Care - Ext Provider,A56025,0
London Borough of Sutton,08/07/2022,50217855,-750.40,Willow Lodge Nursing Home,SOCIAL SERVICES RESIDENTIAL,Peoples Services,Nursing Care - 3rd party top up payment,A56023,0
London Borough of Sutton,08/07/2022,50217856,"3,848.24",Willow Lodge Nursing Home,SOCIAL SERVICES RESIDENTIAL,Peoples Services,Nursing Care Short Term,A56026,0
London Borough of Sutton,08/07/2022,50217856,-750.40,Willow Lodge Nursing Home,SOCIAL SERVICES RESIDENTIAL,Peoples Services,Nursing Care - 3rd party top up payment,A56023,0
London Borough of Sutton,08/07/2022,50217934,"3,609.96",Willow Lodge Nursing Home,SOCIAL SERVICES RESIDENTIAL,Peoples Services,Nursing Care - Ext Provider,A56025,0
London Borough of Sutton,08/07/2022,50217934,-632.64,Willow Lodge Nursing Home,SOCIAL SERVICES RESIDENTIAL,Peoples Services,Nursing Care - 3rd party top up payment,A56023,0
London Borough of Sutton,08/07/2022,50217967,"3,734.88",Willow Lodge Nursing Home,SOCIAL SERVICES RESIDENTIAL,Peoples Services,Nursing Care - Ext Provider,A56025,0
London Borough of Sutton,08/07/2022,50217967,-750.40,Willow Lodge Nursing Home,SOCIAL SERVICES RESIDENTIAL,Peoples Services,Nursing Care - 3rd party top up payment,A56023,0
London Borough of Sutton,08/07/2022,50217968,"3,848.24",Willow Lodge Nursing Home,SOCIAL SERVICES RESIDENTIAL,Peoples Services,Nursing Care - Ext Provider,A56025,0
London Borough of Sutton,08/07/2022,50217968,-750.40,Willow Lodge Nursing Home,SOCIAL SERVICES RESIDENTIAL,Peoples Services,Nursing Care - 3rd party top up payment,A56023,0
London Borough of Sutton,08/07/2022,50217768,"3,527.84",Willowcroft Care Home Ltd,SOCIAL SERVICES RESIDENTIAL,Peoples Services,Nursing Care - Ext Provider,A56025,0
London Borough of Sutton,08/07/2022,50217741,"3,486.32",Woodlarks Centre,SOCIAL SERVICES RESIDENTIAL,Peoples Services,Residential Care - Ext Provider,A56114,0
London Borough of Sutton,08/07/2022,50217923,"6,204.84",Together for Mental Wellbeing,GRANTS & EX GRATIA PAYMENTS,Peoples Services,Residential Care - Ext Provider,A56114,0
London Borough of Sutton,09/07/2022,20028573,883.52,E Pollard & Sons Limited,SUNDRY SUPPLIER - ASC,Health and Wellbeing,Equipment And Materials Purchase,A40000,0
London Borough of Sutton,10/07/2022,50220814,526.49,Absolute Care Services Ltd,SOCIAL SERVICES DAY CARE,Peoples Services,Home Care Services,A56019,0
London Borough of Sutton,10/07/2022,50220814,75.21,Absolute Care Services Ltd,SOCIAL SERVICES DAY CARE,Peoples Services,Home Care Services,A56019,0
London Borough of Sutton,10/07/2022,50220814,105.82,Absolute Care Services Ltd,SOCIAL SERVICES DAY CARE,Peoples Services,Home Care Services,A56019,0
London Borough of Sutton,10/07/2022,50220816,409.11,Absolute Care Services Ltd,SOCIAL SERVICES DAY CARE,Peoples Services,Home Care Services,A56019,0
London Borough of Sutton,10/07/2022,50220816,12.99,Absolute Care Services Ltd,SOCIAL SERVICES DAY CARE,Peoples Services,Home Care Services,A56019,0
London Borough of Sutton,10/07/2022,50220816,100.50,Absolute Care Services Ltd,SOCIAL SERVICES DAY CARE,Peoples Services,Home Care Services,A56019,0
London Borough of Sutton,10/07/2022,50220822,118.85,Absolute Care Services Ltd,SOCIAL SERVICES DAY CARE,Peoples Services,Home Care Services,A56019,0
London Borough of Sutton,10/07/2022,50220822,153.58,Absolute Care Services Ltd,SOCIAL SERVICES DAY CARE,Peoples Services,Home Care Services,A56019,0
London Borough of Sutton,10/07/2022,50220822,322.53,Absolute Care Services Ltd,SOCIAL SERVICES DAY CARE,Peoples Services,Home Care Services,A56019,0
London Borough of Sutton,10/07/2022,50220837,431.07,Absolute Care Services Ltd,SOCIAL SERVICES DAY CARE,Peoples Services,Home Care Services,A56019,0
London Borough of Sutton,10/07/2022,50220837,99.57,Absolute Care Services Ltd,SOCIAL SERVICES DAY CARE,Peoples Services,Home Care Services,A56019,0
London Borough of Sutton,10/07/2022,50220927,533.69,Absolute Care Services Ltd,SOCIAL SERVICES DAY CARE,Peoples Services,Home Care Services,A56019,0
London Borough of Sutton,10/07/2022,50220951,551.18,Absolute Care Services Ltd,SOCIAL SERVICES DAY CARE,Peoples Services,Home Care Services,A56019,0
London Borough of Sutton,10/07/2022,50220951,34.98,Absolute Care Services Ltd,SOCIAL SERVICES DAY CARE,Peoples Services,Home Care Services,A56019,0
London Borough of Sutton,10/07/2022,50221012,776.88,Absolute Care Services Ltd,SOCIAL SERVICES DAY CARE,Peoples Services,Home Care Services,A56019,0
London Borough of Sutton,10/07/2022,50221012,45.25,Absolute Care Services Ltd,SOCIAL SERVICES DAY CARE,Peoples Services,Home Care Services,A56019,0
London Borough of Sutton,10/07/2022,50221059,795.90,Absolute Care Services Ltd,SOCIAL SERVICES DAY CARE,Peoples Services,Home Care Services,A56019,0
London Borough of Sutton,10/07/2022,50221059,104.94,Absolute Care Services Ltd,SOCIAL SERVICES DAY CARE,Peoples Services,Home Care Services,A56019,0
London Borough of Sutton,10/07/2022,50221070,64.32,Absolute Care Services Ltd,SOCIAL SERVICES DAY CARE,Peoples Services,Home Care Services,A56019,0
London Borough of Sutton,10/07/2022,50221070,562.80,Absolute Care Services Ltd,SOCIAL SERVICES DAY CARE,Peoples Services,Home Care Services,A56019,0
London Borough of Sutton,10/07/2022,50221095,612.36,Absolute Care Services Ltd,SOCIAL SERVICES DAY CARE,Peoples Services,Home Care Services,A56019,0
London Borough of Sutton,10/07/2022,50221098,48.24,Absolute Care Services Ltd,SOCIAL SERVICES DAY CARE,Peoples Services,Home Care Services,A56019,0
London Borough of Sutton,10/07/2022,50221098,506.52,Absolute Care Services Ltd,SOCIAL SERVICES DAY CARE,Peoples Services,Home Care Services,A56019,0
London Borough of Sutton,10/07/2022,50221105,16.08,Absolute Care Services Ltd,SOCIAL SERVICES DAY CARE,Peoples Services,Home Care Services,A56019,0
London Borough of Sutton,10/07/2022,50221105,506.52,Absolute Care Services Ltd,SOCIAL SERVICES DAY CARE,Peoples Services,Home Care Services,A56019,0
London Borough of Sutton,10/07/2022,50220734,827.97,Best at Home Domiciliary Care Services Ltd,SOCIAL SERVICES DAY CARE,Peoples Services,Home Care Services,A56019,0
London Borough of Sutton,10/07/2022,50220738,"3,156.00",Best at Home Domiciliary Care Services Ltd,SOCIAL SERVICES DAY CARE,Peoples Services,Home Care Services,A56019,0
London Borough of Sutton,10/07/2022,50220744,827.97,Best at Home Domiciliary Care Services Ltd,SOCIAL SERVICES DAY CARE,Peoples Services,Home Care Services,A56019,0
London Borough of Sutton,10/07/2022,50220745,"3,156.00",Best at Home Domiciliary Care Services Ltd,SOCIAL SERVICES DAY CARE,Peoples Services,Home Care Services,A56019,0
London Borough of Sutton,10/07/2022,50220756,981.94,Best at Home Domiciliary Care Services Ltd,SOCIAL SERVICES DAY CARE,Peoples Services,Home Care Services,A56019,0
London Borough of Sutton,10/07/2022,50220759,542.50,Best at Home Domiciliary Care Services Ltd,SOCIAL SERVICES DAY CARE,Peoples Services,Home Care Services,A56019,0
London Borough of Sutton,10/07/2022,50220760,827.97,Best at Home Domiciliary Care Services Ltd,SOCIAL SERVICES DAY CARE,Peoples Services,Home Care Services,A56019,0
London Borough of Sutton,10/07/2022,50220785,559.46,Best at Home Domiciliary Care Services Ltd,SOCIAL SERVICES DAY CARE,Peoples Services,Home Care Services,A56019,0
London Borough of Sutton,10/07/2022,50220791,827.97,Best at Home Domiciliary Care Services Ltd,SOCIAL SERVICES DAY CARE,Peoples Services,Home Care Services,A56019,0
London Borough of Sutton,10/07/2022,50220791,150.00,Best at Home Domiciliary Care Services Ltd,SOCIAL SERVICES DAY CARE,Peoples Services,Home Care Services,A56019,0
London Borough of Sutton,10/07/2022,50227750,540.75,Caremark (Sutton),SOCIAL SERVICES DAY CARE,Peoples Services,Home Care Services,A56019,0
London Borough of Sutton,10/07/2022,50227762,251.92,Caremark (Sutton),SOCIAL SERVICES DAY CARE,Peoples Services,Home Care Services,A56019,0
London Borough of Sutton,10/07/2022,50227762,284.18,Caremark (Sutton),SOCIAL SERVICES DAY CARE,Peoples Services,Home Care Services,A56019,0
London Borough of Sutton,10/07/2022,50227766,801.93,Caremark (Sutton),SOCIAL SERVICES DAY CARE,Peoples Services,Home Care Services,A56019,0
